{"text_format":"1","workbook":"xlsx","n_sheets":13,"sheets":["CoverPage","Instructions","Application Checklist","B - Applicant","C -  Minimum Requirements","D - Local & Env Verification","E - Loan Amount & Unit Mix","F - Selection Criteria","G - Supportive Services","H - Certification","Application Support","Dropdowns","Loan PU Amts"],"not_rendered":{"charts":0,"images":1,"macros":1,"external_links":3,"defined_names":273,"comments":7,"pivot_tables":0},"unopened":[],"bounds":{"document_bytes":16777216,"sheet_cells":100000,"rows_first":2000,"rows_last":500,"rows_between":2000,"halvings":0,"cell_chars":16384,"cell_head_chars":4096},"cells_cut":0,"cells_raw":0,"read":"whole","date_system":"1900"}

{"sheet":"CoverPage","index":0,"n_rows":48,"n_cols":1,"rows_kept":48,"cut":false,"hidden":false,"merged":[[4,0,4,22],[29,0,29,22],[30,0,30,22],[32,0,32,22],[33,0,33,22],[10,0,11,21],[43,0,43,22],[47,0,47,22],[7,0,7,22],[35,0,35,22],[36,0,36,22],[39,0,39,22],[40,0,40,22],[41,0,41,22],[42,0,42,22],[44,0,44,22],[45,0,45,22]]}
[]
[]
[]
[]
["Housing for a Healthy California"]
[]
[]
["2020 NOTICE OF FUNDING AVAILABILITY"]
[]
[]
["Article I - National Housing Trust Fund Allocation\nSupplemental Application"]
[]
[]
[]
[]
[]
[]
[]
[]
[]
[]
[]
[]
[]
[]
[]
[]
[]
[]
["State of California"]
["Gavin Newsom, Governor "]
[]
["Alexis Podesta, Secretary"]
["Business, Consumer Services and Housing Agency"]
[]
["Douglas McCauley, Acting Director"]
["Department of Housing and Community Development (HCD)"]
[]
[]
["2020 West El Camino Avenue, Suite 150"]
["Sacramento, CA 95833"]
["Phone: (916) 263-2771   "]
["Email: HHCNOFA@hcd.ca.gov"]
["Website: http://www.hcd.ca.gov/grants-funding/active-funding/hhc.shtml"]
["Application Technical Support email:"]
["AppSupport@hcd.ca.gov"]
[]
["2020-02-28"]

{"sheet":"Instructions","index":1,"n_rows":35,"n_cols":1,"rows_kept":35,"cut":false,"hidden":false,"merged":[[10,0,10,37],[12,0,12,37],[11,0,11,37],[34,0,34,37],[19,0,19,37],[18,0,18,37],[17,0,17,37],[16,0,16,37],[15,0,15,37],[14,0,14,37],[13,0,13,37],[33,0,33,37],[32,0,32,37],[31,0,31,37],[30,0,30,37],[29,0,29,37],[6,0,6,37],[5,0,5,37],[8,0,8,37],[7,0,7,37],[9,0,9,37],[0,0,0,37],[1,0,1,37],[2,0,2,37],[3,0,3,37],[4,0,4,37],[20,0,20,37],[28,0,28,37],[27,0,27,37],[26,0,26,37],[25,0,25,37],[24,0,24,37],[23,0,23,37],[22,0,22,37],[21,0,21,37]]}
["Instructions "]
["HCD will only accept applications through a postal carrier service such as U.S. Postal Service, UPS, FedEx or other carrier services that provide date stamp verification confirming delivery to HCD’s office. A complete original application and an electronic copy on CD or USB flash drive with all applicable information must be received by HCD via postal carrier no later than 5:00 p.m. on:"]
["2020-06-25"]
["Applications must be on the Department’s forms and cannot be altered or modified by the Applicant. Excel forms must be in Excel format and unprotected, not a .pdf document.  Please fill-out the Support tab and email the entire workbook to Application Support for application errors at AppSupport@hcd.ca.gov."]
["General Instructions (Addition instructions and guidance are given throughout the Supplemental Application in \"red\" text and in cell comments. "]
["\"Yellow\" cells are for applicant input. Failure to provide the required attachments and documentation may disqualify your application from consideration or may negatively impact your point score."]
["Required attachments are indicated in \"Orange\" through the Supplemental Application. Failure to provide the required attachments and documentation may disqualify your application from consideration or may negatively impact your point score. Electronically attached files must use the naming convention in the Supplemental Application. For Example: \"App1 Payee Data\" for Applicant 1 Payee Data Record/ STD. 204."]
["Self score points awarded are indicated in \"blue\" cells in the 'Selection Criteria' worksheet. These are automated calculations based on the inputs provided by the applicant. "]
["\"Red\" shaded cells indicate the Applicant has failed to meet a requirement of the program. Point cells in \"Scoring\" worksheet shaded in \"Red\" indicate that the applicant has failed to meet the minimum points required. "]
["Supplemental Application Instructions"]
["Applicants must complete the following worksheets in the Supplemental Application. "]
["Applicant "]
["Minimum Requirements "]
["Local & Env Verification"]
["Supportive Services Plan"]
["Loan Amount & Unit Mix"]
["Selection Criteria"]
["Certification"]
["Universal Application (UA) Instructions - (HHC Article I ONLY)"]
["Applicants must complete the following worksheets in the UA. "]
["General"]
["Narrative"]
["Site & Units"]
["Misc."]
["Rents"]
["HHC Rents"]
["Subsidies"]
["Dev Sources"]
["Dev Budget"]
["Perm S&U"]
["Dev Fee"]
["Operating"]
["Cash Flow"]
["HHC COSR Calculation"]
["Disclosure of Application: Information provided in this application and attachments will become a public record available for review by the public pursuant to the Public Records Act.  As such, any materials provided will be disclosable to any person making a public records request.  Please use discretion in providing HCD with information that is not specifically requested, including but not limited to, bank account numbers, personal phone numbers and home addresses.  By providing this information to HCD, the Sponsor is waiving any claim of confidentiality and consents to the disclosure of all submitted material upon request."]

{"sheet":"Application Checklist","index":2,"n_rows":134,"n_cols":36,"rows_kept":134,"cut":false,"hidden":false,"merged":[[126,3,126,9],[126,10,126,34],[126,0,126,2],[126,35,126,37],[132,0,132,2],[132,3,132,34],[132,35,132,37],[92,3,92,34],[92,0,92,2],[92,35,92,37],[95,0,95,2],[95,3,95,9],[95,10,95,34],[95,35,95,37],[125,0,125,37],[127,0,127,2],[127,3,127,34],[127,35,127,37],[124,0,124,2],[129,0,129,2],[129,3,129,9],[119,0,119,2],[119,3,119,9],[119,10,119,34],[6,0,6,2],[6,35,6,37],[6,3,6,34],[23,0,23,2],[23,3,23,9],[23,10,23,34],[23,35,23,37],[29,0,29,2],[26,0,26,2],[17,3,17,34],[18,3,18,34],[19,3,19,34],[20,3,20,34],[7,35,7,37],[8,35,8,37],[9,35,9,37],[10,35,10,37],[11,35,11,37],[12,35,12,37],[13,35,13,37],[14,35,14,37],[15,35,15,37],[16,35,16,37],[17,35,17,37],[18,35,18,37],[19,35,19,37],[20,35,20,37],[16,3,16,34],[8,3,8,34],[9,3,9,34],[10,3,10,34],[131,0,131,37],[133,0,133,2],[133,3,133,34],[133,35,133,37],[121,0,121,2],[121,3,121,9],[121,10,121,34],[121,35,121,37],[122,0,122,2],[122,3,122,9],[122,10,122,34],[122,35,122,37],[123,0,123,2],[123,3,123,9],[123,10,123,34],[123,35,123,37],[130,35,130,37],[115,3,115,9],[115,10,115,34],[115,35,115,37],[119,35,119,37],[120,0,120,2],[120,3,120,9],[120,10,120,34],[120,35,120,37],[124,3,124,9],[124,10,124,34],[124,35,124,37],[116,0,116,2],[116,3,116,9],[116,10,116,34],[116,35,116,37],[117,0,117,2],[117,3,117,9],[117,10,117,34],[117,35,117,37],[118,3,118,9],[118,10,118,34],[118,35,118,37],[118,0,118,2],[112,35,112,37],[113,0,113,2],[113,3,113,9],[113,10,113,34],[113,35,113,37],[114,0,114,2],[114,3,114,9],[114,10,114,34],[114,35,114,37],[109,35,109,37],[110,0,110,2],[110,3,110,9],[110,10,110,34],[110,35,110,37],[111,0,111,2],[111,3,111,9],[111,10,111,34],[111,35,111,37],[106,3,106,9],[106,10,106,34],[106,35,106,37],[106,0,106,2],[107,0,107,2],[107,3,107,9],[107,10,107,34],[107,35,107,37],[108,0,108,2],[108,3,108,9],[108,10,108,34],[108,35,108,37],[103,3,103,9],[103,10,103,34],[103,35,103,37],[103,0,103,2],[104,0,104,2],[104,3,104,9],[104,10,104,34],[104,35,104,37],[105,0,105,2],[105,3,105,9],[105,10,105,34],[105,35,105,37],[99,0,99,2],[101,0,101,2],[101,3,101,9],[101,10,101,34],[101,35,101,37],[102,0,102,2],[102,3,102,9],[102,10,102,34],[102,35,102,37],[129,10,129,34],[129,35,129,37],[89,0,89,2],[89,3,89,9],[89,10,89,34],[89,35,89,37],[90,0,90,2],[90,3,90,9],[90,10,90,34],[90,35,90,37],[91,0,91,37],[109,0,109,2],[109,3,109,9],[109,10,109,34],[112,0,112,2],[112,3,112,9],[112,10,112,34],[115,0,115,2],[94,0,94,37],[96,0,96,2],[96,3,96,34],[96,35,96,37],[97,0,97,2],[97,3,97,9],[86,35,86,37],[87,0,87,2],[87,3,87,9],[87,10,87,34],[87,35,87,37],[128,0,128,2],[128,3,128,9],[128,10,128,34],[128,35,128,37],[86,0,86,2],[86,3,86,9],[86,10,86,34],[97,10,97,34],[97,35,97,37],[93,0,93,2],[93,3,93,34],[93,35,93,37],[98,0,98,37],[100,3,100,34],[100,35,100,37],[100,0,100,2],[99,35,99,37],[99,10,99,34],[99,3,99,9],[84,35,84,37],[85,0,85,2],[85,3,85,9],[85,10,85,34],[85,35,85,37],[84,0,84,2],[84,3,84,9],[84,10,84,34],[81,35,81,37],[82,0,82,2],[82,3,82,9],[82,10,82,34],[82,35,82,37],[83,0,83,2],[83,3,83,9],[83,10,83,34],[83,35,83,37],[81,0,81,2],[81,3,81,9],[81,10,81,34],[78,35,78,37],[79,0,79,2],[79,3,79,9],[79,10,79,34],[79,35,79,37],[80,0,80,2],[80,3,80,9],[80,10,80,34],[80,35,80,37],[78,0,78,2],[78,3,78,9],[78,10,78,34],[75,3,75,9],[75,10,75,34],[75,35,75,37],[76,0,76,2],[76,3,76,9],[76,10,76,34],[76,35,76,37],[77,0,77,2],[77,3,77,9],[77,10,77,34],[77,35,77,37],[75,0,75,2],[72,3,72,9],[72,10,72,34],[72,35,72,37],[73,0,73,2],[73,3,73,9],[73,10,73,34],[73,35,73,37],[74,0,74,2],[74,3,74,9],[74,10,74,34],[74,35,74,37],[72,0,72,2],[67,35,67,37],[68,0,68,37],[70,0,70,2],[70,3,70,34],[70,35,70,37],[71,0,71,2],[71,3,71,9],[71,10,71,34],[71,35,71,37],[67,0,67,2],[67,3,67,9],[67,10,67,34],[69,0,69,2],[69,3,69,9],[69,10,69,34],[69,35,69,37],[64,35,64,37],[65,0,65,2],[65,3,65,9],[65,10,65,34],[65,35,65,37],[66,0,66,2],[66,3,66,9],[66,10,66,34],[66,35,66,37],[64,0,64,2],[64,3,64,9],[64,10,64,34],[61,35,61,37],[62,0,62,2],[62,3,62,9],[62,10,62,34],[62,35,62,37],[63,0,63,2],[63,3,63,9],[63,10,63,34],[63,35,63,37],[61,0,61,2],[61,3,61,9],[61,10,61,34],[58,35,58,37],[59,0,59,2],[59,3,59,9],[59,10,59,34],[59,35,59,37],[60,0,60,2],[60,3,60,9],[60,10,60,34],[60,35,60,37],[58,0,58,2],[58,3,58,9],[58,10,58,34],[55,35,55,37],[56,0,56,2],[56,3,56,9],[56,10,56,34],[56,35,56,37],[57,0,57,2],[57,3,57,9],[57,10,57,34],[57,35,57,37],[55,0,55,2],[55,3,55,9],[55,10,55,34],[53,3,53,9],[53,10,53,34],[53,35,53,37],[54,0,54,2],[54,3,54,9],[54,10,54,34],[54,35,54,37],[52,3,52,9],[52,10,52,34],[53,0,53,2],[52,35,52,37],[52,0,52,2],[50,35,50,37],[47,0,47,2],[47,3,47,9],[47,10,47,34],[47,35,47,37],[48,0,48,2],[48,3,48,9],[48,10,48,34],[48,35,48,37],[49,35,49,37],[49,3,49,9],[49,10,49,34],[51,0,51,2],[51,3,51,9],[51,10,51,34],[51,35,51,37],[43,0,43,2],[43,3,43,9],[43,10,43,34],[43,35,43,37],[41,0,41,2],[44,3,44,9],[44,10,44,34],[44,35,44,37],[45,0,45,2],[45,3,45,9],[45,10,45,34],[45,35,45,37],[50,0,50,2],[46,0,46,2],[46,3,46,9],[46,10,46,34],[46,35,46,37],[44,0,44,2],[50,3,50,9],[50,10,50,34],[40,0,40,2],[40,3,40,9],[40,10,40,34],[40,35,40,37],[38,0,38,2],[41,3,41,9],[41,10,41,34],[41,35,41,37],[42,0,42,2],[42,3,42,9],[42,10,42,34],[42,35,42,37],[37,0,37,2],[37,3,37,9],[37,10,37,34],[37,35,37,37],[35,0,35,2],[38,3,38,9],[38,10,38,34],[38,35,38,37],[39,0,39,2],[39,3,39,9],[39,10,39,34],[39,35,39,37],[34,3,34,9],[34,10,34,34],[34,35,34,37],[32,0,32,2],[35,3,35,9],[35,10,35,34],[35,35,35,37],[36,0,36,2],[36,3,36,9],[36,10,36,34],[36,35,36,37],[0,0,0,37],[1,0,1,37],[2,0,2,37],[3,0,3,37],[4,0,4,37],[28,0,28,2],[28,3,28,9],[28,10,28,34],[28,35,28,37],[16,0,16,2],[17,0,17,2],[18,0,18,2],[19,0,19,2],[20,0,20,2],[8,0,8,2],[9,0,9,2],[7,0,7,2],[7,3,7,34],[10,0,10,2],[11,0,11,2],[12,0,12,2],[13,0,13,2],[14,0,14,2],[15,0,15,2],[130,0,130,2],[130,3,130,9],[130,10,130,34],[21,0,21,37],[22,0,22,37],[24,35,24,37],[26,10,26,34],[26,35,26,37],[27,0,27,2],[27,3,27,9],[27,10,27,34],[27,35,27,37],[31,0,31,2],[31,3,31,9],[31,10,31,34],[49,0,49,2],[29,35,29,37],[30,0,30,2],[30,3,30,9],[30,10,30,34],[30,35,30,37],[31,35,31,37],[26,3,26,9],[24,0,24,34],[25,10,25,34],[25,35,25,37],[88,0,88,2],[88,10,88,34],[88,3,88,9],[88,35,88,37],[5,0,5,37],[11,3,11,34],[12,3,12,34],[32,3,32,9],[32,10,32,34],[29,3,29,9],[29,10,29,34],[13,3,13,34],[14,3,14,34],[15,3,15,34],[25,0,25,2],[25,3,25,9],[32,35,32,37],[33,0,33,2],[33,3,33,9],[33,10,33,34],[33,35,33,37],[34,0,34,2]]}
["Application Checklist"]
["Packaging instructions for the HHC application submission:"]
["   (1) Use 3-ring binder/binders appropriate to the size/thickness of the Universal Application and the Supplemental Application when submitting the application package to the Department."]
["   (2) Use a labeled tab for each Tab and File Name to separate sections and documents attached in the Application."]
["   (3) Use the tab file name descriptions and file structure below for the attached document tabs."]
["Section A - Universal Application"]
["Tab#",null,null,"File Name",null,null,null,null,null,null,null,null,null,null,null,null,null,null,null,null,null,null,null,null,null,null,null,null,null,null,null,null,null,null,null,"Attached?"]
["A1 ",null,null,"General Worksheet"]
["A2",null,null,"Narrative Worksheet"]
["A3",null,null,"Site & Units Worksheet"]
["A4",null,null,"Misc. Worksheet"]
["A5",null,null,"Rents Worksheet"]
["A6",null,null,"HHC Rents Worksheet"]
["A7",null,null,"Subsidies Worksheet"]
["A8",null,null,"Dev Sources Worksheet"]
["A9",null,null,"Dev Budget Worksheet"]
["A10",null,null,"Perm S&U Worksheet"]
["A11",null,null,"Dev Fee Worksheet"]
["A12",null,null,"Operating Worksheet"]
["A13",null,null,"Cash Flow Worksheet"]
["A14",null,null,"HHC COSR Calculation Worksheet"]
[" Supplemental Applicant Section"]
["Section B - Applicant "]
["Tab#",null,null,"File Name",null,null,null,null,null,null,"File Description",null,null,null,null,null,null,null,null,null,null,null,null,null,null,null,null,null,null,null,null,null,null,null,null,"Attached?"]
["B1 Applicant Worksheet"]
["B2",null,null,"Rural Status",null,null,null,null,null,null,"TCAC Method for determining rural status.",null,null,null,null,null,null,null,null,null,null,null,null,null,null,null,null,null,null,null,null,null,null,null,null,{"$f":"IF('B - Applicant'!AK9=\"\",\"\",'B - Applicant'!AK9)","v":""}]
["B3",null,null,"App1 Cert & Legal Disclosure",null,null,null,null,null,null,"Please see 'Certifications & Legal Status' Worksheet.",null,null,null,null,null,null,null,null,null,null,null,null,null,null,null,null,null,null,null,null,null,null,null,null,{"$f":"IF('B - Applicant'!AK19=\"\",\"\",'B - Applicant'!AK19)","v":""}]
["B4",null,null,"App1 Reso",null,null,null,null,null,null,"Reference HHC webpage for Resolution Document.",null,null,null,null,null,null,null,null,null,null,null,null,null,null,null,null,null,null,null,null,null,null,null,null,{"$f":"IF('B - Applicant'!AK20=\"\",\"\",'B - Applicant'!AK20)","v":""}]
["B5",null,null,"App1 OrgDoc1, App1 OrgDoc2, etc.",null,null,null,null,null,null,"Reference Applicant Org Docs worksheet.",null,null,null,null,null,null,null,null,null,null,null,null,null,null,null,null,null,null,null,null,null,null,null,null,{"$f":"IF('B - Applicant'!AK21=\"\",\"\",'B - Applicant'!AK21)","v":""}]
["B6",null,null,"App1 OrgChart",null,null,null,null,null,null,"Must depict the Organizational Structure of the entities in relation to the applicant.",null,null,null,null,null,null,null,null,null,null,null,null,null,null,null,null,null,null,null,null,null,null,null,null,{"$f":"IF('B - Applicant'!AK22=\"\",\"\",'B - Applicant'!AK22)","v":""}]
["B7",null,null,"App1 Signature Block",null,null,null,null,null,null,"Signature Block - upload in Microsoft Word Document.",null,null,null,null,null,null,null,null,null,null,null,null,null,null,null,null,null,null,null,null,null,null,null,null,{"$f":"IF('B - Applicant'!AK23=\"\",\"\",'B - Applicant'!AK23)","v":""}]
["B8",null,null,"App1 Payee Data or TIN",null,null,null,null,null,null,"Reference Payee Data Record STD-204 & Taxpayer Identification Number Documents on the HHC webpage.",null,null,null,null,null,null,null,null,null,null,null,null,null,null,null,null,null,null,null,null,null,null,null,null,{"$f":"IF('B - Applicant'!AK24=\"\",\"\",'B - Applicant'!AK24)","v":""}]
["B9",null,null,"App2 Cert & Legal Disclosure",null,null,null,null,null,null,"Reference 'Certifications & Legal Status' Worksheet.",null,null,null,null,null,null,null,null,null,null,null,null,null,null,null,null,null,null,null,null,null,null,null,null,{"$f":"IF('B - Applicant'!AK31=\"\",\"\",'B - Applicant'!AK31)","v":""}]
["B10",null,null,"App2 Reso",null,null,null,null,null,null,"Reference HHC webpage for Resolution Document.",null,null,null,null,null,null,null,null,null,null,null,null,null,null,null,null,null,null,null,null,null,null,null,null,{"$f":"IF('B - Applicant'!AK32=\"\",\"\",'B - Applicant'!AK32)","v":""}]
["B11",null,null,"App2 OrgDoc2, App2 OrgDoc2, etc.",null,null,null,null,null,null,"Reference Applicant Org Docs worksheet.",null,null,null,null,null,null,null,null,null,null,null,null,null,null,null,null,null,null,null,null,null,null,null,null,{"$f":"IF('B - Applicant'!AK33=\"\",\"\",'B - Applicant'!AK33)","v":""}]
["B12",null,null,"App2 OrgChart",null,null,null,null,null,null,"Must depict the Organizational Structure of the entities in relation to the applicant.",null,null,null,null,null,null,null,null,null,null,null,null,null,null,null,null,null,null,null,null,null,null,null,null,{"$f":"IF('B - Applicant'!AK34=\"\",\"\",'B - Applicant'!AK34)","v":""}]
["B13",null,null,"App2 Signature Block",null,null,null,null,null,null,"Signature Block - upload in Microsoft Word Document.",null,null,null,null,null,null,null,null,null,null,null,null,null,null,null,null,null,null,null,null,null,null,null,null,{"$f":"IF('B - Applicant'!AK35=\"\",\"\",'B - Applicant'!AK35)","v":""}]
["B14",null,null,"App2 Payee Data or TIN",null,null,null,null,null,null,"Reference Payee Data Record STD-204 & Taxpayer Identification Number Documents on the HHC webpage.",null,null,null,null,null,null,null,null,null,null,null,null,null,null,null,null,null,null,null,null,null,null,null,null,{"$f":"IF('B - Applicant'!AK36=\"\",\"\",'B - Applicant'!AK36)","v":""}]
["B15",null,null,"App3 Cert & Legal Disclosure",null,null,null,null,null,null,"Reference 'Certifications & Legal Status' Worksheet.",null,null,null,null,null,null,null,null,null,null,null,null,null,null,null,null,null,null,null,null,null,null,null,null,{"$f":"IF('B - Applicant'!AK43=\"\",\"\",'B - Applicant'!AK43)","v":""}]
["B16",null,null,"App3 Reso",null,null,null,null,null,null,"Reference HHC webpage for Resolution Document.",null,null,null,null,null,null,null,null,null,null,null,null,null,null,null,null,null,null,null,null,null,null,null,null,{"$f":"IF('B - Applicant'!AK44=\"\",\"\",'B - Applicant'!AK44)","v":""}]
["B17",null,null,"App3 OrgDoc3, App3 OrgDoc2, etc.",null,null,null,null,null,null,"Reference Applicant Org Docs worksheet.",null,null,null,null,null,null,null,null,null,null,null,null,null,null,null,null,null,null,null,null,null,null,null,null,{"$f":"IF('B - Applicant'!AK45=\"\",\"\",'B - Applicant'!AK45)","v":""}]
["B18",null,null,"App3 OrgChart",null,null,null,null,null,null,"Must depict the Organizational Structure of the entities in relation to the applicant.",null,null,null,null,null,null,null,null,null,null,null,null,null,null,null,null,null,null,null,null,null,null,null,null,{"$f":"IF('B - Applicant'!AK46=\"\",\"\",'B - Applicant'!AK46)","v":""}]
["B19",null,null,"App3 Signature Block",null,null,null,null,null,null,"Signature Block - upload in Microsoft Word Document.",null,null,null,null,null,null,null,null,null,null,null,null,null,null,null,null,null,null,null,null,null,null,null,null,{"$f":"IF('B - Applicant'!AK47=\"\",\"\",'B - Applicant'!AK47)","v":""}]
["B20",null,null,"App3 Payee Data or TIN",null,null,null,null,null,null,"Reference Payee Data Record STD-204 & Taxpayer Identification Number Documents on the HHC webpage.",null,null,null,null,null,null,null,null,null,null,null,null,null,null,null,null,null,null,null,null,null,null,null,null,{"$f":"IF('B - Applicant'!AK48=\"\",\"\",'B - Applicant'!AK48)","v":""}]
["B21",null,null,"Owner Cert & Legal Disclosure",null,null,null,null,null,null,"Reference 'Certifications & Legal Status' Worksheet.",null,null,null,null,null,null,null,null,null,null,null,null,null,null,null,null,null,null,null,null,null,null,null,null,{"$f":"IF('B - Applicant'!AK56=\"\",\"\",'B - Applicant'!AK56)","v":""}]
["B22",null,null,"Owner Reso",null,null,null,null,null,null,"Reference HHC webpage for Resolution Document.",null,null,null,null,null,null,null,null,null,null,null,null,null,null,null,null,null,null,null,null,null,null,null,null,{"$f":"IF('B - Applicant'!AK57=\"\",\"\",'B - Applicant'!AK57)","v":""}]
["B23",null,null,"Owner OrgDoc1, Owner OrgDoc2, etc.",null,null,null,null,null,null,"Reference Applicant Org Docs worksheet.",null,null,null,null,null,null,null,null,null,null,null,null,null,null,null,null,null,null,null,null,null,null,null,null,{"$f":"IF('B - Applicant'!AK58=\"\",\"\",'B - Applicant'!AK58)","v":""}]
["B24",null,null,"Owner OrgChart",null,null,null,null,null,null,"Must depict the Organizational Structure of the entities in relation to the applicant.",null,null,null,null,null,null,null,null,null,null,null,null,null,null,null,null,null,null,null,null,null,null,null,null,{"$f":"IF('B - Applicant'!AK59=\"\",\"\",'B - Applicant'!AK59)","v":""}]
["B25",null,null,"Owner Signature Block",null,null,null,null,null,null,"Signature Block - upload in Microsoft Word Document.",null,null,null,null,null,null,null,null,null,null,null,null,null,null,null,null,null,null,null,null,null,null,null,null,{"$f":"IF('B - Applicant'!AK60=\"\",\"\",'B - Applicant'!AK60)","v":""}]
["B26",null,null,"Owner Payee Data or TIN",null,null,null,null,null,null,"Reference Payee Data Record STD-204 & Taxpayer Identification Number Documents on the HHC webpage.",null,null,null,null,null,null,null,null,null,null,null,null,null,null,null,null,null,null,null,null,null,null,null,null,{"$f":"IF('B - Applicant'!AK61=\"\",\"\",'B - Applicant'!AK61)","v":""}]
["B27",null,null,"MGP Cert & Legal Disclosure",null,null,null,null,null,null,"Reference 'Certifications & Legal Status' Worksheet.",null,null,null,null,null,null,null,null,null,null,null,null,null,null,null,null,null,null,null,null,null,null,null,null,{"$f":"IF('B - Applicant'!AK68=\"\",\"\",'B - Applicant'!AK68)","v":""}]
["B28",null,null,"MGP Reso",null,null,null,null,null,null,"Reference HHC webpage for Resolution Document.",null,null,null,null,null,null,null,null,null,null,null,null,null,null,null,null,null,null,null,null,null,null,null,null,{"$f":"IF('B - Applicant'!AK69=\"\",\"\",'B - Applicant'!AK69)","v":""}]
["B29",null,null,"MGP OrgDoc1, MGP OrgDoc2, etc.",null,null,null,null,null,null,"Reference Applicant Org Docs worksheet.",null,null,null,null,null,null,null,null,null,null,null,null,null,null,null,null,null,null,null,null,null,null,null,null,{"$f":"IF('B - Applicant'!AK70=\"\",\"\",'B - Applicant'!AK70)","v":""}]
["B30",null,null,"MGP OrgChart",null,null,null,null,null,null,"Must depict the Organizational Structure of the entities in relation to the applicant.",null,null,null,null,null,null,null,null,null,null,null,null,null,null,null,null,null,null,null,null,null,null,null,null,{"$f":"IF('B - Applicant'!AK71=\"\",\"\",'B - Applicant'!AK71)","v":""}]
["B31",null,null,"MGP Signature Block",null,null,null,null,null,null,"Signature Block - upload in Microsoft Word Document.",null,null,null,null,null,null,null,null,null,null,null,null,null,null,null,null,null,null,null,null,null,null,null,null,{"$f":"IF('B - Applicant'!AK72=\"\",\"\",'B - Applicant'!AK72)","v":""}]
["B32",null,null,"MGP Payee Data or TIN",null,null,null,null,null,null,"Reference Payee Data Record STD-204 & Taxpayer Identification Number Documents on the HHC webpage.",null,null,null,null,null,null,null,null,null,null,null,null,null,null,null,null,null,null,null,null,null,null,null,null,{"$f":"IF('B - Applicant'!AK73=\"\",\"\",'B - Applicant'!AK73)","v":""}]
["B33",null,null,"AGP1 Cert & Legal Disclosure",null,null,null,null,null,null,"Reference 'Certifications & Legal Status' Worksheet.",null,null,null,null,null,null,null,null,null,null,null,null,null,null,null,null,null,null,null,null,null,null,null,null,{"$f":"IF('B - Applicant'!AK80=\"\",\"\",'B - Applicant'!AK80)","v":""}]
["B34",null,null,"AGP1 Reso",null,null,null,null,null,null,"Reference HHC webpage for Resolution Document.",null,null,null,null,null,null,null,null,null,null,null,null,null,null,null,null,null,null,null,null,null,null,null,null,{"$f":"IF('B - Applicant'!AK81=\"\",\"\",'B - Applicant'!AK81)","v":""}]
["B35",null,null,"AGP1 OrgDoc1, AGP1 OrgDoc2, etc.",null,null,null,null,null,null,"Reference Applicant Org Docs worksheet.",null,null,null,null,null,null,null,null,null,null,null,null,null,null,null,null,null,null,null,null,null,null,null,null,{"$f":"IF('B - Applicant'!AK82=\"\",\"\",'B - Applicant'!AK82)","v":""}]
["B36",null,null,"AGP1 OrgChart",null,null,null,null,null,null,"Must depict the Organizational Structure of the entities in relation to the applicant.",null,null,null,null,null,null,null,null,null,null,null,null,null,null,null,null,null,null,null,null,null,null,null,null,{"$f":"IF('B - Applicant'!AK83=\"\",\"\",'B - Applicant'!AK83)","v":""}]
["B37",null,null,"AGP1 Signature Block",null,null,null,null,null,null,"Signature Block - upload in Microsoft Word Document.",null,null,null,null,null,null,null,null,null,null,null,null,null,null,null,null,null,null,null,null,null,null,null,null,{"$f":"IF('B - Applicant'!AK84=\"\",\"\",'B - Applicant'!AK84)","v":""}]
["B38",null,null,"AGP1 Payee Data or TIN",null,null,null,null,null,null,"Reference Payee Data Record STD-204 & Taxpayer Identification Number Documents on the HHC webpage.",null,null,null,null,null,null,null,null,null,null,null,null,null,null,null,null,null,null,null,null,null,null,null,null,{"$f":"IF('B - Applicant'!AK85=\"\",\"\",'B - Applicant'!AK85)","v":""}]
["B39",null,null,"AGP2 Cert & Legal Disclosure",null,null,null,null,null,null,"Reference 'Certifications & Legal Status' Worksheet.",null,null,null,null,null,null,null,null,null,null,null,null,null,null,null,null,null,null,null,null,null,null,null,null,{"$f":"IF('B - Applicant'!AK92=\"\",\"\",'B - Applicant'!AK92)","v":""}]
["B40",null,null,"AGP2 Reso",null,null,null,null,null,null,"Reference HHC webpage for Resolution Document.",null,null,null,null,null,null,null,null,null,null,null,null,null,null,null,null,null,null,null,null,null,null,null,null,{"$f":"IF('B - Applicant'!AK93=\"\",\"\",'B - Applicant'!AK93)","v":""}]
["B41",null,null,"AGP2 OrgDoc1, AGP2 OrgDoc2, etc.",null,null,null,null,null,null,"Reference Applicant Org Docs worksheet.",null,null,null,null,null,null,null,null,null,null,null,null,null,null,null,null,null,null,null,null,null,null,null,null,{"$f":"IF('B - Applicant'!AK94=\"\",\"\",'B - Applicant'!AK94)","v":""}]
["B42",null,null,"AGP2 OrgChart",null,null,null,null,null,null,"Must depict the Organizational Structure of the entities in relation to the applicant.",null,null,null,null,null,null,null,null,null,null,null,null,null,null,null,null,null,null,null,null,null,null,null,null,{"$f":"IF('B - Applicant'!AK95=\"\",\"\",'B - Applicant'!AK95)","v":""}]
["B43",null,null,"AGP2 Signature Block",null,null,null,null,null,null,"Signature Block - upload in Microsoft Word Document.",null,null,null,null,null,null,null,null,null,null,null,null,null,null,null,null,null,null,null,null,null,null,null,null,{"$f":"IF('B - Applicant'!AK96=\"\",\"\",'B - Applicant'!AK96)","v":""}]
["B44",null,null,"AGP2 Payee Data or TIN",null,null,null,null,null,null,"Reference Payee Data Record STD-204 & Taxpayer Identification Number Documents on the HHC webpage.",null,null,null,null,null,null,null,null,null,null,null,null,null,null,null,null,null,null,null,null,null,null,null,null,{"$f":"IF('B - Applicant'!AK97=\"\",\"\",'B - Applicant'!AK97)","v":""}]
["Section C -  Minimum Requirements "]
["Tab#",null,null,"File Name",null,null,null,null,null,null,"File Description",null,null,null,null,null,null,null,null,null,null,null,null,null,null,null,null,null,null,null,null,null,null,null,null,"Attached?"]
["C1",null,null,"Minimum Requirements Worksheet"]
["C2",null,null,"Applicant Exp. 1, 2, 3, etc",null,null,null,null,null,null,"Reference Experience Documentation requirements.",null,null,null,null,null,null,null,null,null,null,null,null,null,null,null,null,null,null,null,null,null,null,null,null,{"$f":"IF('C -  Minimum Requirements'!AK15=\"\",\"\",'C -  Minimum Requirements'!AK15)","v":""}]
["C3",null,null,"LSP Exp. 1, 2, 3, etc.",null,null,null,null,null,null,"Reference Experience Documentation requirements. ",null,null,null,null,null,null,null,null,null,null,null,null,null,null,null,null,null,null,null,null,null,null,null,null,{"$f":"IF('C -  Minimum Requirements'!AK21=\"\",\"\",'C -  Minimum Requirements'!AK21)","v":""}]
["C4",null,null,"Prop Manage Exp. 1, 2, 3, etc.",null,null,null,null,null,null,"Reference Experience Documentation requirements.",null,null,null,null,null,null,null,null,null,null,null,null,null,null,null,null,null,null,null,null,null,null,null,null,{"$f":"IF('C -  Minimum Requirements'!AK27=\"\",\"\",'C -  Minimum Requirements'!AK27)","v":""}]
["C5",null,null,"Site Control ",null,null,null,null,null,null,"Provide documentation of the form of site control selected above meeting UMR §8303.",null,null,null,null,null,null,null,null,null,null,null,null,null,null,null,null,null,null,null,null,null,null,null,null,{"$f":"IF('C -  Minimum Requirements'!AK33=\"\",\"\",'C -  Minimum Requirements'!AK33)","v":""}]
["C6",null,null,"Preliminary Title Report",null,null,null,null,null,null,"Provide a current preliminary report. ",null,null,null,null,null,null,null,null,null,null,null,null,null,null,null,null,null,null,null,null,null,null,null,null,{"$f":"IF('C -  Minimum Requirements'!AK34=\"\",\"\",'C -  Minimum Requirements'!AK34)","v":""}]
["C7",null,null,"Article XXXIV Legal Opinion",null,null,null,null,null,null,"If the Application includes an Article XXXIV legal opinion, provide a copy of legal opinion.",null,null,null,null,null,null,null,null,null,null,null,null,null,null,null,null,null,null,null,null,null,null,null,null,{"$f":"IF('C -  Minimum Requirements'!AK42=\"\",\"\",'C -  Minimum Requirements'!AK42)","v":""}]
["C8",null,null,"Article XXXIV Authority",null,null,null,null,null,null,"If the locality has sufficient Article XXXIV authority, provide documentation per NOFA.",null,null,null,null,null,null,null,null,null,null,null,null,null,null,null,null,null,null,null,null,null,null,null,null,{"$f":"IF('C -  Minimum Requirements'!AK43=\"\",\"\",'C -  Minimum Requirements'!AK43)","v":""}]
["C9",null,null,"Environmental Rpt 1 or 2",null,null,null,null,null,null,"Provide copy of all environmental reports in a separate binder. ",null,null,null,null,null,null,null,null,null,null,null,null,null,null,null,null,null,null,null,null,null,null,null,null,{"$f":"IF('C -  Minimum Requirements'!AK57=\"\",\"\",'C -  Minimum Requirements'!AK57)","v":""}]
["C10",null,null,"Environmental Clearance",null,null,null,null,null,null,"Provide copy of all environmental clearances or Notice of Exemption.",null,null,null,null,null,null,null,null,null,null,null,null,null,null,null,null,null,null,null,null,null,null,null,null,{"$f":"IF('C -  Minimum Requirements'!AK58=\"\",\"\",'C -  Minimum Requirements'!AK58)","v":""}]
["C11",null,null,"Amenities Map",null,null,null,null,null,null,"Provide map with §102(j) & §111(h) amenities, services & public transportation identified.",null,null,null,null,null,null,null,null,null,null,null,null,null,null,null,null,null,null,null,null,null,null,null,null,{"$f":"IF('C -  Minimum Requirements'!AK63=\"\",\"\",'C -  Minimum Requirements'!AK63)","v":""}]
["C12",null,null,"Relocation Plan",null,null,null,null,null,null,"Provide a relocation plan prepared in accordance with 24 CFR 93.352.",null,null,null,null,null,null,null,null,null,null,null,null,null,null,null,null,null,null,null,null,null,null,null,null,{"$f":"IF('C -  Minimum Requirements'!AK68=\"\",\"\",'C -  Minimum Requirements'!AK68)","v":""}]
["C13",null,null,"Gov Board Reso",null,null,null,null,null,null,"Provide a copy of Governing Board Resolution §102(n)(1).",null,null,null,null,null,null,null,null,null,null,null,null,null,null,null,null,null,null,null,null,null,null,null,null,{"$f":"IF('C -  Minimum Requirements'!AK72=\"\",\"\",'C -  Minimum Requirements'!AK72)","v":""}]
["C14",null,null,"Case Manage-Sup Serv",null,null,null,null,null,null,"Memorandum of understanding or commitment letter from either the LSP or a county department to make available to the project’s HHC tenants case management and Supportive Services. §102(n)(2).",null,null,null,null,null,null,null,null,null,null,null,null,null,null,null,null,null,null,null,null,null,null,null,null,{"$f":"IF('C -  Minimum Requirements'!AK73=\"\",\"\",'C -  Minimum Requirements'!AK73)","v":""}]
["C15",null,null,"Pet Own Cert",null,null,null,null,null,null,"Certification that residents of the housing development will be authorized to own or otherwise maintain one or more common household pets pursuant to the Pet Friendly Housing Act of 2017. §102(n)(3).",null,null,null,null,null,null,null,null,null,null,null,null,null,null,null,null,null,null,null,null,null,null,null,null,{"$f":"IF('C -  Minimum Requirements'!AK74=\"\",\"\",'C -  Minimum Requirements'!AK74)","v":""}]
["C16",null,null,"Prop Manage Plan",null,null,null,null,null,null,"Provide a copy of Project's proposed Property Management Plan meeting requirements of §102(n)(5).",null,null,null,null,null,null,null,null,null,null,null,null,null,null,null,null,null,null,null,null,null,null,null,null,{"$f":"IF('C -  Minimum Requirements'!AK75=\"\",\"\",'C -  Minimum Requirements'!AK75)","v":""}]
["C17",null,null,"STD-204",null,null,null,null,null,null,"All Applicants must submit a Payee Data Record (STD-204).",null,null,null,null,null,null,null,null,null,null,null,null,null,null,null,null,null,null,null,null,null,null,null,null,{"$f":"IF('C -  Minimum Requirements'!AK77=\"\",\"\",'C -  Minimum Requirements'!AK77)","v":""}]
["C18",null,null,"Government TIN Form",null,null,null,null,null,null,"Applicants that are a government agency must submit a Government TIN Form.",null,null,null,null,null,null,null,null,null,null,null,null,null,null,null,null,null,null,null,null,null,null,null,null,{"$f":"IF('C -  Minimum Requirements'!AK78=\"\",\"\",'C -  Minimum Requirements'!AK78)","v":""}]
["C19",null,null,"Market Study",null,null,null,null,null,null,"Provide a completed Market Study that meets requirements specified in TCAC Regs §10322(h)(10 prepared within one year of the application due date.",null,null,null,null,null,null,null,null,null,null,null,null,null,null,null,null,null,null,null,null,null,null,null,null,{"$f":"IF('C -  Minimum Requirements'!AK79=\"\",\"\",'C -  Minimum Requirements'!AK79)","v":""}]
["C20",null,null,"Fair Housing Legal Opinion",null,null,null,null,null,null,"Attach a Project-specific legal opinion labeled \"Fair Housing\" with supporting materials describing how the Project complies with fair housing laws. ",null,null,null,null,null,null,null,null,null,null,null,null,null,null,null,null,null,null,null,null,null,null,null,null,{"$f":"IF('C -  Minimum Requirements'!AK92=\"\",\"\",'C -  Minimum Requirements'!AK92)","v":""}]
["C21",null,null,"Letter of Explanation",null,null,null,null,null,null,"Letter of explanation for any \"red\" shaded cells.",null,null,null,null,null,null,null,null,null,null,null,null,null,null,null,null,null,null,null,null,null,null,null,null,{"$f":"IF('C -  Minimum Requirements'!AK104=\"\",\"\",'C -  Minimum Requirements'!AK104)","v":""}]
["Section D - Local & Env Verification "]
["Tab#",null,null,"File Name",null,null,null,null,null,null,null,null,null,null,null,null,null,null,null,null,null,null,null,null,null,null,null,null,null,null,null,null,null,null,null,"Attached?"]
["D1",null,null,"Local & Env Verification Worksheet"]
["Section E - Loan Amount & Unit Mix"]
["Tab#",null,null,"File Name",null,null,null,null,null,null,"File Description",null,null,null,null,null,null,null,null,null,null,null,null,null,null,null,null,null,null,null,null,null,null,null,null,"Attached?"]
["E1",null,null,"Loan Amount & Unit Mix Worksheet"]
["E2",null,null,"Utility Allowance",null,null,null,null,null,null,"Documentation from the local housing authority substantiating the amount of the Utility Allowance used.",null,null,null,null,null,null,null,null,null,null,null,null,null,null,null,null,null,null,null,null,null,null,null,null,{"$f":"IF('E - Loan Amount & Unit Mix'!AK33=\"\",\"\",'E - Loan Amount & Unit Mix'!AK33)","v":""}]
["Section F - Selection Criteria Section"]
["Tab#",null,null,"File Name",null,null,null,null,null,null,"File Description",null,null,null,null,null,null,null,null,null,null,null,null,null,null,null,null,null,null,null,null,null,null,null,null,"Attached?"]
["F1",null,null,"Selection Worksheet"]
["F2",null,null,"Dev Exp 1, 2, 3, etc",null,null,null,null,null,null,"Notice of Completion, Placed in Service, Certificate of Occ. or equivalent.",null,null,null,null,null,null,null,null,null,null,null,null,null,null,null,null,null,null,null,null,null,null,null,null,{"$f":"IF('F - Selection Criteria'!AK13=\"\",\"\",'F - Selection Criteria'!AK13)","v":""}]
["F3",null,null,"Own Exp 1, 2, 3, etc",null,null,null,null,null,null,"Long-term master lease or similar agreement.",null,null,null,null,null,null,null,null,null,null,null,null,null,null,null,null,null,null,null,null,null,null,null,null,{"$f":"IF('F - Selection Criteria'!AK27=\"\",\"\",'F - Selection Criteria'!AK27)","v":""}]
["F4",null,null,"Prop Exp 1, 2, 3, etc",null,null,null,null,null,null,"Attach Property Management Agreement.",null,null,null,null,null,null,null,null,null,null,null,null,null,null,null,null,null,null,null,null,null,null,null,null,{"$f":"IF('F - Selection Criteria'!AK41=\"\",\"\",'F - Selection Criteria'!AK41)","v":""}]
["F5",null,null,"LSP Contracts 1, 2, 3",null,null,null,null,null,null,"Reference documentation requirements in §111(a)(4)(b).",null,null,null,null,null,null,null,null,null,null,null,null,null,null,null,null,null,null,null,null,null,null,null,null,{"$f":"IF('F - Selection Criteria'!AK52=\"\",\"\",'F - Selection Criteria'!AK52)","v":""}]
["F6",null,null,"Part Agency Agmnt",null,null,null,null,null,null,"Executed agreement between the two agencies.",null,null,null,null,null,null,null,null,null,null,null,null,null,null,null,null,null,null,null,null,null,null,null,null,{"$f":"IF('F - Selection Criteria'!AK54=\"\",\"\",'F - Selection Criteria'!AK54)","v":""}]
["F7",null,null,"Outcomes",null,null,null,null,null,null,"Documentation showing outcome measures reported to a govt agency.",null,null,null,null,null,null,null,null,null,null,null,null,null,null,null,null,null,null,null,null,null,null,null,null,{"$f":"IF('F - Selection Criteria'!AK58=\"\",\"\",'F - Selection Criteria'!AK58)","v":""}]
["F8",null,null,"Appraisal",null,null,null,null,null,null,"Attach current appraisal if including a land donation as part of leverage calc. OR if no land donation is included in leverage calc. you may include an appraisal as an optional attachment. ",null,null,null,null,null,null,null,null,null,null,null,null,null,null,null,null,null,null,null,null,null,null,null,null,{"$f":"IF('F - Selection Criteria'!AK93=\"\",\"\",'F - Selection Criteria'!AK93)","v":""}]
["F9",null,null,"Subsidy and source name",null,null,null,null,null,null,"Commitment letter or evidence documenting subsidy.",null,null,null,null,null,null,null,null,null,null,null,null,null,null,null,null,null,null,null,null,null,null,null,null,{"$f":"IF('F - Selection Criteria'!AK108=\"\",\"\",'F - Selection Criteria'!AK108)","v":""}]
["F10",null,null,"Const EFC #1, #2, etc",null,null,null,null,null,null,"Commitment letter or other evidence documenting construction commitments.",null,null,null,null,null,null,null,null,null,null,null,null,null,null,null,null,null,null,null,null,null,null,null,null,{"$f":"IF('F - Selection Criteria'!AK112=\"\",\"\",'F - Selection Criteria'!AK112)","v":""}]
["F11",null,null,"EFC Not Applicable ",null,null,null,null,null,null,"Letter or other evidence documenting construction commitments are not applicable.",null,null,null,null,null,null,null,null,null,null,null,null,null,null,null,null,null,null,null,null,null,null,null,null,{"$f":"IF('F - Selection Criteria'!AK113=\"\",\"\",'F - Selection Criteria'!AK113)","v":""}]
["F12",null,null,"Phase I/II ESA",null,null,null,null,null,null,"Phase I Report, and Phase II Report if required by the Phase I.",null,null,null,null,null,null,null,null,null,null,null,null,null,null,null,null,null,null,null,null,null,null,null,null,{"$f":"IF('F - Selection Criteria'!AK115=\"\",\"\",'F - Selection Criteria'!AK115)","v":""}]
["F13",null,null,"HTF Env Provisions",null,null,null,null,null,null,"HTF Environmental Provisions Checklist",null,null,null,null,null,null,null,null,null,null,null,null,null,null,null,null,null,null,null,null,null,null,null,null,{"$f":"IF('F - Selection Criteria'!AK116=\"\",\"\",'F - Selection Criteria'!AK116)","v":""}]
["F14",null,null,"CEQA",null,null,null,null,null,null,"CEQA Authority to Use Grant Funds and Local Jurisdiction and Environmental Verification of Project Readiness worksheet or letter or other evidence documenting CEQA clearance is not applicable.",null,null,null,null,null,null,null,null,null,null,null,null,null,null,null,null,null,null,null,null,null,null,null,null,{"$f":"IF('F - Selection Criteria'!AK117=\"\",\"\",'F - Selection Criteria'!AK117)","v":""}]
["F15",null,null,"NEPA",null,null,null,null,null,null,"NEPA Authority to Use Grant Funds and Local Jurisdiction and Environmental Verification of Project Readiness worksheet or letter or other evidence documenting NEPA clearance is not applicable.",null,null,null,null,null,null,null,null,null,null,null,null,null,null,null,null,null,null,null,null,null,null,null,null,{"$f":"IF('F - Selection Criteria'!AK118=\"\",\"\",'F - Selection Criteria'!AK118)","v":""}]
["F16",null,null,"Local Jur Ver",null,null,null,null,null,null,"Local Jurisdiction and Environmental Verification of Project Readiness worksheet or letter or other evidence documenting local jurisdiction approvals are not applicable.",null,null,null,null,null,null,null,null,null,null,null,null,null,null,null,null,null,null,null,null,null,null,null,null,{"$f":"IF('F - Selection Criteria'!AK121=\"\",\"\",'F - Selection Criteria'!AK121)","v":""}]
["F17",null,null,"Site Control Prelim",null,null,null,null,null,null,"Provide Preliminary Title Report.",null,null,null,null,null,null,null,null,null,null,null,null,null,null,null,null,null,null,null,null,null,null,null,null,{"$f":"IF('F - Selection Criteria'!AK125=\"\",\"\",'F - Selection Criteria'!AK125)","v":""}]
["F18",null,null,"Site Control Cert. Working Drawings",null,null,null,null,null,null,"Provide working drawings that are at least 50% complete as certified by the project architect.",null,null,null,null,null,null,null,null,null,null,null,null,null,null,null,null,null,null,null,null,null,null,null,null,{"$f":"IF('F - Selection Criteria'!AK126=\"\",\"\",'F - Selection Criteria'!AK126)","v":""}]
["F19",null,null,"Local Approvals",null,null,null,null,null,null,"Attach documentation of local approvals requested above.",null,null,null,null,null,null,null,null,null,null,null,null,null,null,null,null,null,null,null,null,null,null,null,null,{"$f":"IF('F - Selection Criteria'!AK128=\"\",\"\",'F - Selection Criteria'!AK128)","v":""}]
["F20",null,null,"Design Review Not Applicable ",null,null,null,null,null,null,"Letter or other evidence documenting design review is not applicable.",null,null,null,null,null,null,null,null,null,null,null,null,null,null,null,null,null,null,null,null,null,null,null,null,{"$f":"IF('F - Selection Criteria'!AK129=\"\",\"\",'F - Selection Criteria'!AK129)","v":""}]
["F21",null,null,"Perm EFC #1, #2, etc",null,null,null,null,null,null,"Commitment letter or other evidence documenting deferred-payment permanent financing commitments.",null,null,null,null,null,null,null,null,null,null,null,null,null,null,null,null,null,null,null,null,null,null,null,null,{"$f":"IF('F - Selection Criteria'!AK131=\"\",\"\",'F - Selection Criteria'!AK131)","v":""}]
["F22",null,null,"Perm EFC #1, #2, etc Not Applicable ",null,null,null,null,null,null,"Letter or other evidence documenting permanent financing commitments are not applicable.",null,null,null,null,null,null,null,null,null,null,null,null,null,null,null,null,null,null,null,null,null,null,null,null,{"$f":"IF('F - Selection Criteria'!AK132=\"\",\"\",'F - Selection Criteria'!AK132)","v":""}]
["F23",null,null,"CoC Certification of PIT Count",null,null,null,null,null,null,"Letter or other evidence documenting latest PIT Count certified by CoC.",null,null,null,null,null,null,null,null,null,null,null,null,null,null,null,null,null,null,null,null,null,null,null,null,{"$f":"IF('F - Selection Criteria'!AK135=\"\",\"\",'F - Selection Criteria'!AK135)","v":""}]
["F24",null,null,"Transit Service",null,null,null,null,null,null,"Transit service schedule supporting the transit service area. All transit service schedules should be saved as one document, for item (1).",null,null,null,null,null,null,null,null,null,null,null,null,null,null,null,null,null,null,null,null,null,null,null,null,{"$f":"IF('F - Selection Criteria'!AK144=\"\",\"\",'F - Selection Criteria'!AK144)","v":""}]
["F25",null,null,"Map",null,null,null,null,null,null,"Map demonstrating proximity, for items (1) and (2) to be eligible for points.",null,null,null,null,null,null,null,null,null,null,null,null,null,null,null,null,null,null,null,null,null,null,null,null,{"$f":"IF('F - Selection Criteria'!AK145=\"\",\"\",'F - Selection Criteria'!AK145)","v":""}]
["Section G - Supportive Services Plan Section"]
["Tab#",null,null,"File Name",null,null,null,null,null,null,"File Description",null,null,null,null,null,null,null,null,null,null,null,null,null,null,null,null,null,null,null,null,null,null,null,null,"Attached?"]
["G1",null,null,"Supportive Services Worksheet"]
["G2",null,null,"Supportive Services Plan",null,null,null,null,null,null,"Provide a copy of the Project's proposed Supportive Services Plan meeting the requirements of §112(c).",null,null,null,null,null,null,null,null,null,null,null,null,null,null,null,null,null,null,null,null,null,null,null,null,{"$f":"IF('G - Supportive Services'!AK17=\"\",\"\",'G - Supportive Services'!AK17)","v":""}]
["G3",null,null,"SP Org Chart-Resumes",null,null,null,null,null,null,"Attach provider organization chart, staff resumes, and staff duty statements. ",null,null,null,null,null,null,null,null,null,null,null,null,null,null,null,null,null,null,null,null,null,null,null,null,{"$f":"IF('G - Supportive Services'!AK32=\"\",\"\",'G - Supportive Services'!AK32)","v":""}]
["G4",null,null,"SSP MOU",null,null,null,null,null,null,"Attach copies of draft written agreements or Memoranda of Understanding (MOU) which identify the roles and responsibilities of the County, project owner, other service provider(s), and the property manager.",null,null,null,null,null,null,null,null,null,null,null,null,null,null,null,null,null,null,null,null,null,null,null,null,{"$f":"IF('G - Supportive Services'!AK117=\"\",\"\",'G - Supportive Services'!AK117)","v":""}]
["Section H - Certification Section"]
["Tab#",null,null,"File Name",null,null,null,null,null,null,null,null,null,null,null,null,null,null,null,null,null,null,null,null,null,null,null,null,null,null,null,null,null,null,null,"Attached?"]
["H1",null,null,"Certification Worksheet"]

{"sheet":"B - Applicant","index":3,"n_rows":137,"n_cols":36,"rows_kept":137,"cut":false,"hidden":false,"merged":[[48,0,48,37],[8,5,8,11],[8,12,8,29],[8,30,8,35],[8,36,8,37],[8,0,8,2],[8,3,8,4],[0,0,0,34],[0,35,0,37],[46,0,46,2],[46,11,46,31],[46,32,46,35],[46,36,46,37],[47,0,47,2],[47,11,47,29],[47,30,47,35],[47,36,47,37],[46,3,46,4],[46,5,46,10],[47,3,47,4],[47,5,47,10],[44,0,44,2],[44,11,44,31],[44,32,44,35],[136,0,136,1],[136,2,136,6],[136,7,136,8],[136,9,136,20],[136,22,136,28],[136,29,136,30],[133,31,133,32],[133,34,133,37],[135,0,135,2],[135,3,135,14],[135,15,135,17],[135,18,135,26],[135,27,135,29],[135,30,135,37],[133,0,133,1],[133,2,133,6],[133,7,133,8],[133,9,133,20],[133,22,133,28],[133,29,133,30],[136,31,136,32],[136,34,136,37],[134,0,134,37],[132,0,132,2],[132,3,132,14],[132,15,132,17],[132,18,132,26],[132,27,132,29],[132,30,132,37],[130,0,130,1],[130,2,130,6],[130,7,130,8],[130,9,130,20],[130,22,130,28],[130,29,130,30],[130,31,130,32],[130,34,130,37],[131,0,131,37],[129,0,129,2],[129,3,129,14],[129,15,129,17],[129,18,129,26],[129,27,129,29],[129,30,129,37],[127,0,127,1],[127,2,127,6],[127,7,127,8],[127,9,127,20],[127,22,127,28],[127,29,127,30],[127,31,127,32],[127,34,127,37],[128,0,128,37],[126,0,126,2],[126,3,126,14],[126,15,126,17],[126,18,126,26],[126,27,126,29],[126,30,126,37],[124,0,124,1],[124,2,124,6],[124,7,124,8],[124,9,124,20],[124,22,124,28],[124,29,124,30],[124,31,124,32],[124,34,124,37],[125,0,125,37],[123,0,123,2],[123,3,123,14],[123,15,123,17],[123,18,123,26],[123,27,123,29],[123,30,123,37],[121,0,121,1],[121,2,121,6],[121,7,121,8],[121,9,121,20],[121,22,121,28],[121,29,121,30],[121,31,121,32],[121,34,121,37],[122,0,122,37],[120,0,120,2],[120,3,120,14],[120,15,120,17],[120,18,120,26],[120,27,120,29],[120,30,120,37],[118,0,118,1],[118,2,118,6],[118,7,118,8],[118,9,118,20],[118,22,118,28],[118,29,118,30],[118,31,118,32],[118,34,118,37],[119,0,119,37],[117,0,117,2],[117,3,117,14],[117,15,117,17],[117,18,117,26],[117,27,117,29],[117,30,117,37],[115,0,115,1],[115,2,115,6],[115,7,115,8],[115,9,115,20],[115,22,115,28],[115,29,115,30],[115,31,115,32],[115,34,115,37],[116,0,116,37],[114,0,114,2],[114,3,114,14],[114,15,114,17],[114,18,114,26],[114,27,114,29],[114,30,114,37],[112,0,112,1],[112,2,112,6],[112,7,112,8],[112,9,112,20],[112,22,112,28],[112,29,112,30],[112,31,112,32],[112,34,112,37],[113,0,113,37],[111,0,111,2],[111,3,111,14],[111,15,111,17],[111,18,111,26],[111,27,111,29],[111,30,111,37],[109,0,109,1],[109,2,109,6],[109,7,109,8],[109,9,109,20],[109,22,109,28],[109,29,109,30],[109,31,109,32],[109,34,109,37],[110,0,110,37],[106,34,106,37],[108,0,108,2],[108,3,108,14],[108,15,108,17],[108,18,108,26],[108,27,108,29],[108,30,108,37],[106,0,106,1],[106,2,106,6],[106,7,106,8],[106,9,106,20],[106,22,106,28],[106,29,106,30],[106,31,106,32],[107,0,107,37],[103,31,103,32],[103,34,103,37],[105,0,105,2],[105,3,105,14],[105,15,105,17],[105,18,105,26],[105,27,105,29],[105,30,105,37],[103,0,103,1],[103,2,103,6],[103,7,103,8],[103,9,103,20],[103,22,103,28],[103,29,103,30],[100,31,100,32],[100,34,100,37],[102,0,102,2],[102,3,102,14],[102,15,102,17],[102,18,102,26],[102,27,102,29],[102,30,102,37],[100,0,100,1],[100,2,100,6],[100,7,100,8],[100,9,100,20],[100,22,100,28],[100,29,100,30],[99,0,99,2],[99,3,99,14],[99,15,99,17],[99,18,99,26],[99,27,99,29],[99,30,99,37],[95,0,95,2],[95,11,95,31],[95,32,95,35],[95,36,95,37],[96,0,96,2],[96,11,96,29],[96,30,96,35],[96,36,96,37],[97,0,97,37],[95,3,95,4],[95,5,95,10],[96,3,96,4],[96,5,96,10],[93,0,93,2],[93,11,93,31],[93,32,93,35],[93,36,93,37],[94,0,94,2],[94,11,94,31],[94,32,94,35],[94,36,94,37],[93,3,93,4],[93,5,93,10],[94,3,94,4],[94,5,94,10],[91,0,91,2],[92,0,92,2],[91,11,91,29],[91,30,91,35],[91,36,91,37],[92,11,92,29],[92,30,92,35],[92,36,92,37],[91,3,91,4],[91,5,91,10],[92,3,92,4],[92,5,92,10],[90,0,90,1],[90,2,90,20],[90,22,90,27],[90,28,90,29],[90,30,90,32],[90,34,90,37],[88,34,88,37],[89,0,89,2],[89,3,89,11],[89,13,89,19],[89,20,89,22],[89,23,89,30],[89,31,89,32],[89,33,89,37],[88,0,88,3],[88,4,88,12],[88,14,88,19],[88,20,88,24],[88,25,88,31],[88,32,88,33],[86,0,86,2],[86,3,86,25],[86,26,86,29],[86,30,86,37],[87,0,87,1],[87,2,87,20],[87,22,87,27],[87,28,87,29],[87,30,87,32],[87,34,87,37],[83,0,83,2],[83,11,83,31],[83,32,83,35],[83,36,83,37],[84,0,84,2],[84,11,84,29],[84,30,84,35],[84,36,84,37],[83,3,83,4],[83,5,83,10],[84,3,84,4],[84,5,84,10],[81,0,81,2],[81,11,81,31],[81,32,81,35],[81,36,81,37],[82,0,82,2],[82,11,82,31],[82,32,82,35],[82,36,82,37],[81,3,81,4],[81,5,81,10],[82,3,82,4],[82,5,82,10],[79,0,79,2],[80,0,80,2],[79,11,79,29],[79,30,79,35],[79,36,79,37],[80,11,80,29],[80,30,80,35],[80,36,80,37],[79,3,79,4],[79,5,79,10],[80,3,80,4],[80,5,80,10],[78,0,78,1],[78,2,78,20],[78,22,78,27],[78,28,78,29],[78,30,78,32],[78,34,78,37],[76,34,76,37],[77,0,77,2],[77,3,77,11],[77,13,77,19],[77,20,77,22],[77,23,77,30],[77,31,77,32],[77,33,77,37],[76,0,76,3],[76,4,76,12],[76,14,76,19],[76,20,76,24],[76,25,76,31],[76,32,76,33],[74,0,74,2],[74,3,74,25],[74,26,74,29],[74,30,74,37],[75,0,75,1],[75,2,75,20],[75,22,75,27],[75,28,75,29],[75,30,75,32],[75,34,75,37],[71,0,71,2],[71,11,71,31],[71,32,71,35],[71,36,71,37],[72,0,72,2],[72,11,72,29],[72,30,72,35],[72,36,72,37],[71,3,71,4],[71,5,71,10],[72,3,72,4],[72,5,72,10],[69,0,69,2],[69,11,69,31],[69,32,69,35],[69,36,69,37],[70,0,70,2],[70,11,70,31],[70,32,70,35],[70,36,70,37],[69,3,69,4],[69,5,69,10],[70,3,70,4],[70,5,70,10],[67,0,67,2],[68,0,68,2],[67,11,67,29],[67,30,67,35],[67,36,67,37],[68,11,68,29],[68,30,68,35],[68,36,68,37],[67,3,67,4],[67,5,67,10],[68,3,68,4],[68,5,68,10],[66,0,66,1],[66,2,66,20],[66,22,66,27],[66,28,66,29],[66,30,66,32],[66,34,66,37],[64,34,64,37],[65,0,65,2],[65,3,65,11],[65,13,65,19],[65,20,65,22],[65,23,65,30],[65,31,65,32],[65,33,65,37],[64,0,64,3],[64,4,64,12],[64,14,64,19],[64,20,64,24],[64,25,64,31],[64,32,64,33],[62,0,62,2],[62,3,62,25],[62,26,62,29],[62,30,62,37],[63,0,63,1],[63,2,63,20],[63,22,63,27],[63,28,63,29],[63,30,63,32],[63,34,63,37],[59,0,59,2],[59,11,59,31],[59,32,59,35],[59,36,59,37],[60,0,60,2],[60,11,60,29],[60,30,60,35],[60,36,60,37],[59,3,59,4],[59,5,59,10],[60,3,60,4],[60,5,60,10],[57,0,57,2],[57,11,57,31],[57,32,57,35],[57,36,57,37],[58,0,58,2],[58,11,58,31],[58,32,58,35],[58,36,58,37],[57,3,57,4],[57,5,57,10],[58,3,58,4],[58,5,58,10],[55,0,55,2],[56,0,56,2],[55,11,55,29],[55,30,55,35],[55,36,55,37],[56,11,56,29],[56,30,56,35],[56,36,56,37],[55,3,55,4],[55,5,55,10],[56,3,56,4],[56,5,56,10],[53,33,53,37],[54,0,54,1],[54,2,54,20],[54,22,54,27],[54,28,54,29],[54,30,54,32],[54,34,54,37],[53,0,53,2],[53,3,53,11],[53,13,53,19],[53,20,53,22],[53,23,53,29],[53,30,53,32],[51,34,51,37],[52,0,52,3],[52,4,52,12],[52,14,52,19],[52,20,52,24],[52,25,52,31],[52,32,52,33],[52,34,52,37],[50,0,50,2],[50,3,50,25],[50,26,50,29],[50,30,50,37],[51,0,51,1],[51,2,51,20],[51,22,51,27],[51,28,51,29],[51,30,51,32],[44,36,44,37],[45,0,45,2],[45,11,45,31],[45,32,45,35],[45,36,45,37],[44,3,44,4],[44,5,44,10],[45,3,45,4],[45,5,45,10],[42,0,42,2],[43,0,43,2],[42,11,42,29],[42,30,42,35],[42,36,42,37],[43,11,43,29],[43,30,43,35],[43,36,43,37],[42,3,42,4],[42,5,42,10],[43,3,43,4],[43,5,43,10],[41,0,41,1],[41,2,41,20],[41,22,41,27],[41,28,41,29],[41,30,41,32],[41,34,41,37],[39,34,39,37],[40,0,40,2],[40,3,40,11],[40,13,40,19],[40,20,40,22],[40,23,40,30],[40,31,40,32],[40,33,40,37],[39,0,39,3],[39,4,39,12],[39,14,39,19],[39,20,39,24],[39,25,39,31],[39,32,39,33],[38,0,38,1],[38,2,38,20],[38,22,38,27],[38,28,38,29],[38,30,38,32],[38,34,38,37],[36,0,36,10],[36,11,36,13],[36,14,36,37],[37,0,37,10],[37,11,37,27],[37,28,37,31],[37,32,37,37],[34,0,34,2],[34,11,34,31],[34,32,34,35],[34,36,34,37],[35,0,35,2],[35,11,35,29],[35,30,35,35],[35,36,35,37],[34,5,34,10],[34,3,34,4],[35,5,35,10],[35,3,35,4],[32,0,32,2],[32,11,32,31],[32,32,32,35],[32,36,32,37],[33,0,33,2],[33,11,33,31],[33,32,33,35],[33,36,33,37],[32,5,32,10],[32,3,32,4],[33,5,33,10],[33,3,33,4],[30,0,30,2],[31,0,31,2],[30,11,30,29],[30,30,30,35],[30,36,30,37],[31,11,31,29],[31,30,31,35],[31,36,31,37],[30,5,30,10],[30,3,30,4],[31,5,31,10],[31,3,31,4],[29,0,29,1],[29,2,29,20],[29,22,29,27],[29,28,29,29],[29,30,29,32],[29,34,29,37],[27,34,27,37],[28,0,28,2],[28,3,28,11],[28,13,28,19],[28,20,28,22],[28,23,28,30],[28,31,28,32],[28,33,28,37],[27,0,27,3],[27,4,27,12],[27,14,27,19],[27,20,27,24],[27,25,27,31],[27,32,27,33],[22,0,22,2],[22,11,22,31],[22,32,22,35],[22,36,22,37],[23,0,23,2],[26,0,26,1],[26,2,26,20],[26,22,26,27],[26,28,26,29],[26,30,26,32],[26,34,26,37],[24,0,24,10],[24,11,24,13],[24,14,24,37],[25,0,25,10],[25,11,25,27],[23,30,23,35],[23,36,23,37],[23,11,23,29],[22,3,22,4],[23,3,23,4],[22,5,22,10],[23,5,23,10],[20,0,20,2],[20,11,20,31],[20,32,20,35],[20,36,20,37],[21,0,21,2],[21,11,21,31],[21,32,21,35],[21,36,21,37],[20,3,20,4],[21,3,21,4],[20,5,20,10],[21,5,21,10],[18,0,18,2],[19,0,19,2],[17,0,17,1],[17,2,17,20],[17,22,17,27],[17,28,17,29],[17,30,17,32],[18,30,18,35],[17,34,17,37],[18,36,18,37],[18,11,18,29],[19,11,19,29],[19,30,19,35],[19,36,19,37],[19,3,19,4],[19,5,19,10],[18,3,18,4],[18,5,18,10],[14,0,14,1],[14,2,14,20],[14,22,14,27],[14,28,14,29],[14,30,14,32],[15,34,15,37],[16,0,16,2],[16,3,16,11],[16,13,16,19],[16,20,16,22],[16,23,16,30],[16,31,16,32],[16,33,16,37],[15,0,15,3],[15,4,15,12],[15,14,15,19],[15,20,15,24],[15,25,15,31],[15,32,15,33],[13,0,13,10],[13,11,13,27],[13,28,13,31],[13,32,13,37],[10,0,10,37],[4,11,4,12],[4,13,4,16],[4,18,4,21],[4,22,4,23],[6,0,6,35],[6,36,6,37],[7,0,7,25],[7,26,7,37],[11,0,11,37],[5,0,5,35],[5,36,5,37],[1,0,1,37],[49,0,49,37],[104,0,104,37],[101,0,101,37],[98,0,98,37],[85,0,85,37],[73,0,73,37],[61,0,61,37],[2,0,2,3],[2,4,2,37],[3,0,3,3],[3,4,3,37],[25,28,25,31],[25,32,25,37],[9,0,9,37],[4,24,4,32],[4,33,4,34],[4,35,4,37],[4,0,4,3],[4,4,4,10],[14,34,14,37],[12,0,12,10],[12,11,12,13],[12,14,12,37]]}
["Applicant Contact Worksheet",null,null,null,null,null,null,null,null,null,null,null,null,null,null,null,null,null,null,null,null,null,null,null,null,null,null,null,null,null,null,null,null,null,null,"Rev. 3/4/20"]
["Project"]
["Project Name:"]
["Project Address:"]
["Project City:",null,null,null,null,null,null,null,null,null,null,"County:",null,null,null,null,null,"Zip:",null,null,null,null,"CoC:",null,{"$f":"_xlfn.IFNA(VLOOKUP('B - Applicant'!N5,Dropdowns!A2:B59,2,FALSE),\"\")","v":""},null,null,null,null,null,null,null,null,"CoC#:",null,{"$f":"_xlfn.IFNA(VLOOKUP(Y5,Dropdowns!B2:C59,2,FALSE),\"\")","v":""}]
["Will this be a TCAC hybrid Project?"]
["Is Project in a Rural Area as defined by H&S Code §50199.21. Applicants must use the TCAC Method for determining rural status. Reference document on the MHP webpage and include documentation of rural status."]
["If Project is in a Rural Area, which methodology is being used to demonstrate that the project area is rural?"]
["File Name:",null,null,"B2",null,"Rural Status",null,null,null,null,null,null,"TCAC Method for determining rural status.",null,null,null,null,null,null,null,null,null,null,null,null,null,null,null,null,null,"Attached and on USB?"]
["Projects must meet ALL of the following minimum requirements. Answers provided to the questions below are subject to verification by HCD. HCD may request other information as necessary to evaluate the Application. All references to Guidelines and Sections '§' within this Application, refer to the HHC Program Guidelines located on the HHC webpage unless otherwise noted."]
["Applicant(s)"]
["Elligble Applicants are an owner or developer that meets the Recipient definition in Code of Federal Regulations (CFR) Title 24 §93.2,  §102(a)."]
["Applicant #1",null,null,null,null,null,null,null,null,null,null,"Entity Name:"]
["Eligible Applicant Type:",null,null,null,null,null,null,null,null,null,null,null,null,null,null,null,null,null,null,null,null,null,null,null,null,null,null,null,"Organization Type:"]
["Address",null,null,null,null,null,null,null,null,null,null,null,null,null,null,null,null,null,null,null,null,"City",null,null,null,null,null,null,"State",null,null,null,null,"Zip"]
["Auth Rep Name",null,null,null,null,null,null,null,null,null,null,null,null,"Title",null,null,null,null,null,null,"Email",null,null,null,null,null,null,null,null,null,null,null,"Phone"]
["Contact Name",null,null,null,null,null,null,null,null,null,null,null,"Title",null,null,null,null,null,null,null,"Email",null,null,null,null,null,null,null,null,null,null,"Phone"]
["Address",null,null,null,null,null,null,null,null,null,null,null,null,null,null,null,null,null,null,null,null,"City",null,null,null,null,null,null,"State",null,null,null,null,"Zip"]
["File Name:",null,null,{"$f":"'Application Checklist'!A27","v":"B3"},null,"App1 Cert & Legal Disclosure",null,null,null,null,null,"Reference 'Certifications & Legal Status' Worksheet.",null,null,null,null,null,null,null,null,null,null,null,null,null,null,null,null,null,null,"Attached and on USB?"]
["File Name:",null,null,{"$f":"'Application Checklist'!A28","v":"B4"},null,"App1 Reso",null,null,null,null,null,"Reference HHC webpage for Resolution Document.",null,null,null,null,null,null,null,null,null,null,null,null,null,null,null,null,null,null,"Attached and on USB?"]
["File Name:",null,null,{"$f":"'Application Checklist'!A29","v":"B5"},null,"App1 OrgDoc1, App1 OrgDoc2, etc.",null,null,null,null,null,"Reference Applicant Org Docs worksheet.",null,null,null,null,null,null,null,null,null,null,null,null,null,null,null,null,null,null,null,null,"Files Uploaded?"]
["File Name:",null,null,{"$f":"'Application Checklist'!A30","v":"B6"},null,"App1 OrgChart",null,null,null,null,null,"Must depict the Organizational Structure of the entities in relation to the applicant.",null,null,null,null,null,null,null,null,null,null,null,null,null,null,null,null,null,null,null,null,"Files Uploaded?"]
["File Name:",null,null,{"$f":"'Application Checklist'!A31","v":"B7"},null,"App1 Signature Block",null,null,null,null,null,"Signature Block - upload in Microsoft Word Document.",null,null,null,null,null,null,null,null,null,null,null,null,null,null,null,null,null,null,null,null,"File Uploaded?"]
["File Name:",null,null,{"$f":"'Application Checklist'!A32","v":"B8"},null,"App1 Payee Data or TIN",null,null,null,null,null,"Reference Payee Data Record STD-204 & Taxpayer Identification Number Documents on the HHC webpage.",null,null,null,null,null,null,null,null,null,null,null,null,null,null,null,null,null,null,"Attached and on USB?"]
["Applicant #2 ",null,null,null,null,null,null,null,null,null,null,"Entity Name:"]
["Eligible Applicant Type:",null,null,null,null,null,null,null,null,null,null,null,null,null,null,null,null,null,null,null,null,null,null,null,null,null,null,null,"Organization Type:"]
["Address",null,null,null,null,null,null,null,null,null,null,null,null,null,null,null,null,null,null,null,null,"City",null,null,null,null,null,null,"State",null,null,null,null,"Zip"]
["Auth Rep Name",null,null,null,null,null,null,null,null,null,null,null,null,"Title",null,null,null,null,null,null,"Authorized Rep. Email",null,null,null,null,null,null,null,null,null,null,null,"Phone"]
["Contact Name",null,null,null,null,null,null,null,null,null,null,null,"Title",null,null,null,null,null,null,null,"Contact Email",null,null,null,null,null,null,null,null,null,null,"Phone"]
["Address",null,null,null,null,null,null,null,null,null,null,null,null,null,null,null,null,null,null,null,null,"City",null,null,null,null,null,null,"State",null,null,null,null,"Zip"]
["File Name:",null,null,{"$f":"'Application Checklist'!A33","v":"B9"},null,"App2 Cert & Legal Disclosure",null,null,null,null,null,"Reference 'Certifications & Legal Status' Worksheet.",null,null,null,null,null,null,null,null,null,null,null,null,null,null,null,null,null,null,"Attached and on USB?"]
["File Name:",null,null,{"$f":"'Application Checklist'!A34","v":"B10"},null,"App2 Reso",null,null,null,null,null,"Reference HHC webpage for Resolution Document.",null,null,null,null,null,null,null,null,null,null,null,null,null,null,null,null,null,null,"Attached and on USB?"]
["File Name:",null,null,{"$f":"'Application Checklist'!A35","v":"B11"},null,"App2 OrgDoc2, App2 OrgDoc2, etc.",null,null,null,null,null,"Reference Applicant Org Docs worksheet.",null,null,null,null,null,null,null,null,null,null,null,null,null,null,null,null,null,null,null,null,"Files Uploaded?"]
["File Name:",null,null,{"$f":"'Application Checklist'!A36","v":"B12"},null,"App2 OrgChart",null,null,null,null,null,"Must depict the Organizational Structure of the entities in relation to the applicant.",null,null,null,null,null,null,null,null,null,null,null,null,null,null,null,null,null,null,null,null,"Files Uploaded?"]
["File Name:",null,null,{"$f":"'Application Checklist'!A37","v":"B13"},null,"App2 Signature Block",null,null,null,null,null,"Signature Block - upload in Microsoft Word Document.",null,null,null,null,null,null,null,null,null,null,null,null,null,null,null,null,null,null,null,null,"File Uploaded?"]
["File Name:",null,null,{"$f":"'Application Checklist'!A38","v":"B14"},null,"App2 Payee Data or TIN",null,null,null,null,null,"Reference Payee Data Record STD-204 & Taxpayer Identification Number Documents on the HHC webpage.",null,null,null,null,null,null,null,null,null,null,null,null,null,null,null,null,null,null,"Attached and on USB?"]
["Applicant #3 ",null,null,null,null,null,null,null,null,null,null,"Entity Name:"]
["Eligible Applicant Type:",null,null,null,null,null,null,null,null,null,null,null,null,null,null,null,null,null,null,null,null,null,null,null,null,null,null,null,"Organization Type:"]
["Address",null,null,null,null,null,null,null,null,null,null,null,null,null,null,null,null,null,null,null,null,"City",null,null,null,null,null,null,"State",null,null,null,null,"Zip"]
["Auth Rep Name",null,null,null,null,null,null,null,null,null,null,null,null,"Title",null,null,null,null,null,null,"Authorized Rep. Email",null,null,null,null,null,null,null,null,null,null,null,"Phone"]
["Contact Name",null,null,null,null,null,null,null,null,null,null,null,"Title",null,null,null,null,null,null,null,"Contact Email",null,null,null,null,null,null,null,null,null,null,"Phone"]
["Address",null,null,null,null,null,null,null,null,null,null,null,null,null,null,null,null,null,null,null,null,"City",null,null,null,null,null,null,"State",null,null,null,null,"Zip"]
["File Name:",null,null,{"$f":"'Application Checklist'!A39","v":"B15"},null,"App3 Cert & Legal Disclosure",null,"App3 Cert & Legal Disclosure",null,"App3 Cert & Legal Disclosure",null,"Reference 'Certifications & Legal Status' Worksheet.",null,null,null,null,null,null,null,null,null,null,null,null,null,null,null,null,null,null,"Attached and on USB?"]
["File Name:",null,null,{"$f":"'Application Checklist'!A40","v":"B16"},null,"App3 Reso",null,"App3 Reso",null,"App3 Reso",null,"Reference HHC webpage for Resolution Document.",null,null,null,null,null,null,null,null,null,null,null,null,null,null,null,null,null,null,"Attached and on USB?"]
["File Name:",null,null,{"$f":"'Application Checklist'!A41","v":"B17"},null,"App3 OrgDoc3, App3 OrgDoc2, etc.",null,"App3 OrgDoc3, App3 OrgDoc2, etc.",null,"App3 OrgDoc3, App3 OrgDoc2, etc.",null,"Reference Applicant Org Docs worksheet.",null,null,null,null,null,null,null,null,null,null,null,null,null,null,null,null,null,null,null,null,"Files Uploaded?"]
["File Name:",null,null,{"$f":"'Application Checklist'!A42","v":"B18"},null,"App3 OrgChart",null,"App3 OrgChart",null,"App3 OrgChart",null,"Must depict the Organizational Structure of the entities in relation to the applicant.",null,null,null,null,null,null,null,null,null,null,null,null,null,null,null,null,null,null,null,null,"Files Uploaded?"]
["File Name:",null,null,{"$f":"'Application Checklist'!A43","v":"B19"},null,"App3 Signature Block",null,"App3 Signature Block",null,"App3 Signature Block",null,"Signature Block - upload in Microsoft Word Document.",null,null,null,null,null,null,null,null,null,null,null,null,null,null,null,null,null,null,null,null,"File Uploaded?"]
["File Name:",null,null,{"$f":"'Application Checklist'!A44","v":"B20"},null,"App3 Payee Data or TIN",null,"App3 Payee Data",null,"App3 Payee Data",null,"Reference Payee Data Record STD-204 & Taxpayer Identification Number Documents on the HHC webpage.",null,null,null,null,null,null,null,null,null,null,null,null,null,null,null,null,null,null,"Attached and on USB?"]
["Development Team Contacts"]
["Owner/Borrower Entity"]
["Legal Name",null,null,null,null,null,null,null,null,null,null,null,null,null,null,null,null,null,null,null,null,null,null,null,null,null,"Organization Type"]
["Address",null,null,null,null,null,null,null,null,null,null,null,null,null,null,null,null,null,null,null,null,"City",null,null,null,null,null,null,"State",null,null,null,null,"Zip"]
["Auth Rep Name",null,null,null,null,null,null,null,null,null,null,null,null,"Title",null,null,null,null,null,null,"Authorized Rep. Email",null,null,null,null,null,null,null,null,null,null,null,"Phone"]
["Contact Name",null,null,null,null,null,null,null,null,null,null,null,"Title",null,null,null,null,null,null,null,"Contact Email",null,null,null,null,null,null,null,null,null,"Contact Phone"]
["Address",null,null,null,null,null,null,null,null,null,null,null,null,null,null,null,null,null,null,null,null,"City",null,null,null,null,null,null,"State",null,null,null,null,"Zip"]
["File Name:",null,null,{"$f":"'Application Checklist'!A45","v":"B21"},null,"Owner Cert & Legal Disclosure",null,"Owner Cert & Legal Disclosure",null,"Owner Cert & Legal Disclosure",null,"Reference 'Certifications & Legal Status' Worksheet.",null,null,null,null,null,null,null,null,null,null,null,null,null,null,null,null,null,null,"Attached and on USB?"]
["File Name:",null,null,{"$f":"'Application Checklist'!A46","v":"B22"},null,"Owner Reso",null,"Owner Reso",null,"Owner Reso",null,"Reference HHC webpage for Resolution Document.",null,null,null,null,null,null,null,null,null,null,null,null,null,null,null,null,null,null,"Attached and on USB?"]
["File Name:",null,null,{"$f":"'Application Checklist'!A47","v":"B23"},null,"Owner OrgDoc1, Owner OrgDoc2, etc.",null,"Owner OrgDoc1, Owner OrgDoc2, etc.",null,"Owner OrgDoc1, Owner OrgDoc2, etc.",null,"Reference Applicant Org Docs worksheet.",null,null,null,null,null,null,null,null,null,null,null,null,null,null,null,null,null,null,null,null,"Files Uploaded?"]
["File Name:",null,null,{"$f":"'Application Checklist'!A48","v":"B24"},null,"Owner OrgChart",null,"Owner OrgChart",null,"Owner OrgChart",null,"Must depict the Organizational Structure of the entities in relation to the applicant.",null,null,null,null,null,null,null,null,null,null,null,null,null,null,null,null,null,null,null,null,"Files Uploaded?"]
["File Name:",null,null,{"$f":"'Application Checklist'!A49","v":"B25"},null,"Owner Signature Block",null,"Owner Signature Block",null,"Owner Signature Block",null,"Signature Block - upload in Microsoft Word Document.",null,null,null,null,null,null,null,null,null,null,null,null,null,null,null,null,null,null,null,null,"File Uploaded?"]
["File Name:",null,null,{"$f":"'Application Checklist'!A50","v":"B26"},null,"Owner Payee Data or TIN",null,"Owner Payee Data",null,"Owner Payee Data",null,"Reference Payee Data Record STD-204 & Taxpayer Identification Number Documents on the HHC webpage.",null,null,null,null,null,null,null,null,null,null,null,null,null,null,null,null,null,null,"Attached and on USB?"]
["Managing General Partner"]
["Legal Name",null,null,null,null,null,null,null,null,null,null,null,null,null,null,null,null,null,null,null,null,null,null,null,null,null,"Organization Type"]
["Address",null,null,null,null,null,null,null,null,null,null,null,null,null,null,null,null,null,null,null,null,"City",null,null,null,null,null,null,"State",null,null,null,null,"Zip"]
["Auth Rep Name",null,null,null,null,null,null,null,null,null,null,null,null,"Title",null,null,null,null,null,null,"Authorized Rep. Email",null,null,null,null,null,null,null,null,null,null,null,"Phone"]
["Contact Name",null,null,null,null,null,null,null,null,null,null,null,"Title",null,null,null,null,null,null,null,"Contact Email",null,null,null,null,null,null,null,null,null,null,"Phone"]
["Address",null,null,null,null,null,null,null,null,null,null,null,null,null,null,null,null,null,null,null,null,"City",null,null,null,null,null,null,"State",null,null,null,null,"Zip"]
["File Name:",null,null,{"$f":"'Application Checklist'!A51","v":"B27"},null,"MGP Cert & Legal Disclosure",null,"MGP Cert & Legal Disclosure",null,"MGP Cert & Legal Disclosure",null,"Reference 'Certifications & Legal Status' Worksheet.",null,null,null,null,null,null,null,null,null,null,null,null,null,null,null,null,null,null,"Attached and on USB?"]
["File Name:",null,null,{"$f":"'Application Checklist'!A52","v":"B28"},null,"MGP Reso",null,"MGP Reso",null,"MGP Reso",null,"Reference HHC webpage for Resolution Document.",null,null,null,null,null,null,null,null,null,null,null,null,null,null,null,null,null,null,"Attached and on USB?"]
["File Name:",null,null,{"$f":"'Application Checklist'!A53","v":"B29"},null,"MGP OrgDoc1, MGP OrgDoc2, etc.",null,"MGP OrgDoc1, MGP OrgDoc2, etc.",null,"MGP OrgDoc1, MGP OrgDoc2, etc.",null,"Reference Applicant Org Docs worksheet.",null,null,null,null,null,null,null,null,null,null,null,null,null,null,null,null,null,null,null,null,"Files Uploaded?"]
["File Name:",null,null,{"$f":"'Application Checklist'!A54","v":"B30"},null,"MGP OrgChart",null,"MGP OrgChart",null,"MGP OrgChart",null,"Must depict the Organizational Structure of the entities in relation to the applicant.",null,null,null,null,null,null,null,null,null,null,null,null,null,null,null,null,null,null,null,null,"Files Uploaded?"]
["File Name:",null,null,{"$f":"'Application Checklist'!A55","v":"B31"},null,"MGP Signature Block",null,"MGP Signature Block",null,"MGP Signature Block",null,"Signature Block - upload in Microsoft Word Document.",null,null,null,null,null,null,null,null,null,null,null,null,null,null,null,null,null,null,null,null,"File Uploaded?"]
["File Name:",null,null,{"$f":"'Application Checklist'!A56","v":"B32"},null,"MGP Payee Data or TIN",null,"MGP Payee Data",null,"MGP Payee Data",null,"Reference Payee Data Record STD-204 & Taxpayer Identification Number Documents on the HHC webpage.",null,null,null,null,null,null,null,null,null,null,null,null,null,null,null,null,null,null,"Attached and on USB?"]
["Administrative General Partner #1"]
["Legal Name",null,null,null,null,null,null,null,null,null,null,null,null,null,null,null,null,null,null,null,null,null,null,null,null,null,"Organization Type"]
["Address",null,null,null,null,null,null,null,null,null,null,null,null,null,null,null,null,null,null,null,null,"City",null,null,null,null,null,null,"State",null,null,null,null,"Zip"]
["Auth Rep Name",null,null,null,null,null,null,null,null,null,null,null,null,"Title",null,null,null,null,null,null,"Authorized Rep. Email",null,null,null,null,null,null,null,null,null,null,null,"Phone"]
["Contact Name",null,null,null,null,null,null,null,null,null,null,null,"Title",null,null,null,null,null,null,null,"Contact Email",null,null,null,null,null,null,null,null,null,null,"Phone"]
["Address",null,null,null,null,null,null,null,null,null,null,null,null,null,null,null,null,null,null,null,null,"City",null,null,null,null,null,null,"State",null,null,null,null,"Zip"]
["File Name:",null,null,{"$f":"'Application Checklist'!A57","v":"B33"},null,"AGP1 Cert & Legal Disclosure",null,"AGP1 Cert & Legal Disclosure",null,"AGP1 Cert & Legal Disclosure",null,"Reference 'Certifications & Legal Status' Worksheet.",null,null,null,null,null,null,null,null,null,null,null,null,null,null,null,null,null,null,"Attached and on USB?"]
["File Name:",null,null,{"$f":"'Application Checklist'!A58","v":"B34"},null,"AGP1 Reso",null,"AGP1 Reso",null,"AGP1 Reso",null,"Reference HHC webpage for Resolution Document.",null,null,null,null,null,null,null,null,null,null,null,null,null,null,null,null,null,null,"Attached and on USB?"]
["File Name:",null,null,{"$f":"'Application Checklist'!A59","v":"B35"},null,"AGP1 OrgDoc1, AGP1 OrgDoc2, etc.",null,"AGP1 OrgDoc1, AGP1 OrgDoc2, etc.",null,"AGP1 OrgDoc1, AGP1 OrgDoc2, etc.",null,"Reference Applicant Org Docs worksheet.",null,null,null,null,null,null,null,null,null,null,null,null,null,null,null,null,null,null,null,null,"Files Uploaded?"]
["File Name:",null,null,{"$f":"'Application Checklist'!A60","v":"B36"},null,"AGP1 OrgChart",null,"AGP1 OrgChart",null,"AGP1 OrgChart",null,"Must depict the Organizational Structure of the entities in relation to the applicant.",null,null,null,null,null,null,null,null,null,null,null,null,null,null,null,null,null,null,null,null,"Files Uploaded?"]
["File Name:",null,null,{"$f":"'Application Checklist'!A61","v":"B37"},null,"AGP1 Signature Block",null,"AGP1 Signature Block",null,"AGP1 Signature Block",null,"Signature Block - upload in Microsoft Word Document.",null,null,null,null,null,null,null,null,null,null,null,null,null,null,null,null,null,null,null,null,"File Uploaded?"]
["File Name:",null,null,{"$f":"'Application Checklist'!A62","v":"B38"},null,"AGP1 Payee Data or TIN",null,"AGP1 Payee Data",null,"AGP1 Payee Data",null,"Reference Payee Data Record STD-204 & Taxpayer Identification Number Documents on the HHC webpage.",null,null,null,null,null,null,null,null,null,null,null,null,null,null,null,null,null,null,"Attached and on USB?"]
["Administrative General Partner #2"]
["Legal Name",null,null,null,null,null,null,null,null,null,null,null,null,null,null,null,null,null,null,null,null,null,null,null,null,null,"Organization Type"]
["Address",null,null,null,null,null,null,null,null,null,null,null,null,null,null,null,null,null,null,null,null,"City",null,null,null,null,null,null,"State",null,null,null,null,"Zip"]
["Auth Rep Name",null,null,null,null,null,null,null,null,null,null,null,null,"Title",null,null,null,null,null,null,"Authorized Rep. Email",null,null,null,null,null,null,null,null,null,null,null,"Phone"]
["Contact Name",null,null,null,null,null,null,null,null,null,null,null,"Title",null,null,null,null,null,null,null,"Contact Email",null,null,null,null,null,null,null,null,null,null,"Phone"]
["Address",null,null,null,null,null,null,null,null,null,null,null,null,null,null,null,null,null,null,null,null,"City",null,null,null,null,null,null,"State",null,null,null,null,"Zip"]
["File Name:",null,null,{"$f":"'Application Checklist'!A63","v":"B39"},null,"AGP2 Cert & Legal Disclosure",null,"AGP2 Cert & Legal Disclosure",null,"AGP2 Cert & Legal Disclosure",null,"Reference 'Certifications & Legal Status' Worksheet.",null,null,null,null,null,null,null,null,null,null,null,null,null,null,null,null,null,null,"Attached and on USB?"]
["File Name:",null,null,{"$f":"'Application Checklist'!A64","v":"B40"},null,"AGP2 Reso",null,"AGP2 Reso",null,"AGP2 Reso",null,"Reference HHC webpage for Resolution Document.",null,null,null,null,null,null,null,null,null,null,null,null,null,null,null,null,null,null,"Attached and on USB?"]
["File Name:",null,null,{"$f":"'Application Checklist'!A65","v":"B41"},null,"AGP2 OrgDoc1, AGP2 OrgDoc2, etc.",null,"AGP2 OrgDoc1, AGP2 OrgDoc2, etc.",null,"AGP2 OrgDoc1, AGP2 OrgDoc2, etc.",null,"Reference Applicant Org Docs worksheet.",null,null,null,null,null,null,null,null,null,null,null,null,null,null,null,null,null,null,null,null,"Files Uploaded?"]
["File Name:",null,null,{"$f":"'Application Checklist'!A66","v":"B42"},null,"AGP2 OrgChart",null,"AGP2 OrgChart",null,"AGP2 OrgChart",null,"Must depict the Organizational Structure of the entities in relation to the applicant.",null,null,null,null,null,null,null,null,null,null,null,null,null,null,null,null,null,null,null,null,"Files Uploaded?"]
["File Name:",null,null,{"$f":"'Application Checklist'!A67","v":"B43"},null,"AGP2 Signature Block",null,"AGP2 Signature Block",null,"AGP2 Signature Block",null,"Signature Block - upload in Microsoft Word Document.",null,null,null,null,null,null,null,null,null,null,null,null,null,null,null,null,null,null,null,null,"File Uploaded?"]
["File Name:",null,null,{"$f":"'Application Checklist'!A68","v":"B44"},null,"AGP2 Payee Data or TIN",null,"AGP2 Payee Data",null,"AGP2 Payee Data",null,"Reference Payee Data Record STD-204 & Taxpayer Identification Number Documents on the HHC webpage.",null,null,null,null,null,null,null,null,null,null,null,null,null,null,null,null,null,null,"Attached and on USB?"]
["Other Project Contacts"]
["Property Management Agent"]
["Legal Name",null,null,null,null,null,null,null,null,null,null,null,null,null,null,"Contact Name",null,null,null,null,null,null,null,null,null,null,null,"Contact Email"]
["Phone",null,null,null,null,null,null,"Address",null,null,null,null,null,null,null,null,null,null,null,null,null,"City",null,null,null,null,null,null,null,"State",null,null,null,"Zip"]
["Financial Consultant"]
["Legal Name",null,null,null,null,null,null,null,null,null,null,null,null,null,null,"Contact Name",null,null,null,null,null,null,null,null,null,null,null,"Contact Email"]
["Phone",null,null,null,null,null,null,"Address",null,null,null,null,null,null,null,null,null,null,null,null,null,"City",null,null,null,null,null,null,null,"State",null,null,null,"Zip"]
["Lead (primary) Service Provider"]
["Legal Name",null,null,null,null,null,null,null,null,null,null,null,null,null,null,"Contact Name",null,null,null,null,null,null,null,null,null,null,null,"Contact Email"]
["Phone",null,null,null,null,null,null,"Address",null,null,null,null,null,null,null,null,null,null,null,null,null,"City",null,null,null,null,null,null,null,"State",null,null,null,"Zip"]
["Borrower Legal Counsel"]
["Legal Name",null,null,null,null,null,null,null,null,null,null,null,null,null,null,"Contact Name",null,null,null,null,null,null,null,null,null,null,null,"Contact Email"]
["Phone",null,null,null,null,null,null,"Address",null,null,null,null,null,null,null,null,null,null,null,null,null,"City",null,null,null,null,null,null,null,"State",null,null,null,"Zip"]
["General Contractor"]
["Legal Name",null,null,null,null,null,null,null,null,null,null,null,null,null,null,"Contact Name",null,null,null,null,null,null,null,null,null,null,null,"Contact Email"]
["Phone",null,null,null,null,null,null,"Address",null,null,null,null,null,null,null,null,null,null,null,null,null,"City",null,null,null,null,null,null,null,"State",null,null,null,"Zip"]
["Architect"]
["Legal Name",null,null,null,null,null,null,null,null,null,null,null,null,null,null,"Contact Name",null,null,null,null,null,null,null,null,null,null,null,"Contact Email"]
["Phone",null,null,null,null,null,null,"Address",null,null,null,null,null,null,null,null,null,null,null,null,null,"City",null,null,null,null,null,null,null,"State",null,null,null,"Zip"]
["Development Funding Source "]
["Legal Name",null,null,null,null,null,null,null,null,null,null,null,null,null,null,"Contact Name",null,null,null,null,null,null,null,null,null,null,null,"Contact Email"]
["Phone",null,null,null,null,null,null,"Address",null,null,null,null,null,null,null,null,null,null,null,null,null,"City",null,null,null,null,null,null,null,"State",null,null,null,"Zip"]
["Development Funding Source "]
["Legal Name",null,null,null,null,null,null,null,null,null,null,null,null,null,null,"Contact Name",null,null,null,null,null,null,null,null,null,null,null,"Contact Email"]
["Phone",null,null,null,null,null,null,"Address",null,null,null,null,null,null,null,null,null,null,null,null,null,"City",null,null,null,null,null,null,null,"State",null,null,null,"Zip"]
["Development Funding Source "]
["Legal Name",null,null,null,null,null,null,null,null,null,null,null,null,null,null,"Contact Name",null,null,null,null,null,null,null,null,null,null,null,"Contact Email"]
["Phone",null,null,null,null,null,null,"Address",null,null,null,null,null,null,null,null,null,null,null,null,null,"City",null,null,null,null,null,null,null,"State",null,null,null,"Zip"]
["Development Funding Source "]
["Legal Name",null,null,null,null,null,null,null,null,null,null,null,null,null,null,"Contact Name",null,null,null,null,null,null,null,null,null,null,null,"Contact Email"]
["Phone",null,null,null,null,null,null,"Address",null,null,null,null,null,null,null,null,null,null,null,null,null,"City",null,null,null,null,null,null,null,"State",null,null,null,"Zip"]
["Development Funding Source "]
["Legal Name",null,null,null,null,null,null,null,null,null,null,null,null,null,null,"Contact Name",null,null,null,null,null,null,null,null,null,null,null,"Contact Email"]
["Phone",null,null,null,null,null,null,"Address",null,null,null,null,null,null,null,null,null,null,null,null,null,"City",null,null,null,null,null,null,null,"State",null,null,null,"Zip"]
["Rent/Operating Subsidy Source "]
["Legal Name",null,null,null,null,null,null,null,null,null,null,null,null,null,null,"Contact Name",null,null,null,null,null,null,null,null,null,null,null,"Contact Email"]
["Phone",null,null,null,null,null,null,"Address",null,null,null,null,null,null,null,null,null,null,null,null,null,"City",null,null,null,null,null,null,null,"State",null,null,null,"Zip"]
["Rent/Operating Subsidy Source "]
["Legal Name",null,null,null,null,null,null,null,null,null,null,null,null,null,null,"Contact Name",null,null,null,null,null,null,null,null,null,null,null,"Contact Email"]
["Phone",null,null,null,null,null,null,"Address",null,null,null,null,null,null,null,null,null,null,null,null,null,"City",null,null,null,null,null,null,null,"State",null,null,null,"Zip"]

{"sheet":"C -  Minimum Requirements","index":4,"n_rows":104,"n_cols":39,"rows_kept":104,"cut":false,"hidden":false,"merged":[[66,0,66,35],[34,0,34,37],[60,0,60,37],[33,30,33,35],[103,3,103,4],[103,5,103,10],[103,11,103,29],[91,3,91,4],[91,11,91,29],[91,5,91,10],[77,11,77,29],[98,0,98,37],[99,0,99,35],[100,0,100,35],[99,36,100,37],[77,36,77,37],[91,30,91,35],[91,0,91,2],[78,3,78,4],[78,5,78,10],[78,11,78,29],[78,30,78,35],[78,36,78,37],[82,0,82,35],[82,36,82,37],[79,0,79,37],[80,36,80,37],[80,0,80,35],[81,0,81,37],[78,0,78,2],[96,0,96,37],[97,0,97,35],[97,36,97,37],[92,0,92,37],[93,0,93,35],[93,36,93,37],[94,0,94,37],[95,0,95,35],[95,36,95,37],[3,36,3,37],[3,0,3,35],[71,5,71,10],[71,3,71,4],[14,5,14,10],[76,11,76,29],[77,3,77,4],[76,3,76,4],[77,5,77,10],[76,5,76,10],[77,30,77,35],[77,0,77,2],[32,0,32,2],[33,5,33,10],[33,11,33,29],[38,0,38,35],[67,3,67,4],[67,5,67,10],[67,11,67,29],[62,3,62,4],[62,5,62,10],[62,11,62,29],[57,3,57,4],[57,5,57,10],[10,33,10,37],[11,33,11,37],[12,33,12,37],[18,33,18,34],[19,22,19,32],[0,35,0,37],[0,0,0,34],[90,0,90,35],[83,0,83,37],[84,0,84,35],[84,36,84,37],[87,0,87,37],[88,0,88,37],[89,0,89,37],[90,36,90,37],[17,22,17,32],[13,33,13,37],[23,1,23,24],[85,0,85,37],[86,0,86,35],[86,36,86,37],[25,33,25,34],[21,34,21,35],[21,36,21,37],[16,33,16,34],[16,35,16,37],[17,33,17,34],[19,33,19,34],[19,35,19,37],[16,0,16,21],[20,30,20,35],[17,35,17,37],[14,3,14,4],[14,11,14,29],[20,0,20,2],[20,3,20,4],[20,5,20,10],[20,11,20,29],[1,0,1,37],[15,0,15,33],[2,0,2,35],[7,0,7,37],[2,36,2,37],[5,0,5,35],[4,0,4,37],[6,0,6,37],[5,36,5,37],[9,0,9,37],[8,0,8,37],[12,23,12,29],[13,23,13,29],[13,21,13,22],[14,30,14,35],[14,36,14,37],[15,34,15,35],[13,1,13,20],[14,0,14,2],[12,30,12,32],[13,30,13,32],[12,1,12,20],[10,1,10,20],[11,1,11,20],[10,21,10,22],[11,21,11,22],[18,1,18,21],[17,1,17,21],[18,22,18,32],[24,25,24,32],[19,1,19,21],[21,32,21,33],[20,36,20,37],[10,30,10,32],[11,30,11,32],[10,23,10,29],[11,23,11,29],[12,21,12,22],[15,36,15,37],[16,22,16,32],[18,35,18,37],[22,35,22,37],[22,33,22,34],[23,35,23,37],[23,33,23,34],[22,25,22,32],[22,0,22,24],[23,25,23,32],[21,0,21,31],[26,36,26,37],[101,0,101,37],[102,0,102,37],[103,0,103,2],[103,30,103,35],[103,36,103,37],[28,36,28,37],[28,0,28,35],[29,0,29,10],[56,0,56,2],[91,36,91,37],[24,33,24,34],[25,35,25,37],[25,1,25,24],[24,1,24,24],[33,36,33,37],[30,0,30,37],[31,0,31,37],[29,11,29,24],[29,25,29,33],[29,34,29,37],[27,0,27,37],[24,35,24,37],[33,0,33,2],[25,25,25,32],[32,36,32,37],[32,30,32,35],[26,0,26,2],[26,5,26,10],[26,11,26,29],[26,3,26,4],[32,3,32,4],[32,5,32,10],[32,11,32,29],[33,3,33,4],[26,30,26,35],[35,36,35,37],[36,36,36,37],[37,36,37,37],[38,36,38,37],[35,0,35,35],[36,0,36,35],[37,0,37,35],[40,0,40,35],[41,0,41,2],[40,36,40,37],[39,0,39,37],[41,3,41,4],[41,5,41,10],[41,11,41,29],[41,30,41,35],[41,36,41,37],[44,36,44,37],[43,0,43,37],[42,36,42,37],[53,0,53,11],[55,0,55,37],[59,36,59,37],[56,3,56,4],[56,5,56,10],[56,11,56,29],[47,0,47,37],[57,0,57,2],[56,30,56,35],[56,36,56,37],[44,12,44,13],[45,0,45,37],[46,36,46,37],[46,0,46,35],[44,0,44,11],[44,14,44,35],[42,3,42,4],[42,5,42,10],[42,11,42,29],[42,30,42,35],[42,0,42,2],[53,12,53,37],[54,0,54,6],[54,7,54,37],[51,0,51,37],[52,0,52,5],[52,6,52,31],[52,36,52,37],[72,3,72,4],[73,11,73,29],[69,36,69,37],[61,0,61,35],[62,30,62,35],[62,36,62,37],[59,0,59,8],[59,9,59,10],[62,0,62,2],[57,11,57,29],[65,0,65,37],[59,11,59,35],[58,0,58,37],[61,36,61,37],[57,30,57,35],[57,36,57,37],[66,36,66,37],[48,32,48,35],[48,36,48,37],[48,0,48,5],[48,6,48,31],[49,0,49,11],[49,12,49,37],[50,0,50,6],[50,7,50,37],[52,32,52,35],[72,11,72,29],[73,3,73,4],[73,5,73,10],[74,30,74,35],[68,0,68,37],[74,3,74,4],[74,5,74,10],[74,11,74,29],[71,11,71,29],[64,0,64,35],[64,36,64,37],[63,0,63,37],[67,36,67,37],[67,30,67,35],[76,30,76,35],[76,36,76,37],[73,0,73,2],[70,0,70,37],[69,0,69,35],[74,36,74,37],[76,0,76,2],[67,0,67,2],[71,36,71,37],[74,0,74,2],[73,30,73,35],[73,36,73,37],[71,0,71,2],[71,30,71,35],[72,0,72,2],[72,30,72,35],[72,36,72,37],[75,0,75,37],[72,5,72,10]]}
["Minimum Requirements",null,null,null,null,null,null,null,null,null,null,null,null,null,null,null,null,null,null,null,null,null,null,null,null,null,null,null,null,null,null,null,null,null,null,{"$f":"'B - Applicant'!AJ1","v":"Rev. 3/4/20"}]
["Eligible Applicant  §102(a)"]
["(1) Are you an owner or developer that meets the Recipient definition in Code of Federal Regulations (CFR) Title 24 §93.2?"]
["(2) Are any members of the development team currently federally debarred or suspended?"]
["Financial Feasibility §102(b)"]
["Does Project meet and/or commit to meeting the requirements of §105 and §106 and demonstrate Fiscal Integrity §101(m)? "]
["Experience §102(c) "]
["Experience Documentation: Experience must be documented through contracts with public agencies, housing owners, or foundations for services provided to at least ten households at any one time in either housing projects subject to agreements with public agencies restricting rent and occupancy or through tenant-based housing assistance programs. If the LSP is not part of the ownership entity, the Applicant must have a written agreement with the LSP to implement the Supportive Services plan and submit this agreement along with the application for funding. Only the LSP may enter into written agreements for services under the provisions of the Supportive Services plan. All service providers must have a written agreement with the LSP prior to commencement of services. §102(c)4."]
["Collectively, among the members of the Project Team, all the following minimum experience requirements must be met:"]
["1. Applicant: List at least two permanent Supportive Housing or affordable rental housing projects that Applicant has developed, owned or operated in the last five years."]
[null,"Project Name and Address ",null,null,null,null,null,null,null,null,null,null,null,null,null,null,null,null,null,null,null,"# of units",null,"Permanent Supportive or Affordable Rental Housing",null,null,null,null,null,null,"Experience Type",null,null,"Year Completed, Owned or Operated"]
[1]
[2]
[3]
["File Name:",null,null,{"$f":"'Application Checklist'!A72","v":"C2"},null,"Applicant Exp. 1, 2, 3, etc",null,null,null,null,null,"Reference Experience Documentation requirements.",null,null,null,null,null,null,null,null,null,null,null,null,null,null,null,null,null,null,"Attached and on USB?"]
["2. The Lead Service Provider (LSP), which may be the county, or a qualified contracted agency: List experience totaling three or more years serving persons who qualify as members of the Target Population and includes comprehensive case management in Supportive housing, and can include scattered site housing.",null,null,null,null,null,null,null,null,null,null,null,null,null,null,null,null,null,null,null,null,null,null,null,null,null,null,null,null,null,null,null,null,null,"Total Years:",null,{"$f":"SUM(AJ18:AL20)/12","v":0}]
["Project Name and Address or Description of other Experience",null,null,null,null,null,null,null,null,null,null,null,null,null,null,null,null,null,null,null,null,null,"Did this experience serve the Target Population in Supportive Housing and include comprehensive case management?",null,null,null,null,null,null,null,null,null,null,"# of units",null,"# of months serving"]
[1,null,null,null,null,null,null,null,null,null,null,null,null,null,null,null,null,null,null,null,null,null,null,null,null,null,null,null,null,null,null,null,null,null,null,null,null,null,{"$f":"IF(AND(B18<>\"\",W18=\"yes\",AH18>=10),AJ18,0)","v":0}]
[2,null,null,null,null,null,null,null,null,null,null,null,null,null,null,null,null,null,null,null,null,null,null,null,null,null,null,null,null,null,null,null,null,null,null,null,null,null,{"$f":"IF(AND(B19<>\"\",W19=\"yes\",AH19>=10),AJ19,0)","v":0}]
[3,null,null,null,null,null,null,null,null,null,null,null,null,null,null,null,null,null,null,null,null,null,null,null,null,null,null,null,null,null,null,null,null,null,null,null,null,null,{"$f":"IF(AND(B20<>\"\",W20=\"yes\",AH20>=10),AJ20,0)","v":0}]
["File Name:",null,null,{"$f":"'Application Checklist'!A73","v":"C3"},null,"LSP Exp. 1, 2, 3, etc.",null,null,null,null,null,"Reference Experience Documentation requirements. ",null,null,null,null,null,null,null,null,null,null,null,null,null,null,null,null,null,null,"Attached and on USB?"]
["3. Property Manager:  List experience totaling three or more years serving persons who qualify as members of the Target Population in Supportive housing.",null,null,null,null,null,null,null,null,null,null,null,null,null,null,null,null,null,null,null,null,null,null,null,null,null,null,null,null,null,null,null,null,null,"Total Years:",null,{"$f":"SUM(AM24:AM26)/12","v":0}]
["Project Name and Address",null,null,null,null,null,null,null,null,null,null,null,null,null,null,null,null,null,null,null,null,null,null,null,null,"Did this experience serve the Target Population in Supportive housing?",null,null,null,null,null,null,null,"# of units",null,"# of months serving"]
[1,null,null,null,null,null,null,null,null,null,null,null,null,null,null,null,null,null,null,null,null,null,null,null,null,null,null,null,null,null,null,null,null,null,null,null,null,null,{"$f":"IF(AND(B24<>\"\",Z24=\"yes\",AH24>=10),AJ24,0)","v":0}]
[2,null,null,null,null,null,null,null,null,null,null,null,null,null,null,null,null,null,null,null,null,null,null,null,null,null,null,null,null,null,null,null,null,null,null,null,null,null,{"$f":"IF(AND(B25<>\"\",Z25=\"yes\",AH25>=10),AJ25,0)","v":0}]
[3,null,null,null,null,null,null,null,null,null,null,null,null,null,null,null,null,null,null,null,null,null,null,null,null,null,null,null,null,null,null,null,null,null,null,null,null,null,{"$f":"IF(AND(B26<>\"\",Z26=\"yes\",AH26>=10),AJ26,0)","v":0}]
["File Name:",null,null,{"$f":"'Application Checklist'!A74","v":"C4"},null,"Prop Manage Exp. 1, 2, 3, etc.",null,null,null,null,null,"Reference Experience Documentation requirements.",null,null,null,null,null,null,null,null,null,null,null,null,null,null,null,null,null,null,"Attached and on USB?"]
["Site Control §102(d), UMR §8303"]
["Does Applicant have site control? If yes, enter form of site control and most recent execution date."]
["Form of site control:",null,null,null,null,null,null,null,null,null,null,null,null,null,null,null,null,null,null,null,null,null,null,null,null,"Most recent document execution date:"]
["Provide details below for unusual site control special circumstances:"]
[]
["File Name:",null,null,{"$f":"'Application Checklist'!A75","v":"C5"},null,"Site Control ",null,null,null,null,null,"Provide documentation of the form of site control selected above meeting UMR §8303.",null,null,null,null,null,null,null,null,null,null,null,null,null,null,null,null,null,null,"Attached and on USB?"]
["File Name:",null,null,{"$f":"'Application Checklist'!A76","v":"C6"},null,"Preliminary Title Report",null,null,null,null,null,"Provide a current preliminary report. ",null,null,null,null,null,null,null,null,null,null,null,null,null,null,null,null,null,null,"Attached and on USB?"]
["Integration §102(e)"]
["(1) Will the HHC Assisted units be integrated with other units in the Project and not separated onto separate floors or areas of the building?"]
["(2) If Project has greater than 20 units, are the HHC Assisted units as a % of the total units less than or equal to 49%? (Reference 'Loan Amount and Unit Mix' worksheet)"]
["(3) Applicant certifies that they will facilitate or provide regular community building activities and architectural design features that promote tenant interaction, as feasible depending on the scope of the construction or rehabilitation activity; "]
["(4) The Supportive Services plan and property management plan submitted with the application documents policies that promote participation by tenants in community activities, and imposes no restrictions on guests that are not otherwise required by other project funding sources, or that would not be common in other unsubsidized rental housing in the community."]
["Article XXXIV §102(f)"]
["Article XXXIV legal opinion submitted to HCD demonstrates that the Applicant has considered both the legal requirements of Article XXXIV and the relevant facts of the project, including, but not limited to, all public funding sources. Any conclusion that the project is exempt from Article XXXIV is supported by specific facts and a specific legal theory for exemption that itself is supported by the Constitution, statute, and/or case law. Documentation provided shall be subject to Department review and approval."]
["File Name:",null,null,{"$f":"'Application Checklist'!A77","v":"C7"},null,"Article XXXIV Legal Opinion",null,null,null,null,null,"If the Application includes an Article XXXIV legal opinion, provide a copy of legal opinion.",null,null,null,null,null,null,null,null,null,null,null,null,null,null,null,null,null,null,"Attached and on USB?"]
["File Name:",null,null,{"$f":"'Application Checklist'!A78","v":"C8"},null,"Article XXXIV Authority",null,null,null,null,null,"If the locality has sufficient Article XXXIV authority, provide documentation per NOFA.",null,null,null,null,null,null,null,null,null,null,null,null,null,null,null,null,null,null,"Attached and on USB?"]
["Scattered Site Housing §102(g)"]
["Is the Project a scattered site housing project?",null,null,null,null,null,null,null,null,null,null,null,null,null,"If yes, will Project meet the §102(g) and UMR §8303(b) requirements?"]
["Environmental Conditions §102(h)"]
["Is the Project free from severe adverse environmental conditions that are economically infeasible to remove and cannot be mitigated pursuant to 24 CFR 93.301(f)? "]
["Attach all available Phase I and Phase II Environmental Site Assessments (ESA). Include any follow-up analysis, (e.g., asbestos or lead-based paint analysis), or information on mitigation completed.  It is NOT necessary to include a copy of the Database Records Search section of the ESA. If no Phase I or Phase II has been done for new construction projects, HCD highly recommends submission of a Phase I and Phase II, if recommended by the Phase I, and any follow-up reports with your Application so that environmental remediation costs can be properly assessed and budgeted for. For acquisition/rehabilitation projects, submission of lead-based paint, mold, and asbestos reports is recommended. Failure to submit the necessary environmental reports with your Application may delay evaluation of your Application. Evidence of completion of all necessary environmental remediation will be required prior to award of funds."]
["Report 1: Name of Report",null,null,null,null,null,null,null,null,null,null,null,null,null,null,null,null,null,null,null,null,null,null,null,null,null,null,null,null,null,null,null,"Report Date:"]
["Report 1: Name of Company who wrote the Report"]
["Company Address & Phone"]
["Describe Report 1 Findings:"]
["Report 2: Name of Report",null,null,null,null,null,null,null,null,null,null,null,null,null,null,null,null,null,null,null,null,null,null,null,null,null,null,null,null,null,null,null,"Report Date:"]
["Report 2: Name of Company who wrote the Report"]
["Company Address & Phone"]
["Describe Report 2 Findings:"]
["File Name:",null,null,{"$f":"'Application Checklist'!A79","v":"C9"},null,"Env Rpt 1 or 2",null,null,null,null,null,"Provide copy of all environmental reports in a separate binder. ",null,null,null,null,null,null,null,null,null,null,null,null,null,null,null,null,null,null,"Attached and on USB?"]
["File Name:",null,null,{"$f":"'Application Checklist'!A80","v":"C10"},null,"Environmental Clearance",null,null,null,null,null,"Provide copy of all environmental clearances or Notice of Exemption.",null,null,null,null,null,null,null,null,null,null,null,null,null,null,null,null,null,null,"Attached and on USB?"]
["Federal, State and Local Requirements §102(i)"]
["Is the Project on a permanent foundation?",null,null,null,null,null,null,null,null,null,null,"Will the project meet all applicable State and local requirements, including but not limited to, minimum square footage requirements, and requirements for maintaining the property in a safe and sanitary condition?"]
["Amenities §102(j)"]
["Is the Project site(s) reasonably accessible to public transportation, shopping, medical services, recreation, schools, and employment in relation to the needs of the Project's tenants?  The criteria used to establish reasonable accessibility and reasonable proximity is specified in §111(h). "]
["File Name:",null,null,{"$f":"'Application Checklist'!A81","v":"C11"},null,"Amenities Map",null,null,null,null,null,"Provide map with §102(j) & §111(h) amenities, services & public transportation identified.",null,null,null,null,null,null,null,null,null,null,null,null,null,null,null,null,null,null,"Attached and on USB?"]
["Stacking Unit-Based Subsidies §102(k)"]
["(1) Applicant acknowledges that the Department does not allow stacking of multiple Department Development Funding Sources on an HHC Assisted Unit. Capitalized operating subsidy reserves or operating assistance is allowed for all units. The prohibition of subsidy stacking in HHC refers to the use of multiple funding sources on a single HHC-assisted unit.  “Department Development Funding Sources” shall mean loan or grant funds awarded for permanent funding of development costs under the following programs:  a. Multifamily Housing Program; b. Supportive Housing Multifamily Housing Program; c. Veterans Housing and Homelessness Prevention Program; d. No Place Like Home Program, including funds awarded either by the Department or an Alternative Process County; e. Affordable Housing and Sustainable Communities Program Affordable Housing;  f. Development loan, except for grants for infrastructure, transportation-related amenities and program costs; g. Transit Oriented Development Program rental housing development loan, except for grants for infrastructure; h. Joe Serna, Junior Farmworker Housing Grant Program; i. SB 2 Farmworker Housing Program; j. National Housing Trust Fund Program. (2) As an exception to this Subsection (k)(1), a previously Department-assisted unit is eligible for funding assistance from other Department programs upon re syndication, or 14 years from the Placed in Service date noted on the TCAC form 8609 (Placed in Service Package)."]
["Relocation §102(l)"]
["Will tenant relocation occur as a result of this Project?  If development will result in displacement of tenant, Applicant shall be solely responsible for providing assistance and benefits set forth in §102(l) and other applicable local, state and federal law.  All relocation documents are subject to HCD review and approval. ",null,null,null,null,null,null,null,null,null,null,null,null,null,null,null,null,null,null,null,null,null,null,null,null,null,null,null,null,null,null,null,null,null,null,null,"No"]
["File Name:",null,null,{"$f":"'Application Checklist'!A82","v":"C12"},null,{"$f":"IF(AK67=\"No\",\"No Relocation Plan Req.\",\"Relocation Plan\")","v":"No Relocation Plan Req."},null,null,null,null,null,{"$f":"IF(AK67=\"No\",\"Provide narrative explanation and identify documents supporting no relocation required.\",\"Provide a relocation plan prepared in accordance with 24 CFR 93.352.\")","v":"Provide narrative explanation and identify documents supporting no relocation required."},null,null,null,null,null,null,null,null,null,null,null,null,null,null,null,null,null,null,"Attached and on USB?"]
["Compliance with 2 CFR Part 200 §102(m)"]
["Will applicant comply with 2 CFR Part 200, Uniform Administrative Requirements, Cost Principles and Audit Requirements for Federal Awards?"]
["HCD Required Forms §102(n) "]
["File Name:",null,null,{"$f":"'Application Checklist'!A83","v":"C13"},null,"Gov Board Reso",null,null,null,null,null,"Provide a copy of Governing Board Resolution §102(n)(1).",null,null,null,null,null,null,null,null,null,null,null,null,null,null,null,null,null,null,"Attached and on USB?"]
["File Name:",null,null,{"$f":"'Application Checklist'!A84","v":"C14"},null,"Case Manage-Sup Serv",null,null,null,null,null,"Memorandum of understanding or commitment letter from either the LSP or a county department to make available to the project’s HHC tenants case management and Supportive Services. §102(n)(2).",null,null,null,null,null,null,null,null,null,null,null,null,null,null,null,null,null,null,"Attached and on USB?"]
["File Name:",null,null,{"$f":"'Application Checklist'!A85","v":"C15"},null,"Pet Own Cert",null,null,null,null,null,"Certification that residents of the housing development will be authorized to own or otherwise maintain one or more common household pets pursuant to the Pet Friendly Housing Act of 2017. §102(n)(3).",null,null,null,null,null,null,null,null,null,null,null,null,null,null,null,null,null,null,"Attached and on USB?"]
["File Name:",null,null,{"$f":"'Application Checklist'!A86","v":"C16"},null,"Prop Manage Plan",null,null,null,null,null,"Provide a copy of Project's proposed Property Management Plan meeting requirements of §102(n)(5).",null,null,null,null,null,null,null,null,null,null,null,null,null,null,null,null,null,null,"Attached and on USB?"]
["Other HCD Required Forms"]
["File Name:",null,null,{"$f":"'Application Checklist'!A87","v":"C17"},null,"STD-204",null,null,null,null,null,"All Applicants must submit a Payee Data Record (STD-204).",null,null,null,null,null,null,null,null,null,null,null,null,null,null,null,null,null,null,"Attached and on USB?"]
["File Name:",null,null,{"$f":"'Application Checklist'!A88","v":"C18"},null,"Government TIN Form",null,null,null,null,null,"Applicants that are a government agency must submit a Government TIN Form.",null,null,null,null,null,null,null,null,null,null,null,null,null,null,null,null,null,null,"Attached and on USB?"]
["File Name:",null,null,{"$f":"'Application Checklist'!A89","v":"C19"},null,"Market Study",null,null,null,null,null,"Provide a completed Market Study that meets requirements specified in TCAC Regs §10322(h)(10 prepared within one year of the application due date.",null,null,null,null,null,null,null,null,null,null,null,null,null,null,null,null,null,null,"Attached and on USB?"]
["Uses and Terms §103"]
["Does the Project's Development Budget in the Universal Application request funds for the eligible costs set forth in §103?"]
["Capitalized Operating Subsidy Reserves (COSR) §108"]
["Will NHTF grant funds be used to pay for Capitalized Operating Subsidy Reserves (COSR) in accordance with §108?"]
["Housing First §113"]
["Applicant certifies the Project will adhere to §113, Housing First."]
["Tenant Selection §114 & UMR §8305"]
["Applicant certifies the Project will comply with the requirements of §114 & UMR §8305 as applicable."]
["Fair Housing Act"]
["Attach a Project-specific legal opinion labeled \"Fair Housing\" with supporting materials describing how the Project complies with fair housing laws."]
["For senior Projects, attach evidence that units are lawfully restricted to senior households in compliance with state and federal fair housing laws."]
["Does your Project propose to restrict occupancy based on gender or age?  If yes, include in legal opinion how your Project satisfies fair housing laws (include supporting materials)."]
["File Name:",null,null,{"$f":"'Application Checklist'!A90","v":"C20"},null,"Fair Housing Legal Opinion",null,null,null,null,null,"Attach a Project-specific legal opinion labeled \"Fair Housing\" with supporting materials describing how the Project complies with fair housing laws. ",null,null,null,null,null,null,null,null,null,null,null,null,null,null,null,null,null,null,"Attached and on USB?"]
["Americans with Disabilities Act "]
["Applicant certifies they will comply with Americans with Disabilities Act and its implementing regulations."]
["Violence Against Women Act"]
["Applicant certifies they will comply with Violence Against Women Act."]
["Pet Friendly Housing Act"]
["Applicant certifies that residents of the housing development will be authorized to own or otherwise maintain one or more common household pets pursuant to the Pet Friendly Housing Act of 2017 (California Health & Safety Code, Section 50466)"]
["Davis-Bacon Wage & State Prevailing Wage Requirements"]
["Applicant certifies the Project will comply with Davis-Bacon wage requirements and State prevailing wage law, as set forth in Labor Code §1720 et seq., which requires payment of prevailing wages unless Project meets one of the §1720 exceptions as determined by the Department of Industrial Relations (DIR)."]
["The DIR can be contacted via its website at https://www.dir.ca.gov/oprl/DPreWageDetermination.htm. Applicants are urged to seek professional advice as to how to comply with State prevailing wage law."]
["Explanations "]
["Please provide a letter of explanation providing details for all \"No\" answers that are shaded red above."]
["File Name:",null,null,{"$f":"'Application Checklist'!A91","v":"C21"},null,"Letter of Explanation",null,null,null,null,null,"Letter of explanation for any \"red\" shaded cells above. ",null,null,null,null,null,null,null,null,null,null,null,null,null,null,null,null,null,null,"Attached and on USB?"]

{"sheet":"D - Local & Env Verification","index":5,"n_rows":33,"n_cols":49,"rows_kept":33,"cut":false,"hidden":false,"merged":[[16,19,16,22],[18,19,18,22],[17,19,17,22],[16,0,18,18],[27,0,27,11],[26,0,26,2],[26,3,26,7],[23,0,23,37],[22,0,22,22],[21,0,21,22],[19,0,19,37],[20,0,20,37],[9,0,9,11],[9,12,9,36],[10,0,10,37],[17,33,17,37],[6,0,6,11],[6,12,6,36],[7,0,7,11],[7,12,7,36],[8,0,8,11],[8,12,8,36],[17,28,17,32],[11,0,14,19],[11,20,11,29],[11,30,11,37],[12,20,12,29],[12,30,12,37],[0,0,0,34],[0,35,0,37],[4,0,4,11],[4,12,4,36],[5,0,5,11],[5,12,5,36],[1,0,1,37],[2,0,2,11],[2,12,2,36],[3,0,3,11],[3,12,3,36],[13,20,13,29],[13,30,13,37],[14,20,14,29],[14,30,14,37],[22,28,22,32],[15,0,15,22],[15,23,15,27],[15,28,15,32],[15,33,15,37],[18,23,18,27],[18,28,18,32],[18,33,18,37],[16,23,16,27],[16,28,16,32],[16,33,16,37],[17,23,17,27],[31,0,31,11],[32,0,32,11],[21,33,22,37],[28,0,28,11],[29,0,29,11],[30,0,30,11],[21,23,21,27],[21,28,21,32],[22,23,22,27],[24,0,24,37],[27,12,27,37],[28,12,28,37],[29,12,29,37],[30,12,30,37],[31,12,31,37],[32,12,32,37]]}
["Local Jurisdiction and Environmental Verification of Project Readiness",null,null,null,null,null,null,null,null,null,null,null,null,null,null,null,null,null,null,null,null,null,null,null,null,null,null,null,null,null,null,null,null,null,null,{"$f":"'B - Applicant'!AJ1","v":"Rev. 3/4/20"}]
["To the Applicant:  Complete the Applicant and project information section below.  Then submit this form to the agency or department of local government responsible for administration of the items listed.  This form may be submitted to more than one agency or department if necessary. Also submit a copy of this form to the appropriate NEPA Responsible Entity. If the NEPA Responsible Entity is not a local government (e.g. State of CA., USDA RD,.  If an item is not required or is in the process, include the reason why in box provided. NHTF Environmetal Provision 24 CFR 93.301(f)(1) and (2)"]
["Project Applicant: "]
["Applicant Address:"]
["Applicant City:"]
["Project Name: "]
["Project Address/site: "]
["Project City: "]
["Project County: "]
["Assessor parcel #s:"]
["To the local jurisdiction or NEPA Responsible Entity:  The applicant above has submitted the Housing for a Healthy California Program (HHC) application to the CA Dept. of Housing and Community Development (Department) requesting funding for the project named above.  Projects submitted for program funding are subject to a competitive rating process.  Project readiness is a component of that process.  Verification of items listed below will be used in evaluating HHC applications.",null,null,null,null,null,null,null,null,null,null,null,null,null,null,null,null,null,null,null,null,null,null,null,null,null,null,null,null,null,null,null,null,null,null,null,null,null,null,"Community Development Block Grant (CDBG)"," Home Investment Partnership Program (HOME)","Neighborhood Stabilization Program (NSP)","Emergency Solutions Grant (ESG)","Housing Opportunities for Persons with Aids (HOPW A)","Homeless programs of Title IV McKinney-Vento Homeless Assistance Act","Supportive Housing program","Lead-based paint abatement programs","HOPEVI","Section 8 Voucher Program"]
["Is there other HUD funding in the Project besides HTF? If yes, select name of the al HUD funding sources and the commitment status of the source.",null,null,null,null,null,null,null,null,null,null,null,null,null,null,null,null,null,null,null,"HUD Funding Source",null,null,null,null,null,null,null,null,null,"Status"]
[]
[]
[]
[null,null,null,null,null,null,null,null,null,null,null,null,null,null,null,null,null,null,null,null,null,null,null,"Environmental Clearance Status",null,null,null,null,"Final date of Public Comment Period",null,null,null,null,"Approved  Date"]
["All Environmental Clearances (NHTF Environmental Provisions, NEPA, CEQA) necessary to begin construction are either finally approved or in the process:",null,null,null,null,null,null,null,null,null,null,null,null,null,null,null,null,null,null,"NHTF Environmetal Provision 24 CFR 93.301(f)(1) and (2)"]
[null,null,null,null,null,null,null,null,null,null,null,null,null,null,null,null,null,null,null,"NEPA"]
[null,null,null,null,null,null,null,null,null,null,null,null,null,null,null,null,null,null,null,"CEQA"]
["Specify in the box below, items not required or in the process and explain why? Where is it is in the process? (include documentation, if applicable):"]
[]
["All required and discretionary public land use approvals except building permits and other ministerial approvals are:",null,null,null,null,null,null,null,null,null,null,null,null,null,null,null,null,null,null,null,null,null,null,null,null,null,null,null,"Date"]
["Project design review status:",null,null,null,null,null,null,null,null,null,null,null,null,null,null,null,null,null,null,null,null,null,null,null,null,null,null,null,"Date"]
["Specify in the box below, items not required and explain why (include documentation, if applicable):"]
[]
[]
["Dated:"]
["Statement Completed by (please print):"]
["Signature:"]
["Title:"]
["Agency or Department:"]
["Agency or Department Address:"]
["Agency or Department Phone:"]

{"sheet":"E - Loan Amount & Unit Mix","index":6,"n_rows":51,"n_cols":51,"rows_kept":51,"cut":false,"hidden":false,"merged":[[22,1,22,2],[22,3,22,4],[22,11,22,12],[24,8,24,10],[25,8,25,10],[27,19,27,21],[28,19,28,21],[23,11,23,12],[22,13,22,15],[23,1,23,2],[23,3,23,4],[28,5,28,7],[24,5,24,7],[25,5,25,7],[26,8,26,10],[24,13,24,15],[25,16,25,18],[17,25,17,27],[18,22,18,24],[17,22,17,24],[19,25,19,27],[26,16,26,18],[24,11,24,12],[21,8,21,10],[17,28,17,30],[26,19,26,21],[25,22,25,24],[20,19,20,21],[23,25,23,27],[22,25,22,27],[20,25,20,27],[21,25,21,27],[17,19,17,21],[18,19,18,21],[24,25,24,27],[25,25,25,27],[0,35,0,37],[0,0,0,34],[27,35,27,37],[4,0,4,37],[5,0,31,0],[22,19,22,21],[23,19,23,21],[24,19,24,21],[25,19,25,21],[5,19,5,21],[6,19,6,21],[7,19,7,21],[8,13,8,21],[9,19,10,21],[11,19,11,21],[12,19,12,21],[18,35,18,37],[19,35,19,37],[20,35,20,37],[21,35,21,37],[22,35,22,37],[23,35,23,37],[24,35,24,37],[25,35,25,37],[26,35,26,37],[25,28,25,30],[26,28,26,30],[19,28,19,30],[18,28,18,30],[24,28,24,30],[23,28,23,30],[21,28,21,30],[22,28,22,30],[24,31,24,34],[25,31,25,34],[26,31,26,34],[5,35,5,37],[6,35,10,37],[11,35,11,37],[12,35,12,37],[13,35,13,37],[14,35,14,37],[15,35,15,37],[16,35,16,37],[17,35,17,37],[14,31,14,34],[15,31,15,34],[16,31,16,34],[15,28,15,30],[16,28,16,30],[5,28,5,30],[6,28,10,30],[35,0,35,25],[36,0,36,25],[29,8,29,10],[30,11,30,12],[30,16,30,18],[21,11,21,12],[21,1,21,2],[21,3,21,4],[20,11,20,12],[31,1,31,2],[28,1,28,2],[28,3,28,4],[27,25,27,27],[28,11,28,12],[28,22,28,24],[26,25,26,27],[14,3,14,4],[47,35,49,37],[1,35,2,37],[15,22,15,24],[39,26,39,28],[15,25,15,27],[31,25,31,27],[14,25,14,27],[18,25,18,27],[27,13,27,15],[28,13,28,15],[27,22,27,24],[29,28,29,30],[30,28,30,30],[14,28,14,30],[20,28,20,30],[7,16,7,18],[5,16,5,18],[11,28,11,30],[40,29,40,31],[36,26,36,28],[37,0,37,25],[16,25,16,27],[38,0,38,25],[30,3,30,4],[14,16,14,18],[15,16,15,18],[14,5,14,7],[6,8,10,10],[11,8,11,10],[12,8,12,10],[13,8,13,10],[14,8,14,10],[15,8,15,10],[15,13,15,15],[16,8,16,10],[16,3,16,4],[16,11,16,12],[14,13,14,15],[6,3,10,4],[12,1,12,2],[12,3,12,4],[14,11,14,12],[7,13,7,15],[15,1,15,2],[3,0,3,37],[27,11,27,12],[21,13,21,15],[25,11,25,12],[26,1,26,2],[26,3,26,4],[26,11,26,12],[25,1,25,2],[25,3,25,4],[23,16,23,18],[24,16,24,18],[24,1,24,2],[24,3,24,4],[9,13,10,15],[11,13,11,15],[14,1,14,2],[6,31,10,34],[11,31,11,34],[12,31,12,34],[13,31,13,34],[5,22,5,24],[9,16,10,18],[11,16,11,18],[12,16,12,18],[1,0,2,6],[1,7,2,8],[1,20,2,24],[13,13,13,15],[6,1,10,2],[12,28,12,30],[13,28,13,30],[16,1,16,2],[1,9,2,19],[12,13,12,15],[5,13,5,15],[5,25,5,27],[13,11,13,12],[6,16,6,18],[11,25,11,27],[6,25,10,27],[13,25,13,27],[11,22,11,24],[12,22,12,24],[1,25,2,34],[6,22,10,24],[13,16,13,18],[12,25,12,27],[5,31,5,34],[5,5,5,7],[5,11,5,12],[13,1,13,2],[13,3,13,4],[11,1,11,2],[11,3,11,4],[5,1,5,2],[5,3,5,4],[6,13,6,15],[11,11,11,12],[6,5,10,7],[6,11,10,12],[12,11,12,12],[11,5,11,7],[12,5,12,7],[13,5,13,7],[5,8,5,10],[13,22,13,24],[17,16,17,18],[18,16,18,18],[19,16,19,18],[20,16,20,18],[21,16,21,18],[22,16,22,18],[22,8,22,10],[27,8,27,10],[26,22,26,24],[24,22,24,24],[25,13,25,15],[26,13,26,15],[13,19,13,21],[14,19,14,21],[20,22,20,24],[23,22,23,24],[19,22,19,24],[21,22,21,24],[22,22,22,24],[21,19,21,21],[23,8,23,10],[23,13,23,15],[19,19,19,21],[20,1,20,2],[20,3,20,4],[19,1,19,2],[19,3,19,4],[17,11,17,12],[19,11,19,12],[18,11,18,12],[20,13,20,15],[17,13,17,15],[18,13,18,15],[19,13,19,15],[18,1,18,2],[17,1,17,2],[17,5,17,7],[17,8,17,10],[20,8,20,10],[18,8,18,10],[19,8,19,10],[31,35,31,37],[31,16,31,18],[32,0,32,2],[32,3,32,4],[32,9,32,29],[32,5,32,8],[28,28,28,30],[31,28,31,30],[31,31,31,34],[34,0,34,25],[34,29,34,31],[31,13,31,15],[27,1,27,2],[27,3,27,4],[29,3,29,4],[29,11,29,12],[29,16,29,18],[29,25,29,27],[30,25,30,27],[28,25,28,27],[30,8,30,10],[31,11,31,12],[31,8,31,10],[31,22,31,24],[31,3,31,7],[29,19,29,21],[30,19,30,21],[31,19,31,21],[33,0,33,37],[29,22,29,24],[30,22,30,24],[28,8,28,10],[27,28,27,30],[38,26,38,28],[39,0,39,25],[16,22,16,24],[29,13,29,15],[30,13,30,15],[29,1,29,2],[29,31,29,34],[30,31,30,34],[30,1,30,2],[32,30,32,35],[28,35,28,37],[29,35,29,37],[30,35,30,37],[32,36,32,37],[26,5,26,7],[27,5,27,7],[30,5,30,7],[29,5,29,7],[35,26,35,28],[37,26,37,28],[27,16,27,18],[28,16,28,18],[27,31,27,34],[28,31,28,34],[14,22,14,24],[17,31,17,34],[18,31,18,34],[19,31,19,34],[20,31,20,34],[21,31,21,34],[22,31,22,34],[23,31,23,34],[17,3,17,4],[18,3,18,4],[18,5,18,7],[19,5,19,7],[20,5,20,7],[21,5,21,7],[22,5,22,7],[23,5,23,7],[16,16,16,18],[15,11,15,12],[15,3,15,4],[16,13,16,15],[15,19,15,21],[16,19,16,21],[15,5,15,7],[16,5,16,7],[40,18,40,28],[40,0,40,15],[40,16,40,17],[42,0,42,37],[43,0,43,24],[50,29,50,34],[48,16,48,19],[49,16,49,19],[48,25,49,28],[47,29,49,34],[50,25,50,28],[47,0,47,24],[50,0,50,24],[43,25,43,28],[44,25,44,28],[45,25,45,28],[46,25,46,28],[47,25,47,28],[48,20,49,24],[48,0,48,15],[49,0,49,15],[44,0,44,24],[45,0,45,24],[46,0,46,24]]}
["HHC Loan Amount & Unit Mix",null,null,null,null,null,null,null,null,null,null,null,null,null,null,null,null,null,null,null,null,null,null,null,null,null,null,null,null,null,null,null,null,null,null,{"$f":"'B - Applicant'!AJ1","v":"Rev. 3/4/20"}]
["Tax Credits Applied For?",null,null,null,null,null,null,null,null,"1. HHC Capital Loan Amount Requested",null,null,null,null,null,null,null,null,null,null,null,null,null,null,null,"2. Capitalized Operating Subsidy Reserve (COSR) - from UA, 'HHC COSR Calc' worksheet (cell C8)"]
[]
["Stacking Unit-Based Subsidies 102(k)(1) - HCD does not allow stacking of multiple HCD development funding sources on an HHC Assisted Unit (using multiple HCD funding sources on a single HHC Assisted unit). Projects may have funding from other HCD programs, including programs designed to fund infrastructure such as Infill Infrastructure Grants (IIG) and Affordable Housing Sustainable Communities (AHSC), provided that the funding assistance is to support non-HHC Assisted units. DO NOT INCLUDE HHC ASSISTED UNITS AND UNITS WITH OTHER HCD FUNDING ON THE SAME LINE. "]
[{"$f":"CONCATENATE(\"Maximum HHC Loan Amount Chart\",\" - click here for 2019 HHC loan limits - (beginning on page 31)\")","v":"Maximum HHC Loan Amount Chart - click here for 2019 HHC loan limits - (beginning on page 31)"}]
[{"$f":"IF('B - Applicant'!N5=\"\",\"\",'B - Applicant'!N5&\" County\")","v":""},"A",null,"B",null,"C",null,null,"D",null,null,"E",null,"F",null,null,"G",null,null,"H",null,null,"I",null,null,"J",null,null,"K",null,null,"L",null,null,null,"M"]
[null,"# of Units",null,"# of Bedrms",null,"Restricted\n% of Area Median Income (AMI)",null,null,"Are these Supportive Housing units?",null,null,"Mngr Units",null,{"$f":"IF(N32=0,0,N32/B32)","v":0},null,null,{"$f":"IF(Q32=0,0,Q32/B32)","v":0},null,null,{"$f":"SUM(N7:S7)","v":0},null,null,"Eligble Per Unit Loan Limit",null,null,"3. Capital Loan Amount Limit",null,null,"Total Restricted Units",null,null,"Total Unrestricted Units",null,null,null,"Other HCD Funding on units"]
[null,null,null,null,null,null,null,null,null,null,null,null,null,{"$f":"IF(N32=0,0,N32/T32)","v":0},null,null,{"$f":"IF(Q32=0,0,Q32/T32)","v":0},null,null,{"$f":"SUM(N8:S8)","v":0}]
[null,null,null,null,null,null,null,null,null,null,null,null,null,"Total HHC Assisted Units"]
[null,null,null,null,null,null,null,null,null,null,null,null,null,"Chronically Homeless",null,null,"Homeless and a high-cost health user",null,null,"Total HHC Assisted Units",null,null,null,null,null,null,null,null,null,null,null,null,null,null,null,null,null,null,"TAX Credit","Bedrooms"]
[null,null,null,null,null,null,null,null,null,null,null,null,null,null,null,null,null,null,null,null,null,null,null,null,null,null,null,null,null,null,null,null,null,null,null,null,null,null,{"$f":"IF(H2=9%,9%,\"4%/None\")","v":"4%/None"},0,1,2,3,4,null,"Supportive HSG"]
[null,null,null,null,null,null,null,null,null,null,null,null,null,null,null,null,null,null,null,{"$f":"SUM(N12:S12)","v":0},null,null,{"$f":"IF(D12=\"\",0,IF(D12=0,AN12,IF(D12=1,AO12,IF(D12=2,AP12,IF(D12=3,AQ12,IF(D12>=4,AR12,0))))))","v":0},null,null,{"$f":"T12*W12","v":0},null,null,{"$f":"IF(F12=\"\",\"\",B12)","v":""},null,null,{"$f":"IF(F12=\"\",B12,0)","v":0},null,null,null,null,null,null,{"$f":"IF(F12=\"\",0,'B - Applicant'!$N$5&\"\"&F12)","v":0},{"$f":"_xlfn.IFNA(IF($H$2=9%,VLOOKUP('E - Loan Amount & Unit Mix'!$AM12,'Loan PU Amts'!$A$1:$K$233,2,FALSE),VLOOKUP('E - Loan Amount & Unit Mix'!$AM12,'Loan PU Amts'!$A$1:$K$233,7,FALSE)),0)","v":0},{"$f":"_xlfn.IFNA(IF($H$2=9%,VLOOKUP('E - Loan Amount & Unit Mix'!$AM12,'Loan PU Amts'!$A$1:$K$233,3,FALSE),VLOOKUP('E - Loan Amount & Unit Mix'!$AM12,'Loan PU Amts'!$A$1:$K$233,8,FALSE)),0)","v":0},{"$f":"_xlfn.IFNA(IF($H$2=9%,VLOOKUP('E - Loan Amount & Unit Mix'!$AM12,'Loan PU Amts'!$A$1:$K$233,4,FALSE),VLOOKUP('E - Loan Amount & Unit Mix'!$AM12,'Loan PU Amts'!$A$1:$K$233,9,FALSE)),0)","v":0},{"$f":"_xlfn.IFNA(IF($H$2=9%,VLOOKUP('E - Loan Amount & Unit Mix'!$AM12,'Loan PU Amts'!$A$1:$K$233,5,FALSE),VLOOKUP('E - Loan Amount & Unit Mix'!$AM12,'Loan PU Amts'!$A$1:$K$233,10,FALSE)),0)","v":0},{"$f":"_xlfn.IFNA(IF($H$2=9%,VLOOKUP('E - Loan Amount & Unit Mix'!$AM12,'Loan PU Amts'!$A$1:$K$233,6,FALSE),VLOOKUP('E - Loan Amount & Unit Mix'!$AM12,'Loan PU Amts'!$A$1:$K$233,11,FALSE)),0)","v":0},null,{"$f":"IF(I12=\"yes\",B12,0)","v":0},null,null,null,null,{"$f":"IF(OR(F12=\"35%\",F12=\"40%\",F12=\"45%\",F12=\"50%\",F12=\"55%\",F12=\"60%\"),1,0)","v":0}]
[null,null,null,null,null,null,null,null,null,null,null,null,null,null,null,null,null,null,null,{"$f":"SUM(N13:S13)","v":0},null,null,{"$f":"IF(D13=\"\",0,IF(D13=0,AN13,IF(D13=1,AO13,IF(D13=2,AP13,IF(D13=3,AQ13,IF(D13>=4,AR13,0))))))","v":0},null,null,{"$f":"T13*W13","v":0},null,null,"",null,null,0,null,null,null,null,null,null,{"$f":"IF(F13=\"\",0,'B - Applicant'!$N$5&\"\"&F13)","v":0},{"$f":"_xlfn.IFNA(IF($H$2=9%,VLOOKUP('E - Loan Amount & Unit Mix'!$AM13,'Loan PU Amts'!$A$1:$K$233,2,FALSE),VLOOKUP('E - Loan Amount & Unit Mix'!$AM13,'Loan PU Amts'!$A$1:$K$233,7,FALSE)),0)","v":0},{"$f":"_xlfn.IFNA(IF($H$2=9%,VLOOKUP('E - Loan Amount & Unit Mix'!$AM13,'Loan PU Amts'!$A$1:$K$233,3,FALSE),VLOOKUP('E - Loan Amount & Unit Mix'!$AM13,'Loan PU Amts'!$A$1:$K$233,8,FALSE)),0)","v":0},{"$f":"_xlfn.IFNA(IF($H$2=9%,VLOOKUP('E - Loan Amount & Unit Mix'!$AM13,'Loan PU Amts'!$A$1:$K$233,4,FALSE),VLOOKUP('E - Loan Amount & Unit Mix'!$AM13,'Loan PU Amts'!$A$1:$K$233,9,FALSE)),0)","v":0},{"$f":"_xlfn.IFNA(IF($H$2=9%,VLOOKUP('E - Loan Amount & Unit Mix'!$AM13,'Loan PU Amts'!$A$1:$K$233,5,FALSE),VLOOKUP('E - Loan Amount & Unit Mix'!$AM13,'Loan PU Amts'!$A$1:$K$233,10,FALSE)),0)","v":0},{"$f":"_xlfn.IFNA(IF($H$2=9%,VLOOKUP('E - Loan Amount & Unit Mix'!$AM13,'Loan PU Amts'!$A$1:$K$233,6,FALSE),VLOOKUP('E - Loan Amount & Unit Mix'!$AM13,'Loan PU Amts'!$A$1:$K$233,11,FALSE)),0)","v":0},null,{"$f":"IF(I13=\"yes\",B13,0)","v":0},null,null,null,null,{"$f":"IF(OR(F13=\"35%\",F13=\"40%\",F13=\"45%\",F13=\"50%\",F13=\"55%\",F13=\"60%\"),1,0)","v":0}]
[null,null,null,null,null,null,null,null,null,null,null,null,null,null,null,null,null,null,null,0,null,null,{"$f":"IF(D14=\"\",0,IF(D14=0,AN14,IF(D14=1,AO14,IF(D14=2,AP14,IF(D14=3,AQ14,IF(D14>=4,AR14,0))))))","v":0},null,null,0,null,null,"",null,null,0,null,null,null,null,null,null,{"$f":"IF(F14=\"\",0,'B - Applicant'!$N$5&\"\"&F14)","v":0},{"$f":"_xlfn.IFNA(IF($H$2=9%,VLOOKUP('E - Loan Amount & Unit Mix'!$AM14,'Loan PU Amts'!$A$1:$K$233,2,FALSE),VLOOKUP('E - Loan Amount & Unit Mix'!$AM14,'Loan PU Amts'!$A$1:$K$233,7,FALSE)),0)","v":0},{"$f":"_xlfn.IFNA(IF($H$2=9%,VLOOKUP('E - Loan Amount & Unit Mix'!$AM14,'Loan PU Amts'!$A$1:$K$233,3,FALSE),VLOOKUP('E - Loan Amount & Unit Mix'!$AM14,'Loan PU Amts'!$A$1:$K$233,8,FALSE)),0)","v":0},{"$f":"_xlfn.IFNA(IF($H$2=9%,VLOOKUP('E - Loan Amount & Unit Mix'!$AM14,'Loan PU Amts'!$A$1:$K$233,4,FALSE),VLOOKUP('E - Loan Amount & Unit Mix'!$AM14,'Loan PU Amts'!$A$1:$K$233,9,FALSE)),0)","v":0},{"$f":"_xlfn.IFNA(IF($H$2=9%,VLOOKUP('E - Loan Amount & Unit Mix'!$AM14,'Loan PU Amts'!$A$1:$K$233,5,FALSE),VLOOKUP('E - Loan Amount & Unit Mix'!$AM14,'Loan PU Amts'!$A$1:$K$233,10,FALSE)),0)","v":0},{"$f":"_xlfn.IFNA(IF($H$2=9%,VLOOKUP('E - Loan Amount & Unit Mix'!$AM14,'Loan PU Amts'!$A$1:$K$233,6,FALSE),VLOOKUP('E - Loan Amount & Unit Mix'!$AM14,'Loan PU Amts'!$A$1:$K$233,11,FALSE)),0)","v":0},null,0,null,null,null,null,0]
[null,null,null,null,null,null,null,null,null,null,null,null,null,null,null,null,null,null,null,0,null,null,0,null,null,0,null,null,"",null,null,0,null,null,null,null,null,null,{"$f":"IF(F15=\"\",0,'B - Applicant'!$N$5&\"\"&F15)","v":0},{"$f":"_xlfn.IFNA(IF($H$2=9%,VLOOKUP('E - Loan Amount & Unit Mix'!$AM15,'Loan PU Amts'!$A$1:$K$233,2,FALSE),VLOOKUP('E - Loan Amount & Unit Mix'!$AM15,'Loan PU Amts'!$A$1:$K$233,7,FALSE)),0)","v":0},{"$f":"_xlfn.IFNA(IF($H$2=9%,VLOOKUP('E - Loan Amount & Unit Mix'!$AM15,'Loan PU Amts'!$A$1:$K$233,3,FALSE),VLOOKUP('E - Loan Amount & Unit Mix'!$AM15,'Loan PU Amts'!$A$1:$K$233,8,FALSE)),0)","v":0},{"$f":"_xlfn.IFNA(IF($H$2=9%,VLOOKUP('E - Loan Amount & Unit Mix'!$AM15,'Loan PU Amts'!$A$1:$K$233,4,FALSE),VLOOKUP('E - Loan Amount & Unit Mix'!$AM15,'Loan PU Amts'!$A$1:$K$233,9,FALSE)),0)","v":0},{"$f":"_xlfn.IFNA(IF($H$2=9%,VLOOKUP('E - Loan Amount & Unit Mix'!$AM15,'Loan PU Amts'!$A$1:$K$233,5,FALSE),VLOOKUP('E - Loan Amount & Unit Mix'!$AM15,'Loan PU Amts'!$A$1:$K$233,10,FALSE)),0)","v":0},{"$f":"_xlfn.IFNA(IF($H$2=9%,VLOOKUP('E - Loan Amount & Unit Mix'!$AM15,'Loan PU Amts'!$A$1:$K$233,6,FALSE),VLOOKUP('E - Loan Amount & Unit Mix'!$AM15,'Loan PU Amts'!$A$1:$K$233,11,FALSE)),0)","v":0},null,{"$f":"IF(I15=\"yes\",B15,0)","v":0},null,null,null,null,0]
[null,null,null,null,null,null,null,null,null,null,null,null,null,null,null,null,null,null,null,0,null,null,0,null,null,0,null,null,"",null,null,0,null,null,null,null,null,null,{"$f":"IF(F16=\"\",0,'B - Applicant'!$N$5&\"\"&F16)","v":0},{"$f":"_xlfn.IFNA(IF($H$2=9%,VLOOKUP('E - Loan Amount & Unit Mix'!$AM16,'Loan PU Amts'!$A$1:$K$233,2,FALSE),VLOOKUP('E - Loan Amount & Unit Mix'!$AM16,'Loan PU Amts'!$A$1:$K$233,7,FALSE)),0)","v":0},{"$f":"_xlfn.IFNA(IF($H$2=9%,VLOOKUP('E - Loan Amount & Unit Mix'!$AM16,'Loan PU Amts'!$A$1:$K$233,3,FALSE),VLOOKUP('E - Loan Amount & Unit Mix'!$AM16,'Loan PU Amts'!$A$1:$K$233,8,FALSE)),0)","v":0},{"$f":"_xlfn.IFNA(IF($H$2=9%,VLOOKUP('E - Loan Amount & Unit Mix'!$AM16,'Loan PU Amts'!$A$1:$K$233,4,FALSE),VLOOKUP('E - Loan Amount & Unit Mix'!$AM16,'Loan PU Amts'!$A$1:$K$233,9,FALSE)),0)","v":0},{"$f":"_xlfn.IFNA(IF($H$2=9%,VLOOKUP('E - Loan Amount & Unit Mix'!$AM16,'Loan PU Amts'!$A$1:$K$233,5,FALSE),VLOOKUP('E - Loan Amount & Unit Mix'!$AM16,'Loan PU Amts'!$A$1:$K$233,10,FALSE)),0)","v":0},{"$f":"_xlfn.IFNA(IF($H$2=9%,VLOOKUP('E - Loan Amount & Unit Mix'!$AM16,'Loan PU Amts'!$A$1:$K$233,6,FALSE),VLOOKUP('E - Loan Amount & Unit Mix'!$AM16,'Loan PU Amts'!$A$1:$K$233,11,FALSE)),0)","v":0},null,0,null,null,null,null,0]
[null,null,null,null,null,null,null,null,null,null,null,null,null,null,null,null,null,null,null,0,null,null,0,null,null,0,null,null,"",null,null,0,null,null,null,null,null,null,{"$f":"IF(F17=\"\",0,'B - Applicant'!$N$5&\"\"&F17)","v":0},{"$f":"_xlfn.IFNA(IF($H$2=9%,VLOOKUP('E - Loan Amount & Unit Mix'!$AM17,'Loan PU Amts'!$A$1:$K$233,2,FALSE),VLOOKUP('E - Loan Amount & Unit Mix'!$AM17,'Loan PU Amts'!$A$1:$K$233,7,FALSE)),0)","v":0},{"$f":"_xlfn.IFNA(IF($H$2=9%,VLOOKUP('E - Loan Amount & Unit Mix'!$AM17,'Loan PU Amts'!$A$1:$K$233,3,FALSE),VLOOKUP('E - Loan Amount & Unit Mix'!$AM17,'Loan PU Amts'!$A$1:$K$233,8,FALSE)),0)","v":0},{"$f":"_xlfn.IFNA(IF($H$2=9%,VLOOKUP('E - Loan Amount & Unit Mix'!$AM17,'Loan PU Amts'!$A$1:$K$233,4,FALSE),VLOOKUP('E - Loan Amount & Unit Mix'!$AM17,'Loan PU Amts'!$A$1:$K$233,9,FALSE)),0)","v":0},{"$f":"_xlfn.IFNA(IF($H$2=9%,VLOOKUP('E - Loan Amount & Unit Mix'!$AM17,'Loan PU Amts'!$A$1:$K$233,5,FALSE),VLOOKUP('E - Loan Amount & Unit Mix'!$AM17,'Loan PU Amts'!$A$1:$K$233,10,FALSE)),0)","v":0},{"$f":"_xlfn.IFNA(IF($H$2=9%,VLOOKUP('E - Loan Amount & Unit Mix'!$AM17,'Loan PU Amts'!$A$1:$K$233,6,FALSE),VLOOKUP('E - Loan Amount & Unit Mix'!$AM17,'Loan PU Amts'!$A$1:$K$233,11,FALSE)),0)","v":0},null,0,null,null,null,null,0]
[null,null,null,null,null,null,null,null,null,null,null,null,null,null,null,null,null,null,null,0,null,null,0,null,null,0,null,null,"",null,null,0,null,null,null,null,null,null,{"$f":"IF(F18=\"\",0,'B - Applicant'!$N$5&\"\"&F18)","v":0},{"$f":"_xlfn.IFNA(IF($H$2=9%,VLOOKUP('E - Loan Amount & Unit Mix'!$AM18,'Loan PU Amts'!$A$1:$K$233,2,FALSE),VLOOKUP('E - Loan Amount & Unit Mix'!$AM18,'Loan PU Amts'!$A$1:$K$233,7,FALSE)),0)","v":0},{"$f":"_xlfn.IFNA(IF($H$2=9%,VLOOKUP('E - Loan Amount & Unit Mix'!$AM18,'Loan PU Amts'!$A$1:$K$233,3,FALSE),VLOOKUP('E - Loan Amount & Unit Mix'!$AM18,'Loan PU Amts'!$A$1:$K$233,8,FALSE)),0)","v":0},{"$f":"_xlfn.IFNA(IF($H$2=9%,VLOOKUP('E - Loan Amount & Unit Mix'!$AM18,'Loan PU Amts'!$A$1:$K$233,4,FALSE),VLOOKUP('E - Loan Amount & Unit Mix'!$AM18,'Loan PU Amts'!$A$1:$K$233,9,FALSE)),0)","v":0},{"$f":"_xlfn.IFNA(IF($H$2=9%,VLOOKUP('E - Loan Amount & Unit Mix'!$AM18,'Loan PU Amts'!$A$1:$K$233,5,FALSE),VLOOKUP('E - Loan Amount & Unit Mix'!$AM18,'Loan PU Amts'!$A$1:$K$233,10,FALSE)),0)","v":0},{"$f":"_xlfn.IFNA(IF($H$2=9%,VLOOKUP('E - Loan Amount & Unit Mix'!$AM18,'Loan PU Amts'!$A$1:$K$233,6,FALSE),VLOOKUP('E - Loan Amount & Unit Mix'!$AM18,'Loan PU Amts'!$A$1:$K$233,11,FALSE)),0)","v":0},null,0,null,null,null,null,0]
[null,null,null,null,null,null,null,null,null,null,null,null,null,null,null,null,null,null,null,0,null,null,0,null,null,0,null,null,"",null,null,0,null,null,null,null,null,null,{"$f":"IF(F19=\"\",0,'B - Applicant'!$N$5&\"\"&F19)","v":0},{"$f":"_xlfn.IFNA(IF($H$2=9%,VLOOKUP('E - Loan Amount & Unit Mix'!$AM19,'Loan PU Amts'!$A$1:$K$233,2,FALSE),VLOOKUP('E - Loan Amount & Unit Mix'!$AM19,'Loan PU Amts'!$A$1:$K$233,7,FALSE)),0)","v":0},{"$f":"_xlfn.IFNA(IF($H$2=9%,VLOOKUP('E - Loan Amount & Unit Mix'!$AM19,'Loan PU Amts'!$A$1:$K$233,3,FALSE),VLOOKUP('E - Loan Amount & Unit Mix'!$AM19,'Loan PU Amts'!$A$1:$K$233,8,FALSE)),0)","v":0},{"$f":"_xlfn.IFNA(IF($H$2=9%,VLOOKUP('E - Loan Amount & Unit Mix'!$AM19,'Loan PU Amts'!$A$1:$K$233,4,FALSE),VLOOKUP('E - Loan Amount & Unit Mix'!$AM19,'Loan PU Amts'!$A$1:$K$233,9,FALSE)),0)","v":0},{"$f":"_xlfn.IFNA(IF($H$2=9%,VLOOKUP('E - Loan Amount & Unit Mix'!$AM19,'Loan PU Amts'!$A$1:$K$233,5,FALSE),VLOOKUP('E - Loan Amount & Unit Mix'!$AM19,'Loan PU Amts'!$A$1:$K$233,10,FALSE)),0)","v":0},{"$f":"_xlfn.IFNA(IF($H$2=9%,VLOOKUP('E - Loan Amount & Unit Mix'!$AM19,'Loan PU Amts'!$A$1:$K$233,6,FALSE),VLOOKUP('E - Loan Amount & Unit Mix'!$AM19,'Loan PU Amts'!$A$1:$K$233,11,FALSE)),0)","v":0},null,0,null,null,null,null,0]
[null,null,null,null,null,null,null,null,null,null,null,null,null,null,null,null,null,null,null,0,null,null,0,null,null,0,null,null,"",null,null,0,null,null,null,null,null,null,{"$f":"IF(F20=\"\",0,'B - Applicant'!$N$5&\"\"&F20)","v":0},{"$f":"_xlfn.IFNA(IF($H$2=9%,VLOOKUP('E - Loan Amount & Unit Mix'!$AM20,'Loan PU Amts'!$A$1:$K$233,2,FALSE),VLOOKUP('E - Loan Amount & Unit Mix'!$AM20,'Loan PU Amts'!$A$1:$K$233,7,FALSE)),0)","v":0},{"$f":"_xlfn.IFNA(IF($H$2=9%,VLOOKUP('E - Loan Amount & Unit Mix'!$AM20,'Loan PU Amts'!$A$1:$K$233,3,FALSE),VLOOKUP('E - Loan Amount & Unit Mix'!$AM20,'Loan PU Amts'!$A$1:$K$233,8,FALSE)),0)","v":0},{"$f":"_xlfn.IFNA(IF($H$2=9%,VLOOKUP('E - Loan Amount & Unit Mix'!$AM20,'Loan PU Amts'!$A$1:$K$233,4,FALSE),VLOOKUP('E - Loan Amount & Unit Mix'!$AM20,'Loan PU Amts'!$A$1:$K$233,9,FALSE)),0)","v":0},{"$f":"_xlfn.IFNA(IF($H$2=9%,VLOOKUP('E - Loan Amount & Unit Mix'!$AM20,'Loan PU Amts'!$A$1:$K$233,5,FALSE),VLOOKUP('E - Loan Amount & Unit Mix'!$AM20,'Loan PU Amts'!$A$1:$K$233,10,FALSE)),0)","v":0},{"$f":"_xlfn.IFNA(IF($H$2=9%,VLOOKUP('E - Loan Amount & Unit Mix'!$AM20,'Loan PU Amts'!$A$1:$K$233,6,FALSE),VLOOKUP('E - Loan Amount & Unit Mix'!$AM20,'Loan PU Amts'!$A$1:$K$233,11,FALSE)),0)","v":0},null,0,null,null,null,null,0]
[null,null,null,null,null,null,null,null,null,null,null,null,null,null,null,null,null,null,null,0,null,null,0,null,null,0,null,null,"",null,null,0,null,null,null,null,null,null,{"$f":"IF(F21=\"\",0,'B - Applicant'!$N$5&\"\"&F21)","v":0},{"$f":"_xlfn.IFNA(IF($H$2=9%,VLOOKUP('E - Loan Amount & Unit Mix'!$AM21,'Loan PU Amts'!$A$1:$K$233,2,FALSE),VLOOKUP('E - Loan Amount & Unit Mix'!$AM21,'Loan PU Amts'!$A$1:$K$233,7,FALSE)),0)","v":0},{"$f":"_xlfn.IFNA(IF($H$2=9%,VLOOKUP('E - Loan Amount & Unit Mix'!$AM21,'Loan PU Amts'!$A$1:$K$233,3,FALSE),VLOOKUP('E - Loan Amount & Unit Mix'!$AM21,'Loan PU Amts'!$A$1:$K$233,8,FALSE)),0)","v":0},{"$f":"_xlfn.IFNA(IF($H$2=9%,VLOOKUP('E - Loan Amount & Unit Mix'!$AM21,'Loan PU Amts'!$A$1:$K$233,4,FALSE),VLOOKUP('E - Loan Amount & Unit Mix'!$AM21,'Loan PU Amts'!$A$1:$K$233,9,FALSE)),0)","v":0},{"$f":"_xlfn.IFNA(IF($H$2=9%,VLOOKUP('E - Loan Amount & Unit Mix'!$AM21,'Loan PU Amts'!$A$1:$K$233,5,FALSE),VLOOKUP('E - Loan Amount & Unit Mix'!$AM21,'Loan PU Amts'!$A$1:$K$233,10,FALSE)),0)","v":0},{"$f":"_xlfn.IFNA(IF($H$2=9%,VLOOKUP('E - Loan Amount & Unit Mix'!$AM21,'Loan PU Amts'!$A$1:$K$233,6,FALSE),VLOOKUP('E - Loan Amount & Unit Mix'!$AM21,'Loan PU Amts'!$A$1:$K$233,11,FALSE)),0)","v":0},null,0,null,null,null,null,0]
[null,null,null,null,null,null,null,null,null,null,null,null,null,null,null,null,null,null,null,0,null,null,0,null,null,0,null,null,"",null,null,0,null,null,null,null,null,null,{"$f":"IF(F22=\"\",0,'B - Applicant'!$N$5&\"\"&F22)","v":0},{"$f":"_xlfn.IFNA(IF($H$2=9%,VLOOKUP('E - Loan Amount & Unit Mix'!$AM22,'Loan PU Amts'!$A$1:$K$233,2,FALSE),VLOOKUP('E - Loan Amount & Unit Mix'!$AM22,'Loan PU Amts'!$A$1:$K$233,7,FALSE)),0)","v":0},{"$f":"_xlfn.IFNA(IF($H$2=9%,VLOOKUP('E - Loan Amount & Unit Mix'!$AM22,'Loan PU Amts'!$A$1:$K$233,3,FALSE),VLOOKUP('E - Loan Amount & Unit Mix'!$AM22,'Loan PU Amts'!$A$1:$K$233,8,FALSE)),0)","v":0},{"$f":"_xlfn.IFNA(IF($H$2=9%,VLOOKUP('E - Loan Amount & Unit Mix'!$AM22,'Loan PU Amts'!$A$1:$K$233,4,FALSE),VLOOKUP('E - Loan Amount & Unit Mix'!$AM22,'Loan PU Amts'!$A$1:$K$233,9,FALSE)),0)","v":0},{"$f":"_xlfn.IFNA(IF($H$2=9%,VLOOKUP('E - Loan Amount & Unit Mix'!$AM22,'Loan PU Amts'!$A$1:$K$233,5,FALSE),VLOOKUP('E - Loan Amount & Unit Mix'!$AM22,'Loan PU Amts'!$A$1:$K$233,10,FALSE)),0)","v":0},{"$f":"_xlfn.IFNA(IF($H$2=9%,VLOOKUP('E - Loan Amount & Unit Mix'!$AM22,'Loan PU Amts'!$A$1:$K$233,6,FALSE),VLOOKUP('E - Loan Amount & Unit Mix'!$AM22,'Loan PU Amts'!$A$1:$K$233,11,FALSE)),0)","v":0},null,0,null,null,null,null,0]
[null,null,null,null,null,null,null,null,null,null,null,null,null,null,null,null,null,null,null,0,null,null,0,null,null,0,null,null,"",null,null,0,null,null,null,null,null,null,{"$f":"IF(F23=\"\",0,'B - Applicant'!$N$5&\"\"&F23)","v":0},{"$f":"_xlfn.IFNA(IF($H$2=9%,VLOOKUP('E - Loan Amount & Unit Mix'!$AM23,'Loan PU Amts'!$A$1:$K$233,2,FALSE),VLOOKUP('E - Loan Amount & Unit Mix'!$AM23,'Loan PU Amts'!$A$1:$K$233,7,FALSE)),0)","v":0},{"$f":"_xlfn.IFNA(IF($H$2=9%,VLOOKUP('E - Loan Amount & Unit Mix'!$AM23,'Loan PU Amts'!$A$1:$K$233,3,FALSE),VLOOKUP('E - Loan Amount & Unit Mix'!$AM23,'Loan PU Amts'!$A$1:$K$233,8,FALSE)),0)","v":0},{"$f":"_xlfn.IFNA(IF($H$2=9%,VLOOKUP('E - Loan Amount & Unit Mix'!$AM23,'Loan PU Amts'!$A$1:$K$233,4,FALSE),VLOOKUP('E - Loan Amount & Unit Mix'!$AM23,'Loan PU Amts'!$A$1:$K$233,9,FALSE)),0)","v":0},{"$f":"_xlfn.IFNA(IF($H$2=9%,VLOOKUP('E - Loan Amount & Unit Mix'!$AM23,'Loan PU Amts'!$A$1:$K$233,5,FALSE),VLOOKUP('E - Loan Amount & Unit Mix'!$AM23,'Loan PU Amts'!$A$1:$K$233,10,FALSE)),0)","v":0},{"$f":"_xlfn.IFNA(IF($H$2=9%,VLOOKUP('E - Loan Amount & Unit Mix'!$AM23,'Loan PU Amts'!$A$1:$K$233,6,FALSE),VLOOKUP('E - Loan Amount & Unit Mix'!$AM23,'Loan PU Amts'!$A$1:$K$233,11,FALSE)),0)","v":0},null,0,null,null,null,null,0]
[null,null,null,null,null,null,null,null,null,null,null,null,null,null,null,null,null,null,null,0,null,null,0,null,null,0,null,null,"",null,null,0,null,null,null,null,null,null,{"$f":"IF(F24=\"\",0,'B - Applicant'!$N$5&\"\"&F24)","v":0},{"$f":"_xlfn.IFNA(IF($H$2=9%,VLOOKUP('E - Loan Amount & Unit Mix'!$AM24,'Loan PU Amts'!$A$1:$K$233,2,FALSE),VLOOKUP('E - Loan Amount & Unit Mix'!$AM24,'Loan PU Amts'!$A$1:$K$233,7,FALSE)),0)","v":0},{"$f":"_xlfn.IFNA(IF($H$2=9%,VLOOKUP('E - Loan Amount & Unit Mix'!$AM24,'Loan PU Amts'!$A$1:$K$233,3,FALSE),VLOOKUP('E - Loan Amount & Unit Mix'!$AM24,'Loan PU Amts'!$A$1:$K$233,8,FALSE)),0)","v":0},{"$f":"_xlfn.IFNA(IF($H$2=9%,VLOOKUP('E - Loan Amount & Unit Mix'!$AM24,'Loan PU Amts'!$A$1:$K$233,4,FALSE),VLOOKUP('E - Loan Amount & Unit Mix'!$AM24,'Loan PU Amts'!$A$1:$K$233,9,FALSE)),0)","v":0},{"$f":"_xlfn.IFNA(IF($H$2=9%,VLOOKUP('E - Loan Amount & Unit Mix'!$AM24,'Loan PU Amts'!$A$1:$K$233,5,FALSE),VLOOKUP('E - Loan Amount & Unit Mix'!$AM24,'Loan PU Amts'!$A$1:$K$233,10,FALSE)),0)","v":0},{"$f":"_xlfn.IFNA(IF($H$2=9%,VLOOKUP('E - Loan Amount & Unit Mix'!$AM24,'Loan PU Amts'!$A$1:$K$233,6,FALSE),VLOOKUP('E - Loan Amount & Unit Mix'!$AM24,'Loan PU Amts'!$A$1:$K$233,11,FALSE)),0)","v":0},null,0,null,null,null,null,0]
[null,null,null,null,null,null,null,null,null,null,null,null,null,null,null,null,null,null,null,0,null,null,0,null,null,0,null,null,"",null,null,0,null,null,null,null,null,null,{"$f":"IF(F25=\"\",0,'B - Applicant'!$N$5&\"\"&F25)","v":0},{"$f":"_xlfn.IFNA(IF($H$2=9%,VLOOKUP('E - Loan Amount & Unit Mix'!$AM25,'Loan PU Amts'!$A$1:$K$233,2,FALSE),VLOOKUP('E - Loan Amount & Unit Mix'!$AM25,'Loan PU Amts'!$A$1:$K$233,7,FALSE)),0)","v":0},{"$f":"_xlfn.IFNA(IF($H$2=9%,VLOOKUP('E - Loan Amount & Unit Mix'!$AM25,'Loan PU Amts'!$A$1:$K$233,3,FALSE),VLOOKUP('E - Loan Amount & Unit Mix'!$AM25,'Loan PU Amts'!$A$1:$K$233,8,FALSE)),0)","v":0},{"$f":"_xlfn.IFNA(IF($H$2=9%,VLOOKUP('E - Loan Amount & Unit Mix'!$AM25,'Loan PU Amts'!$A$1:$K$233,4,FALSE),VLOOKUP('E - Loan Amount & Unit Mix'!$AM25,'Loan PU Amts'!$A$1:$K$233,9,FALSE)),0)","v":0},{"$f":"_xlfn.IFNA(IF($H$2=9%,VLOOKUP('E - Loan Amount & Unit Mix'!$AM25,'Loan PU Amts'!$A$1:$K$233,5,FALSE),VLOOKUP('E - Loan Amount & Unit Mix'!$AM25,'Loan PU Amts'!$A$1:$K$233,10,FALSE)),0)","v":0},{"$f":"_xlfn.IFNA(IF($H$2=9%,VLOOKUP('E - Loan Amount & Unit Mix'!$AM25,'Loan PU Amts'!$A$1:$K$233,6,FALSE),VLOOKUP('E - Loan Amount & Unit Mix'!$AM25,'Loan PU Amts'!$A$1:$K$233,11,FALSE)),0)","v":0},null,0,null,null,null,null,0]
[null,null,null,null,null,null,null,null,null,null,null,null,null,null,null,null,null,null,null,0,null,null,0,null,null,0,null,null,"",null,null,0,null,null,null,null,null,null,{"$f":"IF(F26=\"\",0,'B - Applicant'!$N$5&\"\"&F26)","v":0},{"$f":"_xlfn.IFNA(IF($H$2=9%,VLOOKUP('E - Loan Amount & Unit Mix'!$AM26,'Loan PU Amts'!$A$1:$K$233,2,FALSE),VLOOKUP('E - Loan Amount & Unit Mix'!$AM26,'Loan PU Amts'!$A$1:$K$233,7,FALSE)),0)","v":0},{"$f":"_xlfn.IFNA(IF($H$2=9%,VLOOKUP('E - Loan Amount & Unit Mix'!$AM26,'Loan PU Amts'!$A$1:$K$233,3,FALSE),VLOOKUP('E - Loan Amount & Unit Mix'!$AM26,'Loan PU Amts'!$A$1:$K$233,8,FALSE)),0)","v":0},{"$f":"_xlfn.IFNA(IF($H$2=9%,VLOOKUP('E - Loan Amount & Unit Mix'!$AM26,'Loan PU Amts'!$A$1:$K$233,4,FALSE),VLOOKUP('E - Loan Amount & Unit Mix'!$AM26,'Loan PU Amts'!$A$1:$K$233,9,FALSE)),0)","v":0},{"$f":"_xlfn.IFNA(IF($H$2=9%,VLOOKUP('E - Loan Amount & Unit Mix'!$AM26,'Loan PU Amts'!$A$1:$K$233,5,FALSE),VLOOKUP('E - Loan Amount & Unit Mix'!$AM26,'Loan PU Amts'!$A$1:$K$233,10,FALSE)),0)","v":0},{"$f":"_xlfn.IFNA(IF($H$2=9%,VLOOKUP('E - Loan Amount & Unit Mix'!$AM26,'Loan PU Amts'!$A$1:$K$233,6,FALSE),VLOOKUP('E - Loan Amount & Unit Mix'!$AM26,'Loan PU Amts'!$A$1:$K$233,11,FALSE)),0)","v":0},null,0,null,null,null,null,0]
[null,null,null,null,null,null,null,null,null,null,null,null,null,null,null,null,null,null,null,0,null,null,0,null,null,0,null,null,"",null,null,0,null,null,null,null,null,null,{"$f":"IF(F27=\"\",0,'B - Applicant'!$N$5&\"\"&F27)","v":0},{"$f":"_xlfn.IFNA(IF($H$2=9%,VLOOKUP('E - Loan Amount & Unit Mix'!$AM27,'Loan PU Amts'!$A$1:$K$233,2,FALSE),VLOOKUP('E - Loan Amount & Unit Mix'!$AM27,'Loan PU Amts'!$A$1:$K$233,7,FALSE)),0)","v":0},{"$f":"_xlfn.IFNA(IF($H$2=9%,VLOOKUP('E - Loan Amount & Unit Mix'!$AM27,'Loan PU Amts'!$A$1:$K$233,3,FALSE),VLOOKUP('E - Loan Amount & Unit Mix'!$AM27,'Loan PU Amts'!$A$1:$K$233,8,FALSE)),0)","v":0},{"$f":"_xlfn.IFNA(IF($H$2=9%,VLOOKUP('E - Loan Amount & Unit Mix'!$AM27,'Loan PU Amts'!$A$1:$K$233,4,FALSE),VLOOKUP('E - Loan Amount & Unit Mix'!$AM27,'Loan PU Amts'!$A$1:$K$233,9,FALSE)),0)","v":0},{"$f":"_xlfn.IFNA(IF($H$2=9%,VLOOKUP('E - Loan Amount & Unit Mix'!$AM27,'Loan PU Amts'!$A$1:$K$233,5,FALSE),VLOOKUP('E - Loan Amount & Unit Mix'!$AM27,'Loan PU Amts'!$A$1:$K$233,10,FALSE)),0)","v":0},{"$f":"_xlfn.IFNA(IF($H$2=9%,VLOOKUP('E - Loan Amount & Unit Mix'!$AM27,'Loan PU Amts'!$A$1:$K$233,6,FALSE),VLOOKUP('E - Loan Amount & Unit Mix'!$AM27,'Loan PU Amts'!$A$1:$K$233,11,FALSE)),0)","v":0},null,0,null,null,null,null,0]
[null,null,null,null,null,null,null,null,null,null,null,null,null,null,null,null,null,null,null,0,null,null,0,null,null,0,null,null,"",null,null,0,null,null,null,null,null,null,{"$f":"IF(F28=\"\",0,'B - Applicant'!$N$5&\"\"&F28)","v":0},{"$f":"_xlfn.IFNA(IF($H$2=9%,VLOOKUP('E - Loan Amount & Unit Mix'!$AM28,'Loan PU Amts'!$A$1:$K$233,2,FALSE),VLOOKUP('E - Loan Amount & Unit Mix'!$AM28,'Loan PU Amts'!$A$1:$K$233,7,FALSE)),0)","v":0},{"$f":"_xlfn.IFNA(IF($H$2=9%,VLOOKUP('E - Loan Amount & Unit Mix'!$AM28,'Loan PU Amts'!$A$1:$K$233,3,FALSE),VLOOKUP('E - Loan Amount & Unit Mix'!$AM28,'Loan PU Amts'!$A$1:$K$233,8,FALSE)),0)","v":0},{"$f":"_xlfn.IFNA(IF($H$2=9%,VLOOKUP('E - Loan Amount & Unit Mix'!$AM28,'Loan PU Amts'!$A$1:$K$233,4,FALSE),VLOOKUP('E - Loan Amount & Unit Mix'!$AM28,'Loan PU Amts'!$A$1:$K$233,9,FALSE)),0)","v":0},{"$f":"_xlfn.IFNA(IF($H$2=9%,VLOOKUP('E - Loan Amount & Unit Mix'!$AM28,'Loan PU Amts'!$A$1:$K$233,5,FALSE),VLOOKUP('E - Loan Amount & Unit Mix'!$AM28,'Loan PU Amts'!$A$1:$K$233,10,FALSE)),0)","v":0},{"$f":"_xlfn.IFNA(IF($H$2=9%,VLOOKUP('E - Loan Amount & Unit Mix'!$AM28,'Loan PU Amts'!$A$1:$K$233,6,FALSE),VLOOKUP('E - Loan Amount & Unit Mix'!$AM28,'Loan PU Amts'!$A$1:$K$233,11,FALSE)),0)","v":0},null,0,null,null,null,null,0]
[null,null,null,null,null,null,null,null,null,null,null,null,null,null,null,null,null,null,null,0,null,null,0,null,null,0,null,null,"",null,null,0,null,null,null,null,null,null,{"$f":"IF(F29=\"\",0,'B - Applicant'!$N$5&\"\"&F29)","v":0},{"$f":"_xlfn.IFNA(IF($H$2=9%,VLOOKUP('E - Loan Amount & Unit Mix'!$AM29,'Loan PU Amts'!$A$1:$K$233,2,FALSE),VLOOKUP('E - Loan Amount & Unit Mix'!$AM29,'Loan PU Amts'!$A$1:$K$233,7,FALSE)),0)","v":0},{"$f":"_xlfn.IFNA(IF($H$2=9%,VLOOKUP('E - Loan Amount & Unit Mix'!$AM29,'Loan PU Amts'!$A$1:$K$233,3,FALSE),VLOOKUP('E - Loan Amount & Unit Mix'!$AM29,'Loan PU Amts'!$A$1:$K$233,8,FALSE)),0)","v":0},{"$f":"_xlfn.IFNA(IF($H$2=9%,VLOOKUP('E - Loan Amount & Unit Mix'!$AM29,'Loan PU Amts'!$A$1:$K$233,4,FALSE),VLOOKUP('E - Loan Amount & Unit Mix'!$AM29,'Loan PU Amts'!$A$1:$K$233,9,FALSE)),0)","v":0},{"$f":"_xlfn.IFNA(IF($H$2=9%,VLOOKUP('E - Loan Amount & Unit Mix'!$AM29,'Loan PU Amts'!$A$1:$K$233,5,FALSE),VLOOKUP('E - Loan Amount & Unit Mix'!$AM29,'Loan PU Amts'!$A$1:$K$233,10,FALSE)),0)","v":0},{"$f":"_xlfn.IFNA(IF($H$2=9%,VLOOKUP('E - Loan Amount & Unit Mix'!$AM29,'Loan PU Amts'!$A$1:$K$233,6,FALSE),VLOOKUP('E - Loan Amount & Unit Mix'!$AM29,'Loan PU Amts'!$A$1:$K$233,11,FALSE)),0)","v":0},null,0,null,null,null,null,0]
[null,null,null,null,null,null,null,null,null,null,null,null,null,null,null,null,null,null,null,0,null,null,0,null,null,0,null,null,"",null,null,0,null,null,null,null,null,null,{"$f":"IF(F30=\"\",0,'B - Applicant'!$N$5&\"\"&F30)","v":0},{"$f":"_xlfn.IFNA(IF($H$2=9%,VLOOKUP('E - Loan Amount & Unit Mix'!$AM30,'Loan PU Amts'!$A$1:$K$233,2,FALSE),VLOOKUP('E - Loan Amount & Unit Mix'!$AM30,'Loan PU Amts'!$A$1:$K$233,7,FALSE)),0)","v":0},{"$f":"_xlfn.IFNA(IF($H$2=9%,VLOOKUP('E - Loan Amount & Unit Mix'!$AM30,'Loan PU Amts'!$A$1:$K$233,3,FALSE),VLOOKUP('E - Loan Amount & Unit Mix'!$AM30,'Loan PU Amts'!$A$1:$K$233,8,FALSE)),0)","v":0},{"$f":"_xlfn.IFNA(IF($H$2=9%,VLOOKUP('E - Loan Amount & Unit Mix'!$AM30,'Loan PU Amts'!$A$1:$K$233,4,FALSE),VLOOKUP('E - Loan Amount & Unit Mix'!$AM30,'Loan PU Amts'!$A$1:$K$233,9,FALSE)),0)","v":0},{"$f":"_xlfn.IFNA(IF($H$2=9%,VLOOKUP('E - Loan Amount & Unit Mix'!$AM30,'Loan PU Amts'!$A$1:$K$233,5,FALSE),VLOOKUP('E - Loan Amount & Unit Mix'!$AM30,'Loan PU Amts'!$A$1:$K$233,10,FALSE)),0)","v":0},{"$f":"_xlfn.IFNA(IF($H$2=9%,VLOOKUP('E - Loan Amount & Unit Mix'!$AM30,'Loan PU Amts'!$A$1:$K$233,6,FALSE),VLOOKUP('E - Loan Amount & Unit Mix'!$AM30,'Loan PU Amts'!$A$1:$K$233,11,FALSE)),0)","v":0},null,0,null,null,null,null,0]
[null,null,null,null,null,null,null,null,null,null,null,null,null,null,null,null,null,null,null,0,null,null,0,null,null,0,null,null,"",null,null,0,null,null,null,null,null,null,{"$f":"IF(F31=\"\",0,'B - Applicant'!$N$5&\"\"&F31)","v":0},{"$f":"_xlfn.IFNA(IF($H$2=9%,VLOOKUP('E - Loan Amount & Unit Mix'!$AM31,'Loan PU Amts'!$A$1:$K$233,2,FALSE),VLOOKUP('E - Loan Amount & Unit Mix'!$AM31,'Loan PU Amts'!$A$1:$K$233,7,FALSE)),0)","v":0},{"$f":"_xlfn.IFNA(IF($H$2=9%,VLOOKUP('E - Loan Amount & Unit Mix'!$AM31,'Loan PU Amts'!$A$1:$K$233,3,FALSE),VLOOKUP('E - Loan Amount & Unit Mix'!$AM31,'Loan PU Amts'!$A$1:$K$233,8,FALSE)),0)","v":0},{"$f":"_xlfn.IFNA(IF($H$2=9%,VLOOKUP('E - Loan Amount & Unit Mix'!$AM31,'Loan PU Amts'!$A$1:$K$233,4,FALSE),VLOOKUP('E - Loan Amount & Unit Mix'!$AM31,'Loan PU Amts'!$A$1:$K$233,9,FALSE)),0)","v":0},{"$f":"_xlfn.IFNA(IF($H$2=9%,VLOOKUP('E - Loan Amount & Unit Mix'!$AM31,'Loan PU Amts'!$A$1:$K$233,5,FALSE),VLOOKUP('E - Loan Amount & Unit Mix'!$AM31,'Loan PU Amts'!$A$1:$K$233,10,FALSE)),0)","v":0},{"$f":"_xlfn.IFNA(IF($H$2=9%,VLOOKUP('E - Loan Amount & Unit Mix'!$AM31,'Loan PU Amts'!$A$1:$K$233,6,FALSE),VLOOKUP('E - Loan Amount & Unit Mix'!$AM31,'Loan PU Amts'!$A$1:$K$233,11,FALSE)),0)","v":0},null,0,null,null,null,null,0]
[null,{"$f":"SUM(B12:C31)","v":0},null,null,null,null,null,null,{"$f":"SUM(AT12:AT31)","v":0},null,null,{"$f":"SUM(L12:M31)","v":0},null,{"$f":"SUM(N12:P31)","v":0},null,null,{"$f":"SUM(Q12:S31)","v":0},null,null,{"$f":"SUM(T12:U31)","v":0},null,null,null,null,null,{"$f":"SUM(Z12:AB31)","v":0},null,null,{"$f":"SUM(AC12:AE31)","v":0},null,null,{"$f":"SUM(AF12:AI31)","v":0}]
["File Name:",null,null,{"$f":"'Application Checklist'!A98","v":"E2"},null,"Utility Allowance",null,null,null,"Documentation from the local housing authority substantiating the amount of the Utility Allowance used.",null,null,null,null,null,null,null,null,null,null,null,null,null,null,null,null,null,null,null,null,"Attached and on USB?"]
["4. Shared Cost Calculation"]
["A. Total residential development cost (from the UA - Dev Budget worksheet, cell C110)"]
["Bi. Gross square footage of HHC Assisted units (refer to the UA - Site & Unit worksheet rows 41 - 52)"]
["Bii. Gross square footage of manager units (refer to the UA - Site & Unit worksheet rows 41 - 52)"]
["Biii. Gross square footage of Non-HHC Assisted units (refer to the UA - Site & Unit worksheet rows 41 - 52)"]
["Biv. Total residential gross square feet (Bi + Bii + Biii)",null,null,null,null,null,null,null,null,null,null,null,null,null,null,null,null,null,null,null,null,null,null,null,null,null,{"$f":"SUM(AA36:AC38)","v":0}]
["Bv. Residential gross square feet without managers units (Bi + Biii)",null,null,null,null,null,null,null,null,null,null,null,null,null,null,null,null,null,null,null,null,null,null,null,null,null,{"$f":"AA36+AA38","v":0}]
["C. HHC Assisted proration % of costs based on square feet (Bi / Bv)",null,null,null,null,null,null,null,null,null,null,null,null,null,null,null,{"$f":"IF(AA40=0,0,AA36/AA40)","v":0},null,"HHC Assisted Units share of costs (C1 x C3)*",null,null,null,null,null,null,null,null,null,null,{"$f":"AD35*Q41","v":0}]
[]
["5. HHC Loan Amount"]
["A. Capital loan amount requested by Applicant (1 above)",null,null,null,null,null,null,null,null,null,null,null,null,null,null,null,null,null,null,null,null,null,null,null,null,{"$f":"U2","v":0}]
["B. Capital loan amount per NOFA - $20,000,000 less COSR (2 above)",null,null,null,null,null,null,null,null,null,null,null,null,null,null,null,null,null,null,null,null,null,null,null,null,{"$f":"20000000-AJ2","v":20000000}]
["C. Capital loan §103(b)(2)-(5) (3 above; chart column I)",null,null,null,null,null,null,null,null,null,null,null,null,null,null,null,null,null,null,null,null,null,null,null,null,{"$f":"Z32","v":0}]
["D. Capital loan per HHC Assisted unit share of costs (4 above)",null,null,null,null,null,null,null,null,null,null,null,null,null,null,null,null,null,null,null,null,null,null,null,null,{"$f":"AD41","v":0}]
["Capital Loan Amount (lesser of 5A to 5D above)",null,null,null,null,null,null,null,null,null,null,null,null,null,null,null,null,null,null,null,null,null,null,null,null,{"$f":"MIN(Z44:AC47)","v":0},null,null,null,"Total HHC Loan Amt before applicable COSR reduction §109",null,null,null,null,null,{"$f":"Z48+Q49","v":0}]
["E. COSR (2 above)",null,null,null,null,null,null,null,null,null,null,null,null,null,null,null,{"$f":"AJ2","v":0},null,null,null,"HHC COSR (lesser of 5E and 5F)",null,null,null,null,{"$f":"MIN(Q49,Q50)","v":0}]
["F. COSR (maximum = 1/3 of total HHC loan amount §109)",null,null,null,null,null,null,null,null,null,null,null,null,null,null,null,{"$f":"AJ48/3","v":0}]
["G. HHC Total Loan Amount - (Capital loan plus COSR)",null,null,null,null,null,null,null,null,null,null,null,null,null,null,null,null,null,null,null,null,null,null,null,null,{"$f":"Z48+Z49","v":0}]

{"sheet":"F - Selection Criteria","index":7,"n_rows":145,"n_cols":41,"rows_kept":145,"cut":false,"hidden":false,"merged":[[116,0,116,2],[116,3,116,4],[116,5,116,10],[116,11,116,29],[116,30,116,35],[116,36,116,37],[117,0,117,2],[117,3,117,4],[117,5,117,10],[117,11,117,29],[117,30,117,35],[117,36,117,37],[114,0,114,2],[114,3,114,4],[114,5,114,10],[114,11,114,29],[114,30,114,35],[114,36,114,37],[115,0,115,2],[115,3,115,4],[115,5,115,10],[115,11,115,29],[115,30,115,35],[115,36,115,37],[143,5,143,10],[144,3,144,4],[143,3,143,4],[144,0,144,2],[143,0,143,2],[111,3,111,4],[111,5,111,10],[112,5,112,10],[112,3,112,4],[120,3,120,4],[120,5,120,10],[124,5,124,10],[124,3,124,4],[125,3,125,4],[125,5,125,10],[127,5,127,10],[124,0,124,2],[125,0,125,2],[127,0,127,2],[128,0,128,2],[82,0,82,37],[67,36,67,37],[65,36,65,37],[66,36,66,37],[78,36,78,37],[79,36,79,37],[80,36,80,37],[81,0,81,35],[77,32,77,35],[78,32,78,35],[79,32,79,35],[92,36,92,37],[93,36,93,37],[74,30,74,31],[83,24,84,37],[87,0,87,19],[65,30,65,31],[66,30,66,31],[67,30,67,31],[106,36,106,37],[0,35,0,37],[0,0,0,34],[128,11,128,29],[128,30,128,35],[128,36,128,37],[60,35,60,37],[60,18,60,34],[120,11,120,29],[120,30,120,35],[120,36,120,37],[6,22,6,25],[93,0,93,35],[60,6,60,7],[60,0,60,5],[60,8,60,15],[111,0,111,2],[112,0,112,2],[40,3,40,4],[40,5,40,10],[6,32,6,35],[22,1,22,14],[34,21,34,29],[41,36,41,37],[131,30,131,35],[131,36,131,37],[51,3,51,4],[51,5,51,10],[53,3,53,4],[53,5,53,10],[57,3,57,4],[57,5,57,10],[92,3,92,4],[92,5,92,10],[46,0,46,35],[41,0,41,35],[47,0,47,18],[49,0,49,18],[78,0,78,29],[79,0,79,29],[75,0,75,35],[71,0,71,35],[70,36,70,37],[73,32,73,35],[30,36,30,37],[31,36,31,37],[39,1,39,14],[68,30,68,31],[69,30,69,31],[62,0,62,35],[42,11,42,37],[64,30,64,31],[53,0,53,2],[53,11,53,29],[53,30,53,35],[57,0,57,2],[53,36,53,37],[64,36,64,37],[57,30,57,35],[63,32,63,35],[64,32,64,35],[39,21,39,29],[32,36,32,37],[34,1,34,14],[37,30,37,35],[31,30,31,35],[32,30,32,35],[35,36,35,37],[22,36,22,37],[23,36,23,37],[23,22,23,35],[14,15,14,37],[29,15,29,20],[29,30,29,35],[29,1,29,14],[29,21,29,29],[28,1,28,14],[25,36,25,37],[24,1,24,14],[25,1,25,14],[24,15,24,21],[27,36,27,37],[28,36,28,37],[29,36,29,37],[25,15,25,21],[26,0,26,2],[27,0,27,35],[24,22,24,35],[26,3,26,4],[26,5,26,10],[28,21,28,29],[10,36,10,37],[12,11,12,29],[20,36,20,37],[21,36,21,37],[20,1,20,14],[21,1,21,14],[20,15,20,21],[21,15,21,21],[20,22,20,35],[21,22,21,35],[15,0,15,14],[14,0,14,14],[12,0,12,2],[18,1,18,14],[18,15,18,21],[19,22,19,35],[12,30,12,35],[13,0,13,35],[13,36,13,37],[12,36,12,37],[15,22,15,35],[19,36,19,37],[18,36,18,37],[19,1,19,14],[33,36,33,37],[32,15,32,20],[33,15,33,20],[36,15,36,20],[36,36,36,37],[34,36,34,37],[33,30,33,35],[34,30,34,35],[10,1,10,14],[25,22,25,35],[28,15,28,20],[18,22,18,35],[10,32,10,35],[12,5,12,10],[12,3,12,4],[19,15,19,21],[26,11,26,29],[26,30,26,35],[11,0,11,4],[22,22,22,35],[28,30,28,35],[23,1,23,14],[22,15,22,21],[23,15,23,21],[39,36,39,37],[48,19,48,23],[40,36,40,37],[44,36,44,37],[45,36,45,37],[51,11,51,29],[51,30,51,35],[47,24,47,28],[47,29,47,30],[47,31,47,32],[50,0,50,37],[45,0,45,25],[45,26,45,35],[52,0,52,33],[47,19,47,23],[48,0,48,18],[49,29,49,30],[49,31,49,32],[49,36,49,37],[49,19,49,23],[106,16,106,19],[88,0,88,19],[51,36,51,37],[51,0,51,2],[65,32,65,35],[66,32,66,35],[67,32,67,35],[67,0,67,29],[68,0,68,29],[68,36,68,37],[69,36,69,37],[69,0,69,29],[55,0,55,17],[55,34,55,37],[55,18,55,26],[55,27,55,33],[61,36,61,37],[102,32,102,34],[103,32,103,34],[103,28,103,31],[97,36,97,37],[101,28,101,31],[96,32,96,34],[105,24,105,27],[106,20,106,23],[104,0,104,19],[105,0,105,19],[99,24,99,27],[100,20,100,23],[105,32,105,34],[104,32,104,34],[99,32,99,34],[100,24,100,27],[103,24,103,27],[97,20,97,23],[103,0,103,19],[102,24,102,27],[98,32,98,34],[101,32,101,34],[100,32,100,34],[100,36,100,37],[72,36,72,37],[81,36,81,37],[76,32,76,35],[77,36,77,37],[85,24,86,37],[84,0,84,19],[85,0,85,19],[84,20,84,23],[74,32,74,35],[73,36,73,37],[76,0,76,29],[73,0,73,29],[74,0,74,29],[83,0,83,19],[83,20,83,23],[77,0,77,29],[75,36,75,37],[74,36,74,37],[72,30,72,31],[73,30,73,31],[72,32,72,35],[80,32,80,35],[76,30,76,31],[77,30,77,31],[100,0,100,19],[101,0,101,19],[91,24,91,26],[90,27,91,37],[91,20,91,23],[90,0,90,19],[96,24,96,27],[97,24,97,27],[96,0,96,19],[97,0,97,19],[96,36,96,37],[95,36,95,37],[94,0,94,37],[97,32,97,34],[96,28,96,31],[97,28,97,31],[92,30,92,35],[92,0,92,2],[70,32,70,35],[92,11,92,29],[102,36,102,37],[101,36,101,37],[78,30,78,31],[30,30,30,35],[107,3,107,4],[107,5,107,10],[96,20,96,23],[98,0,98,19],[99,20,99,23],[103,20,103,23],[101,20,101,23],[101,24,101,27],[98,28,98,31],[98,24,98,27],[100,28,100,31],[104,20,104,23],[104,24,104,27],[102,28,102,31],[99,28,99,31],[99,0,99,19],[30,15,30,20],[31,15,31,20],[7,22,7,25],[6,26,6,31],[7,26,7,31],[8,26,8,31],[6,15,6,21],[102,0,102,19],[102,20,102,23],[30,1,30,14],[30,21,30,29],[33,21,33,29],[35,21,35,29],[40,0,40,2],[40,11,40,29],[31,21,31,29],[32,21,32,29],[35,1,35,14],[36,1,36,14],[37,1,37,14],[32,1,32,14],[33,1,33,14],[37,15,37,20],[39,15,39,20],[36,21,36,29],[38,1,38,14],[38,36,38,37],[46,36,46,37],[43,36,43,37],[48,24,48,28],[49,24,49,28],[1,36,1,37],[2,0,2,35],[5,26,5,31],[4,0,4,14],[4,15,4,37],[5,15,5,21],[2,36,2,37],[5,0,5,14],[16,36,16,37],[16,22,16,35],[16,15,16,21],[16,1,16,14],[9,22,9,25],[9,32,9,35],[9,36,9,37],[15,36,15,37],[10,22,10,25],[6,36,6,37],[3,0,3,35],[31,1,31,14],[34,15,34,20],[35,15,35,20],[40,30,40,35],[48,31,48,32],[42,0,42,10],[43,0,43,25],[43,26,43,35],[44,0,44,25],[44,26,44,35],[39,30,39,35],[35,30,35,35],[36,30,36,35],[38,21,38,29],[38,30,38,35],[38,15,38,20],[63,0,63,31],[86,0,86,19],[87,20,87,23],[88,20,88,23],[89,0,89,19],[86,20,86,23],[80,0,80,29],[52,34,52,35],[72,0,72,29],[70,30,70,31],[60,16,60,17],[59,0,59,37],[79,30,79,31],[80,30,80,31],[76,36,76,37],[62,36,62,37],[63,36,63,37],[57,36,57,37],[56,34,56,37],[52,36,52,37],[54,36,54,37],[54,0,54,35],[56,27,56,33],[70,0,70,29],[108,0,108,35],[107,0,107,2],[107,11,107,29],[107,30,107,35],[26,36,26,37],[57,11,57,29],[98,36,98,37],[71,36,71,37],[68,32,68,35],[69,32,69,35],[64,0,64,29],[65,0,65,29],[66,0,66,29],[95,0,95,35],[47,36,47,37],[48,29,48,30],[47,33,47,35],[48,33,48,35],[49,33,49,35],[58,36,58,37],[58,0,58,35],[56,0,56,17],[56,18,56,26],[48,36,48,37],[3,36,3,37],[5,22,5,25],[5,32,5,35],[5,36,5,37],[17,36,17,37],[17,1,17,14],[17,15,17,21],[17,22,17,35],[15,15,15,21],[7,32,7,35],[7,36,7,37],[8,32,8,35],[8,36,8,37],[7,15,7,21],[8,15,8,21],[9,26,9,31],[10,26,10,31],[6,1,6,14],[8,22,8,25],[9,15,9,21],[10,15,10,21],[11,5,11,37],[8,1,8,14],[9,1,9,14],[7,1,7,14],[121,1,121,35],[140,36,140,37],[98,20,98,23],[103,36,103,37],[99,36,99,37],[106,0,106,15],[106,24,106,35],[111,36,111,37],[110,36,110,37],[105,20,105,23],[107,36,107,37],[105,28,105,31],[111,11,111,29],[111,30,111,35],[108,36,108,37],[109,0,109,37],[110,34,110,35],[110,1,110,33],[24,36,24,37],[37,36,37,37],[37,21,37,29],[133,20,133,30],[133,0,133,17],[134,0,134,2],[130,5,130,10],[130,3,130,4],[131,3,131,4],[131,5,131,10],[134,5,134,10],[134,3,134,4],[130,0,130,2],[131,0,131,2],[131,11,131,29],[144,36,144,37],[133,31,133,33],[133,18,133,19],[142,34,142,35],[136,0,136,37],[139,0,139,33],[140,0,140,33],[142,0,142,33],[141,36,141,37],[141,34,141,35],[141,0,141,33],[137,34,137,35],[142,36,142,37],[139,34,139,35],[143,30,143,35],[137,36,137,37],[139,36,139,37],[133,34,133,35],[133,36,133,37],[143,11,143,29],[140,34,140,35],[135,0,135,35],[135,36,135,37],[144,5,144,10],[144,11,144,29],[144,30,144,35],[113,36,113,37],[127,11,127,29],[127,30,127,35],[143,36,143,37],[137,1,137,33],[138,1,138,37],[134,36,134,37],[126,34,126,35],[126,1,126,33],[129,34,129,35],[129,1,129,33],[113,34,113,35],[113,1,113,33],[134,11,134,29],[134,30,134,35],[132,0,132,35],[132,36,132,37],[120,0,120,2],[1,0,1,35],[125,36,125,37],[124,11,124,29],[124,30,124,35],[125,11,125,29],[125,30,125,35],[104,36,104,37],[105,36,105,37],[104,28,104,31],[91,0,91,19],[61,0,61,35],[85,20,85,23],[90,24,90,26],[90,20,90,23],[89,20,89,23],[112,30,112,35],[112,36,112,37],[122,34,122,35],[112,11,112,29],[124,36,124,37],[118,1,118,33],[126,36,126,37],[130,11,130,29],[130,30,130,35],[122,36,122,37],[123,36,123,37],[119,0,119,33],[118,34,118,35],[127,36,127,37],[129,36,129,37],[121,36,121,37],[119,34,119,35],[118,36,119,37],[123,34,123,35],[123,0,123,33],[122,0,122,33],[127,3,127,4],[128,3,128,4],[128,5,128,10],[130,36,130,37]]}
["Application Selection Criteria §111 (150 Points Max)",null,null,null,null,null,null,null,null,null,null,null,null,null,null,null,null,null,null,null,null,null,null,null,null,null,null,null,null,null,null,null,null,null,null,{"$f":"'B - Applicant'!AJ1","v":"Rev. 3/4/20"}]
["Total Self Score (must meet all minimum score requirements)",null,null,null,null,null,null,null,null,null,null,null,null,null,null,null,null,null,null,null,null,null,null,null,null,null,null,null,null,null,null,null,null,null,null,null,{"$f":"IF(OR(AK3<18,AK62<10,AK109<15),0,AK3+AK59+AK62+AK82+AK94+AK109+AK133+AK136)","v":0}]
["Development Team Experience, §111(a) 35 Points Max - must score a minimum of 18 points",null,null,null,null,null,null,null,null,null,null,null,null,null,null,null,null,null,null,null,null,null,null,null,null,null,null,null,null,null,null,null,null,null,null,null,{"$f":"IF(AK4+AK14+AK28+AK42<18,0,AK4+AK14+AK28+AK42)","v":0}]
["Developer Experience §111(a)(1) - Applications will be scored based on the number of affordable rental housing developments completed by the project developer over the past five years, including supportive housing Projects completed in the last three years serving persons similar to the Target Population. Applicant should address whether these projects were completed timely and within budget. Delays and cost overruns must be explained. - 10 points max",null,null,null,null,null,null,null,null,null,null,null,null,null,null,null,null,null,null,null,null,null,null,null,null,null,null,null,null,null,null,null,null,null,null,null,{"$f":"MIN(SUM(AK7:AL11),10)","v":0}]
["Enter the Name of the Entity Qualifying for Experience:"]
["Project Name and Address ",null,null,null,null,null,null,null,null,null,null,null,null,null,null,"Housing Type",null,null,null,null,null,null,"Served persons similar to Target Pop.",null,null,null,"Completed timely & within budget",null,null,null,null,null,"Date Completed",null,null,null,"Points"]
[1,null,null,null,null,null,null,null,null,null,null,null,null,null,null,null,null,null,null,null,null,null,null,null,null,null,null,null,null,null,null,null,null,null,null,null,{"$f":"IF(AND(P7=\"Affordable Rental Housing Development\",AA7=\"yes\",AG7>=$AM$7),2,IF(AND(P7=\"Supportive Housing Project\",W7=\"Yes\",AA7=\"yes\",AG7>=$AM$8),2,0))","v":0},null,{"$f":"Instructions!A3-(365*5)","v":"2015-06-27"}]
[2,null,null,null,null,null,null,null,null,null,null,null,null,null,null,null,null,null,null,null,null,null,null,null,null,null,null,null,null,null,null,null,null,null,null,null,{"$f":"IF(AND(P8=\"Affordable Rental Housing Development\",AA8=\"yes\",AG8>=$AM$7),2,IF(AND(P8=\"Supportive Housing Project\",W8=\"Yes\",AA8=\"yes\",AG8>=$AM$8),2,0))","v":0},null,{"$f":"Instructions!A3-(365*3)","v":"2017-06-26"}]
[3,null,null,null,null,null,null,null,null,null,null,null,null,null,null,null,null,null,null,null,null,null,null,null,null,null,null,null,null,null,null,null,null,null,null,null,{"$f":"IF(AND(P9=\"Affordable Rental Housing Development\",AA9=\"yes\",AG9>=$AM$7),2,IF(AND(P9=\"Supportive Housing Project\",W9=\"Yes\",AA9=\"yes\",AG9>=$AM$8),2,0))","v":0}]
[4,null,null,null,null,null,null,null,null,null,null,null,null,null,null,null,null,null,null,null,null,null,null,null,null,null,null,null,null,null,null,null,null,null,null,null,{"$f":"IF(AND(P10=\"Affordable Rental Housing Development\",AA10=\"yes\",AG10>=$AM$7),2,IF(AND(P10=\"Supportive Housing Project\",W10=\"Yes\",AA10=\"yes\",AG10>=$AM$8),2,0))","v":0}]
[5,null,null,null,null,null,null,null,null,null,null,null,null,null,null,null,null,null,null,null,null,null,null,null,null,null,null,null,null,null,null,null,null,null,null,null,{"$f":"IF(AND(P11=\"Affordable Rental Housing Development\",AA11=\"yes\",AG11>=$AM$7),2,IF(AND(P11=\"Supportive Housing Project\",W11=\"Yes\",AA11=\"yes\",AG11>=$AM$8),2,0))","v":0}]
["If applicable, explain delays and cost overruns "]
["File Name:",null,null,{"$f":"'Application Checklist'!A102","v":"F2"},null,"Dev Exp 1, 2, 3, etc",null,null,null,null,null,"Notice of Completion, Placed in Service, Certificate of Occ. or equivalent.",null,null,null,null,null,null,null,null,null,null,null,null,null,null,null,null,null,null,"Attached and on USB?"]
["Applicant Ownership and Operations Experience §111(a)(2) - experience (under a long-term master lease or similar arrangement) owning or operating supportive and/or affordable rental housing developments. - 5 points max",null,null,null,null,null,null,null,null,null,null,null,null,null,null,null,null,null,null,null,null,null,null,null,null,null,null,null,null,null,null,null,null,null,null,null,{"$f":"MIN(SUM(AK17:AL26),5)","v":0}]
["Enter the Name of the Entity Qualifying for Experience:"]
["Project Name and Address ",null,null,null,null,null,null,null,null,null,null,null,null,null,null,"Housing Type",null,null,null,null,null,null,"Agency Restricting Occupancy",null,null,null,null,null,null,null,null,null,null,null,null,null,"Points"]
[1,null,null,null,null,null,null,null,null,null,null,null,null,null,null,null,null,null,null,null,null,null,null,null,null,null,null,null,null,null,null,null,null,null,null,null,{"$f":"IF(P17=\"Affordable Rental Housing Development\",0.5,IF(P17=\"Supportive Housing Project\",1,0))","v":0}]
[2,null,null,null,null,null,null,null,null,null,null,null,null,null,null,null,null,null,null,null,null,null,null,null,null,null,null,null,null,null,null,null,null,null,null,null,{"$f":"IF(P18=\"Affordable Rental Housing Development\",0.5,IF(P18=\"Supportive Housing Project\",1,0))","v":0}]
[3,null,null,null,null,null,null,null,null,null,null,null,null,null,null,null,null,null,null,null,null,null,null,null,null,null,null,null,null,null,null,null,null,null,null,null,0]
[4,null,null,null,null,null,null,null,null,null,null,null,null,null,null,null,null,null,null,null,null,null,null,null,null,null,null,null,null,null,null,null,null,null,null,null,0]
[5,null,null,null,null,null,null,null,null,null,null,null,null,null,null,null,null,null,null,null,null,null,null,null,null,null,null,null,null,null,null,null,null,null,null,null,0]
[6,null,null,null,null,null,null,null,null,null,null,null,null,null,null,null,null,null,null,null,null,null,null,null,null,null,null,null,null,null,null,null,null,null,null,null,0]
[7,null,null,null,null,null,null,null,null,null,null,null,null,null,null,null,null,null,null,null,null,null,null,null,null,null,null,null,null,null,null,null,null,null,null,null,0]
[8,null,null,null,null,null,null,null,null,null,null,null,null,null,null,null,null,null,null,null,null,null,null,null,null,null,null,null,null,null,null,null,null,null,null,null,0]
[9,null,null,null,null,null,null,null,null,null,null,null,null,null,null,null,null,null,null,null,null,null,null,null,null,null,null,null,null,null,null,null,null,null,null,null,0]
[10,null,null,null,null,null,null,null,null,null,null,null,null,null,null,null,null,null,null,null,null,null,null,null,null,null,null,null,null,null,null,null,null,null,null,null,0]
["File Name:",null,null,{"$f":"'Application Checklist'!A103","v":"F3"},null,"Own Exp 1, 2, 3, etc",null,null,null,null,null,"Long-term master lease or similar agreement.",null,null,null,null,null,null,null,null,null,null,null,null,null,null,null,null,null,null,"Attached and on USB?"]
["Property Manager Experience §111(a)(3) - number of affordable and Supportive housing developments managed by the designated property management agent at the time of application. -  5 points max",null,null,null,null,null,null,null,null,null,null,null,null,null,null,null,null,null,null,null,null,null,null,null,null,null,null,null,null,null,null,null,null,null,null,null,{"$f":"MIN(SUM(AK30:AL40),5)","v":0}]
[null,"Project Name and Address ",null,null,null,null,null,null,null,null,null,null,null,null,null,"Housing Type",null,null,null,null,null,"Project Owner",null,null,null,null,null,null,null,null,"Project has operated for at least two years with units restricted to homeless",null,null,null,null,null,"Points"]
[1,{"$f":"'C -  Minimum Requirements'!B24","v":0},null,null,null,null,null,null,null,null,null,null,null,null,null,null,null,null,null,null,null,null,null,null,null,null,null,null,null,null,null,null,null,null,null,null,{"$f":"IF(P30=\"Affordable Rental Housing Development\",0.5,IF(AND(P30=\"Supportive Housing Project\",AE30=\"yes\"),1,0))","v":0}]
[2,{"$f":"'C -  Minimum Requirements'!B25","v":0},null,null,null,null,null,null,null,null,null,null,null,null,null,null,null,null,null,null,null,null,null,null,null,null,null,null,null,null,null,null,null,null,null,null,{"$f":"IF(P31=\"Affordable Rental Housing Development\",0.5,IF(AND(P31=\"Supportive Housing Project\",AE31=\"yes\"),1,0))","v":0}]
[3,{"$f":"'C -  Minimum Requirements'!B26","v":0},null,null,null,null,null,null,null,null,null,null,null,null,null,null,null,null,null,null,null,null,null,null,null,null,null,null,null,null,null,null,null,null,null,null,0]
[4,null,null,null,null,null,null,null,null,null,null,null,null,null,null,null,null,null,null,null,null,null,null,null,null,null,null,null,null,null,null,null,null,null,null,null,0]
[5,null,null,null,null,null,null,null,null,null,null,null,null,null,null,null,null,null,null,null,null,null,null,null,null,null,null,null,null,null,null,null,null,null,null,null,0]
[6,null,null,null,null,null,null,null,null,null,null,null,null,null,null,null,null,null,null,null,null,null,null,null,null,null,null,null,null,null,null,null,null,null,null,null,0]
[7,null,null,null,null,null,null,null,null,null,null,null,null,null,null,null,null,null,null,null,null,null,null,null,null,null,null,null,null,null,null,null,null,null,null,null,0]
[8,null,null,null,null,null,null,null,null,null,null,null,null,null,null,null,null,null,null,null,null,null,null,null,null,null,null,null,null,null,null,null,null,null,null,null,0]
[9,null,null,null,null,null,null,null,null,null,null,null,null,null,null,null,null,null,null,null,null,null,null,null,null,null,null,null,null,null,null,null,null,null,null,null,0]
[10,null,null,null,null,null,null,null,null,null,null,null,null,null,null,null,null,null,null,null,null,null,null,null,null,null,null,null,null,null,null,null,null,null,null,null,0]
[11,null,null,null,null,null,null,null,null,null,null,null,null,null,null,null,null,null,null,null,null,null,null,null,null,null,null,null,null,null,null,null,null,null,null,null,0]
["File Name:",null,null,{"$f":"'Application Checklist'!A104","v":"F4"},null,"Prop Exp 1, 2, 3, etc",null,"Prop Exp 1, 2, 3, etc",null,"Prop Exp 1, 2, 3, etc",null,"Attach Property Management Agreement.",null,null,null,null,null,null,null,null,null,null,null,null,null,null,null,null,null,null,"Attached and on USB?"]
["Lead Service Provider Experience §111(a)(4)(a) & (b) - experience in the last five years providing comprehensive case management and tenancy support to people experiencing homelessness, and for demonstrated expertise working with the Target Population - 15 points max",null,null,null,null,null,null,null,null,null,null,null,null,null,null,null,null,null,null,null,null,null,null,null,null,null,null,null,null,null,null,null,null,null,null,null,{"$f":"MIN(15,AK44+AK45+AK46+AK47+AK53+AK55)","v":0}]
["Lead Service Provider Name:"]
["(1) Years of experience in permanent Supportive housing - 3 points max",null,null,null,null,null,null,null,null,null,null,null,null,null,null,null,null,null,null,null,null,null,null,null,null,null,null,null,null,null,null,null,null,null,null,null,{"$f":"IF(AA44=\"One to two years\",1,IF(AA44=\"Three to four years\",2,IF(AA44=\"Five or more years\",3,0)))","v":0}]
["(2) Number of projects or contracts in permanent Supportive housing - 3 points max",null,null,null,null,null,null,null,null,null,null,null,null,null,null,null,null,null,null,null,null,null,null,null,null,null,null,null,null,null,null,null,null,null,null,null,{"$f":"IF(AA45=\"One to two projects\",1,IF(AA45=\"Three to four projects\",2,IF(AA45=\"Five or more projects\",3,0)))","v":0}]
["(3) Years of experience serving the Target Population - 3 points max",null,null,null,null,null,null,null,null,null,null,null,null,null,null,null,null,null,null,null,null,null,null,null,null,null,null,null,null,null,null,null,null,null,null,null,{"$f":"IF(AA46=\"One to two years\",1,IF(AA46=\"Three to four years\",2,IF(AA46=\"Five or more years\",3,0)))","v":0}]
["(4) Experience providing comprehensive case management, where members of the Target Population were at least 20 percent of the LSP’s clients during the years for which points are sought in any of the following. To receive points under subsection, the Lead Service Provider must have current staff expertise AND organizational experience: (i)Connecting members of the Target Population and/or Homeless individuals with community-based health care services, including linkage to primary care services and behavioral health care; and (ii) Staff expertise and experience must be documented through resumes, job descriptions, contracts, staff training descriptions, and letters from Continuums of Care or other supportive services organizations.  - 2 Points max",null,null,null,null,null,null,null,null,null,null,null,null,null,null,null,null,null,null,null,null,null,null,null,null,null,null,null,null,null,null,null,null,null,null,null,{"$f":"(MIN(SUM(AK49:AL50),2))","v":0}]
["Project Name and Address",null,null,null,null,null,null,null,null,null,null,null,null,null,null,null,null,null,null,"Project type",null,null,null,null,"LSP staff & Org exp. §111(a)(4)(b)(4)(i) & (ii)",null,null,null,null,"Total Clients",null,"# of Target Pop.",null,"% of Target Pop to total clients",null,null,"Points"]
[null,null,null,null,null,null,null,null,null,null,null,null,null,null,null,null,null,null,null,null,null,null,null,null,null,null,null,null,null,null,null,null,null,{"$f":"IF(AD49=\"\",0,AF49/AD49)","v":0},null,null,{"$f":"IF(AND(T49<>\"\",Y49<>\"\",AH49>=0.2),2,0)","v":0}]
[null,null,null,null,null,null,null,null,null,null,null,null,null,null,null,null,null,null,null,null,null,null,null,null,null,null,null,null,null,null,null,null,null,{"$f":"IF(AD50=\"\",0,AF50/AD50)","v":0},null,null,{"$f":"IF(AH50>=0.2,2,0)","v":0}]
["To receive LSP experience points for 1-4 above, the experience must be documented through contracts with public agencies, housing owners or foundations for services in housing projects with at least ten units subject to agreements with public agencies restricting rent or occupancy to Homeless persons or households, or in publicly funded tenant-based housing assistance programs serving at least ten members of the Target Population. Attach only these pages of the contract:\n      i.    Page(s) identifying the Project name as listed in table below and describing the scope of work;\n      ii.   Page(s) describing term of the contract or agreement; and\n      iii.  Execution page(s) showing all signatures of all parties to the contracts."]
["File Name:",null,null,{"$f":"'Application Checklist'!A105","v":"F5"},null,"LSP Contracts 1, 2, 3",null,null,null,null,null,"Reference documentation requirements in §111(a)(4)(b).",null,null,null,null,null,null,null,null,null,null,null,null,null,null,null,null,null,null,"Attached and on USB?"]
["(5) Experience of a partner agency. Have you attached an executed agreement between the two agencis that meets the requirements of §111(a)(4)(b)(5)? Executed agreements must meet all the requirements §111(a)(4)(b)(5)(ii)(a)-(f) to receive points  - 2 points",null,null,null,null,null,null,null,null,null,null,null,null,null,null,null,null,null,null,null,null,null,null,null,null,null,null,null,null,null,null,null,null,null,null,null,{"$f":"IF(AND(AI53=\"Yes\",AK54=\"Yes\"),2,0)","v":0}]
["File Name:",null,null,{"$f":"'Application Checklist'!A106","v":"F6"},null,"Part Agency Agmnt",null,null,null,null,null,"Executed agreement between the two agencies.",null,null,null,null,null,null,null,null,null,null,null,null,null,null,null,null,null,null,"Attached and on USB?"]
["(6) Success in meeting or exceeding specified outcome measures for housing stability under a government contract for at least two years as a LSP in Permanent Supportive housing serving persons experiencing homelessness - 2 Points; must attach documentation to receive points.",null,null,null,null,null,null,null,null,null,null,null,null,null,null,null,null,null,null,null,null,null,null,null,null,null,null,null,null,null,null,null,null,null,null,null,{"$f":"IF(AND(AK58=\"Yes\",AB57=\"Yes\",AI57>=24),2,0)","v":0}]
["Housing Project or Program Name",null,null,null,null,null,null,null,null,null,null,null,null,null,null,null,null,null,"Government Agency Contracting for Services",null,null,null,null,null,null,null,null,"Housing Stability Measured",null,null,null,null,null,null,"Months Measured"]
[]
["File Name:",null,null,{"$f":"'Application Checklist'!A107","v":"F7"},null,"Outcomes",null,null,null,null,null,"Documentation showing outcome measures reported to a govt agency.",null,null,null,null,null,null,null,null,null,null,null,null,null,null,null,null,null,null,"Attached and on USB?"]
["Supportive Housing (SH) §111(b) - 25 Points Max",null,null,null,null,null,null,null,null,null,null,null,null,null,null,null,null,null,null,null,null,null,null,null,null,null,null,null,null,null,null,null,null,null,null,null,{"$f":"IF(AJ61>=0.3,25,IF(AJ61>=0.25,21,IF(AJ61>=0.2,17,IF(AJ61>=0.15,13,IF(AJ61>=0.1,9,IF(AJ61>=0.05,5,0))))))","v":0}]
["(1) Percentage of Total Projects Units that are Assisted Units - 25 points max\n"]
["Number of Project Units",null,null,null,null,null,{"$f":"'E - Loan Amount & Unit Mix'!B32","v":0},null,"Total Number of SH Units",null,null,null,null,null,null,null,{"$f":"'E - Loan Amount & Unit Mix'!I32","v":0},null,"Percentage of Project Units that are Assisted Units",null,null,null,null,null,null,null,null,null,null,null,null,null,null,null,null,{"$f":"IF(G61=0,0,Q61/G61)","v":0}]
["Supportive Services Plan (SSP) §111(c) - 25 Points Max- must score a minimum of 10 points",null,null,null,null,null,null,null,null,null,null,null,null,null,null,null,null,null,null,null,null,null,null,null,null,null,null,null,null,null,null,null,null,null,null,null,{"$f":"IF(AK63+AK72+AK76<10,0,AK63+AK72+AK76)","v":0}]
["(1) Applications for projects will be scored based on the following: - 17 Points max",null,null,null,null,null,null,null,null,null,null,null,null,null,null,null,null,null,null,null,null,null,null,null,null,null,null,null,null,null,null,null,null,null,null,null,{"$f":"AK64+AK68+AK69+AK70+AK71","v":0}]
["   a. Quality and Quantity of Services. - 7 points max",null,null,null,null,null,null,null,null,null,null,null,null,null,null,null,null,null,null,null,null,null,null,null,null,null,null,null,null,null,null,null,"SSP Page#",null,null,null,{"$f":"AK65+AK66+AK67","v":0}]
["      (1) The services provided are of appropriate quality and quantity for the Target Population. - 2 points",null,null,null,null,null,null,null,null,null,null,null,null,null,null,null,null,null,null,null,null,null,null,null,null,null,null,null,null,null,null,null,null,null,null,null,{"$f":"IF(AE65=\"Yes\",2,0)","v":0}]
["      (2) Staff experience, credentials, and job duties include appropriate skills in cultural competency.- 2 points",null,null,null,null,null,null,null,null,null,null,null,null,null,null,null,null,null,null,null,null,null,null,null,null,null,null,null,null,null,null,null,null,null,null,null,{"$f":"IF(AE66=\"Yes\",2,0)","v":0}]
["      (3) The service delivery model, tailored to Homeless people impacted with one or more chronic health or behavioral health conditions, that includes, but is not limited to, the following - 3 points\n       i. Use of a critical time intervention or assertive community treatment model\n      ii. Cognitive behavioral therapy\n      iii. Trauma-informed care\n      iv. Motivational interviewing and other tools to encourage engagement in services \n       v. Other practices recognized as evidenced-based by the Substance Abuse and Mental Health Services Administration, DHCS, HUD, or other federal or state public agencies.",null,null,null,null,null,null,null,null,null,null,null,null,null,null,null,null,null,null,null,null,null,null,null,null,null,null,null,null,null,null,null,null,null,null,null,{"$f":"IF(AE67=\"Yes\",3,0)","v":0}]
["   b. The accessibility of services, whether they are on-site or in close proximity to the Project, including the hours they are available, and the frequency, travel time and cost of transportation required to access them, including both public transportation and private transportation services, and how the service provider will assist in the expense of public transportation - 2 points",null,null,null,null,null,null,null,null,null,null,null,null,null,null,null,null,null,null,null,null,null,null,null,null,null,null,null,null,null,null,null,null,null,null,null,{"$f":"IF(AE68=\"Yes\",2,0)","v":0}]
["   c. Adherence to §113,  Housing First principles in the provision of services, including provision of flexible services that facilitate Permanent housing access and housing stability - 2 points",null,null,null,null,null,null,null,null,null,null,null,null,null,null,null,null,null,null,null,null,null,null,null,null,null,null,null,null,null,null,null,null,null,null,null,{"$f":"IF(AE69=\"Yes\",2,0)","v":0}]
["   d. The degree to which the building space supports social interaction, the provision of services and ensures the safety of all residents, especially those more vulnerable, such as persons with a history of trauma, children, elderly, etc. - 1 point",null,null,null,null,null,null,null,null,null,null,null,null,null,null,null,null,null,null,null,null,null,null,null,null,null,null,null,null,null,null,null,null,null,null,null,{"$f":"IF(AE70=\"Yes\",1,0)","v":0}]
["   e. The levels of linkages with local systems for ending homelessness and community-based health care resources for members of the Target Population, including - 5 points\n      1. Participation, verified by the local Continuum of Care, in a local CES that is fully established.\n      2.The degree of coordination with primary care providers, behavioral health providers, and health care facilities.",null,null,null,null,null,null,null,null,null,null,null,null,null,null,null,null,null,null,null,null,null,null,null,null,null,null,null,null,null,null,null,null,null,null,null,{"$f":"IF(AE71=\"Yes\",5,0)","v":0}]
["(2) Resident Involvement (points will be awarded based on the quality of) - 3 Points max",null,null,null,null,null,null,null,null,null,null,null,null,null,null,null,null,null,null,null,null,null,null,null,null,null,null,null,null,null,null,null,null,null,null,null,{"$f":"SUM(AK73:AL75)","v":0}]
["   a. Strategies to engage residents to encourage participation in services. - 1 point",null,null,null,null,null,null,null,null,null,null,null,null,null,null,null,null,null,null,null,null,null,null,null,null,null,null,null,null,null,null,null,null,null,null,null,{"$f":"IF(AE73=\"Yes\",1,0)","v":0}]
["   b. Strategies to engage residents in services planning and operations. - 1 point",null,null,null,null,null,null,null,null,null,null,null,null,null,null,null,null,null,null,null,null,null,null,null,null,null,null,null,null,null,null,null,null,null,null,null,{"$f":"IF(AE74=\"Yes\",1,0)","v":0}]
["   c. Tenant satisfaction surveys to inform and improve services, building operations, and property management. - 1 point",null,null,null,null,null,null,null,null,null,null,null,null,null,null,null,null,null,null,null,null,null,null,null,null,null,null,null,null,null,null,null,null,null,null,null,{"$f":"IF(AE75=\"Yes\",1,0)","v":0}]
["(3) The adequacy of the services budget and the reliability over time of services funding. - 5 Points max",null,null,null,null,null,null,null,null,null,null,null,null,null,null,null,null,null,null,null,null,null,null,null,null,null,null,null,null,null,null,null,null,null,null,null,{"$f":"SUM(AK77:AL81)","v":0}]
["   a. The adequacy/accuracy of budgeted income sources/uses and the consistency of these amounts with other sections of the services plan. - 1 point",null,null,null,null,null,null,null,null,null,null,null,null,null,null,null,null,null,null,null,null,null,null,null,null,null,null,null,null,null,null,null,null,null,null,null,{"$f":"IF(AE77=\"Yes\",1,0)","v":0}]
["   b. The completeness, accuracy, specificity and clarity of the budget document - 1 point",null,null,null,null,null,null,null,null,null,null,null,null,null,null,null,null,null,null,null,null,null,null,null,null,null,null,null,null,null,null,null,null,null,null,null,{"$f":"IF(AE78=\"Yes\",1,0)","v":0}]
["   c. The extent to which the major services funding sources have been accessed by the designated service providers or Applicant in the past. - 1 point",null,null,null,null,null,null,null,null,null,null,null,null,null,null,null,null,null,null,null,null,null,null,null,null,null,null,null,null,null,null,null,null,null,null,null,{"$f":"IF(AE79=\"Yes\",1,0)","v":0}]
["   d. Track record of Applicant & providers in filling gaps in services funding left by loss of major funding sources. - 1 point",null,null,null,null,null,null,null,null,null,null,null,null,null,null,null,null,null,null,null,null,null,null,null,null,null,null,null,null,null,null,null,null,null,null,null,{"$f":"IF(AE80=\"Yes\",1,0)","v":0}]
["   e. The percentage of the total services budget that is committed at the time of application. - 1 point",null,null,null,null,null,null,null,null,null,null,null,null,null,null,null,null,null,null,null,null,null,null,null,null,null,null,null,null,null,null,null,null,null,null,null,{"$f":"IF(AE81=\"Yes\",1,0)","v":0}]
["Utilization of Funds to Offset Requests §111(d) - 10 Points Max",null,null,null,null,null,null,null,null,null,null,null,null,null,null,null,null,null,null,null,null,null,null,null,null,null,null,null,null,null,null,null,null,null,null,null,{"$f":"IF(U92=\"Yes\",MIN(AO89,10),MIN(10,AO90))","v":0}]
[{"$f":"IF(U92=\"\",\"\",IF(U92=\"Yes\",Dropdowns!I2,Dropdowns!I3))","v":""}]
["1. Total residential development cost (Loan Amt & Unit Mix, cell AD35)",null,null,null,null,null,null,null,null,null,null,null,null,null,null,null,null,null,null,null,{"$f":"'E - Loan Amount & Unit Mix'!AD35","v":0}]
["2. Less: Deferred Developer Fee (UA Dev Fee worksheet G37)"]
["3. Less: Land Donations where value is not established by current appraisal",null,null,null,null,null,null,null,null,null,null,null,null,null,null,null,null,null,null,null,null,null,null,null,"<= Must attach land appraisal if including a land donation as part of leverage calculation"]
["4. Eligible residential development costs (1 - 2 -3)",null,null,null,null,null,null,null,null,null,null,null,null,null,null,null,null,null,null,null,{"$f":"U84-U85-U86","v":0}]
["5. Percentage of Total Development Cost attributed to HHC-Assisted Units (Loan Amt & Unit Mix, Q41)",null,null,null,null,null,null,null,null,null,null,null,null,null,null,null,null,null,null,null,{"$f":"'E - Loan Amount & Unit Mix'!Q41","v":0}]
["6. Funding Attributable to HHC Assisted Units (4 * 5)",null,null,null,null,null,null,null,null,null,null,null,null,null,null,null,null,null,null,null,{"$f":"U87*U88","v":0},null,null,null,null,null,null,null,null,null,null,null,null,null,null,null,null,null,{"$f":"FLOOR($Y$91,0.05)","v":0},{"$f":"IF(AM89-0.5<0,0,(AM89-0.5)/0.05)","v":0},{"$f":"AN89*0.375","v":0}]
["7. Less: HHC Maximum Capital Loan Amount (Loan Amt & Unit Mix, cell Z48)",null,null,null,null,null,null,null,null,null,null,null,null,null,null,null,null,null,null,null,{"$f":"'E - Loan Amount & Unit Mix'!Z48","v":0},null,null,null,null,null,null,null,null,null,null,null,null,null,null,null,null,null,{"$f":"FLOOR($Y$91,0.05)","v":0},{"$f":"IF(AM90-0.5<0,0,(AM90-0.5)/0.05)","v":0},{"$f":"AN90*0.75","v":0}]
["8. Other Dev Funds (Non-HCD) Attributable to HHC Assisted Units (6 - 7)",null,null,null,null,null,null,null,null,null,null,null,null,null,null,null,null,null,null,null,{"$f":"U89-U90","v":0},null,null,null,{"$f":"IF(U90=0,0,U91/U90)","v":0},null,null,"<= Other development funds as a % of HHC Competitive capital funds (8 / 7)"]
["9. Is Project applying for or receiving 9% Tax Credits (Loan Amt & Unit Mix, H3)",null,null,null,null,null,null,null,null,null,null,null,null,null,null,null,null,null,null,null,{"$f":"IF('E - Loan Amount & Unit Mix'!H2=\"\",\"\",'E - Loan Amount & Unit Mix'!H2)","v":""}]
["File Name:",null,null,{"$f":"'Application Checklist'!A108","v":"F8"},null,"Appraisal",null,null,null,null,null,"Attach current appraisal if including a land donation as part of leverage calc.",null,null,null,null,null,null,null,null,null,null,null,null,null,null,null,null,null,null,"Attached and on USB?"]
["Leverage of Rental or Operating Subsidies §111(e) - 15 Points Max",null,null,null,null,null,null,null,null,null,null,null,null,null,null,null,null,null,null,null,null,null,null,null,null,null,null,null,null,null,null,null,null,null,null,null,{"$f":"MIN(AK107,15)","v":0}]
["Applications will be scored based on the percentage of Assisted Units that either: a. Have committed project-based rental or operating subsidies substantially similar in terms to project-based housing choice vouchers to indicate a high likelihood of receiving similar funding for the proposed project; or b. Are restricted to rents not exceeding 30 percent of household income, with project feasibility determined based on the assumption that rents will be affordable to tenants of existing projects targeting Homeless populations, as specified in the HHC application - 1 point will be awarded for each 5 percentage point increment."]
["A  Total Number of HHC Assisted Units (Loan Amt & Unit Mix, cell T32)",null,null,null,null,null,null,null,null,null,null,null,null,null,null,null,null,null,null,null,null,null,null,null,null,null,null,null,null,null,null,null,null,null,null,null,{"$f":"'E - Loan Amount & Unit Mix'!T32","v":0}]
["B",null,null,null,null,null,null,null,null,null,null,null,null,null,null,null,null,null,null,null,"C",null,null,null,"D ",null,null,null,"E",null,null,null,"F",null,null,"G","H"]
["Rental or Operating Subsidy Source",null,null,null,null,null,null,null,null,null,null,null,null,null,null,null,null,null,null,null,"# of Subsidized HHC Assisted Units",null,null,null,"AMI Level of Units",null,null,null,"% Of Total\n(C divided by A)",null,null,null,"Scoring Increment Factor",null,null,"Increments","Points\n1 point  x G"]
[null,null,null,null,null,null,null,null,null,null,null,null,null,null,null,null,null,null,null,null,null,null,null,null,null,null,null,null,{"$f":"IF(U99=\"\",0,U99/$AK$96)","v":0},null,null,null,{"$f":"FLOOR(AC99,0.05)","v":0},null,null,{"$f":"IF(AC99=0,0,AG99/$Y$107)","v":0},{"$f":"IF(OR(U99=\"\",Y99=\"\",AK96=0),0,AJ99*1)","v":0}]
[null,null,null,null,null,null,null,null,null,null,null,null,null,null,null,null,null,null,null,null,null,null,null,null,null,null,null,null,{"$f":"IF(U100=\"\",0,U100/$AK$96)","v":0},null,null,null,{"$f":"FLOOR(AC100,0.05)","v":0},null,null,{"$f":"IF(AC100=0,0,AG100/$Y$107)","v":0},{"$f":"AJ100*1","v":0}]
[null,null,null,null,null,null,null,null,null,null,null,null,null,null,null,null,null,null,null,null,null,null,null,null,null,null,null,null,0,null,null,null,0,null,null,0,{"$f":"AJ101*1","v":0}]
[null,null,null,null,null,null,null,null,null,null,null,null,null,null,null,null,null,null,null,null,null,null,null,null,null,null,null,null,0,null,null,null,0,null,null,0,0]
[null,null,null,null,null,null,null,null,null,null,null,null,null,null,null,null,null,null,null,null,null,null,null,null,null,null,null,null,0,null,null,null,0,null,null,0,0]
[null,null,null,null,null,null,null,null,null,null,null,null,null,null,null,null,null,null,null,null,null,null,null,null,null,null,null,null,0,null,null,null,0,null,null,0,0]
[null,null,null,null,null,null,null,null,null,null,null,null,null,null,null,null,null,null,null,null,null,null,null,null,null,null,null,null,0,null,null,null,0,null,null,0,0]
[null,null,null,null,null,null,null,null,null,null,null,null,null,null,null,null,null,null,null,null,null,null,null,null,null,null,null,null,0,null,null,null,0,null,null,0,0]
[null,null,null,null,null,null,null,null,null,null,null,null,null,null,null,null,"Totals",null,null,null,{"$f":"SUM(U99:X106)","v":0},null,null,null,0.05,null,null,null,null,null,null,null,null,null,null,null,{"$f":"MIN(SUM(AK99:AL106),15)","v":0}]
["File Name:",null,null,{"$f":"'Application Checklist'!A109","v":"F9"},null,"Subsidy and source name",null,"Subsidy and source name",null,"Subsidy and source name",null,"Commitment letter or evidence documenting subsidy.",null,null,null,null,null,null,null,null,null,null,null,null,null,null,null,null,null,null,"Attached and on USB?"]
["Readiness to Proceed §111(f) - 30 Points Max - must score a minimum of 15 points",null,null,null,null,null,null,null,null,null,null,null,null,null,null,null,null,null,null,null,null,null,null,null,null,null,null,null,null,null,null,null,null,null,null,null,{"$f":"IF(AK111+AK114+AK119+AK122+AK127+AK130<15,0,AK111+AK114+AK119+AK122+AK127+AK130)","v":0}]
["Any application demonstrating that a particular category is not applicable to project readiness for the subject project shall be awarded points in that category. "]
["(1)","Obtained enforceable commitments (EFC) for all construction financing, not including tax-exempt bonds, low-income housing tax credits, and funding to be provided by another Department program. Other Department funds must be awarded prior to the application deadline. All EFCs must be inserted following the Dev Sources worksheet in the UA: (1) Use a colored sheet of paper to separate commitments; (2) Highlight the following required information on each EFC: (a) Applicant or the ultimate owner is named as the borrower; (b) Project name; (c) Project site's address, assessor's parcel number or legal description; (d) Amount, interest rate and terms of the financing being committed; and (e) Commitment must be fully executed by all parties. (f) If a prepaid ground lease loan is included in the commitments, include 3rd Party documentation justifying the commercial rent - 5 points",null,null,null,null,null,null,null,null,null,null,null,null,null,null,null,null,null,null,null,null,null,null,null,null,null,null,null,null,null,null,null,null,null,null,{"$f":"IF(OR(AI111=\"Yes\",AI111=\"N/A\"),5,0)","v":0}]
["File Name:",null,null,{"$f":"'Application Checklist'!A110","v":"F10"},null,"Const EFC #1, #2, etc",null,null,null,null,null,"Commitment letter or other evidence documenting construction commitments.",null,null,null,null,null,null,null,null,null,null,null,null,null,null,null,null,null,null,"Attached and on USB?"]
["File Name:",null,null,{"$f":"'Application Checklist'!A111","v":"F11"},null,"EFC Not Applicable ",null,null,null,null,null,"Letter or other evidence documenting construction commitments are not applicable.",null,null,null,null,null,null,null,null,null,null,null,null,null,null,null,null,null,null,"Attached and on USB?"]
["(2)","Completion and submittal of all necessary environmental clearances (HTF Environmental Provisions, NEPA, and CEQA), and completion of a Phase I Environmental Site Assessment and Phase II Environmental studies if necessary. Also, attach Local Jurisdiction and NEPA Responsible Entity Verification of Project Readiness Document - 5 points. ",null,null,null,null,null,null,null,null,null,null,null,null,null,null,null,null,null,null,null,null,null,null,null,null,null,null,null,null,null,null,null,null,null,null,{"$f":"IF(OR(AI114=\"Yes\",AI114=\"N/A\"),5,0)","v":0}]
["File Name:",null,null,{"$f":"'[3]Application Checklist'!A112","v":"F12"},null,"Phase I/II ESA",null,null,null,null,null,"Phase I Report, and Phase II Report if required by the Phase I.",null,null,null,null,null,null,null,null,null,null,null,null,null,null,null,null,null,null,"Attached and on USB?"]
["File Name:",null,null,{"$f":"'[3]Application Checklist'!A113","v":"F13"},null,"HTF Env Provisions",null,null,null,null,null,"Provide HTF Environmental Provisions Checklist",null,null,null,null,null,null,null,null,null,null,null,null,null,null,null,null,null,null,"Attached and on USB?"]
["File Name:",null,null,{"$f":"'[3]Application Checklist'!A114","v":"F14"},null,"CEQA",null,null,null,null,null,"Provide CEQA Authority to Use Grant Funds and Local Jurisdiction and Environmental Verification of Project Readiness worksheet or letter or other evidence documenting CEQA clearance is not applicable.",null,null,null,null,null,null,null,null,null,null,null,null,null,null,null,null,null,null,"Attached and on USB?"]
["File Name:",null,null,{"$f":"'[3]Application Checklist'!A115","v":"F15"},null,"NEPA",null,null,null,null,null,"Provide NEPA Authority to Use Grant Funds and Local Jurisdiction and Environmental Verification of Project Readiness worksheet or letter or other evidence documenting NEPA clearance is not applicable.",null,null,null,null,null,null,null,null,null,null,null,null,null,null,null,null,null,null,"Attached and on USB?"]
["(3)","Obtain all necessary and discretionary public land use approvals except building permits and other ministerial approvals, or documented to be an eligible project under AB 2162 - 5 points",null,null,null,null,null,null,null,null,null,null,null,null,null,null,null,null,null,null,null,null,null,null,null,null,null,null,null,null,null,null,null,null,null,null,{"$f":"IF(AI119=\"Yes\",5,0)","v":0}]
["Did you obtain land use approval under a nondiscretionary local approval process?"]
["File Name:",null,null,{"$f":"'[3]Application Checklist'!A116","v":"F16"},null,"Local Jur Ver",null,null,null,null,null,"Provide Local Jurisdiction and Environmental Verification of Project Readiness worksheet or letter or other evidence documenting local jurisdiction approvals are not applicable.",null,null,null,null,null,null,null,null,null,null,null,null,null,null,null,null,null,null,"Attached and on USB?"]
["(4)","Site control - 5 points for either (a) or (b) below.",null,null,null,null,null,null,null,null,null,null,null,null,null,null,null,null,null,null,null,null,null,null,null,null,null,null,null,null,null,null,null,null,null,null,{"$f":"MIN(SUM(AK123:AL124),5)","v":0}]
["   (a) Applicant has fee title ownership to site or a long-term leasehold securing site meeting the criteria for site control.",null,null,null,null,null,null,null,null,null,null,null,null,null,null,null,null,null,null,null,null,null,null,null,null,null,null,null,null,null,null,null,null,null,null,null,{"$f":"IF(OR(AI123=\"Yes\",AI123=\"N/A\"),5,0)","v":0}]
["   (b) Applicant can demonstrate the working drawings are at least 50% complete as certified by the project architect.",null,null,null,null,null,null,null,null,null,null,null,null,null,null,null,null,null,null,null,null,null,null,null,null,null,null,null,null,null,null,null,null,null,null,null,{"$f":"IF(OR(AI124=\"Yes\",AI124=\"N/A\"),5,0)","v":0}]
["File Name:",null,null,{"$f":"'Application Checklist'!A117","v":"F17"},null,"Site Control Prelim",null,null,null,null,null,"Provide Preliminary Title Report.",null,null,null,null,null,null,null,null,null,null,null,null,null,null,null,null,null,null,"Attached and on USB?"]
["File Name:",null,null,{"$f":"'Application Checklist'!A118","v":"F18"},null,"Site Control Cert. Working Drawings",null,null,null,null,null,"Provide working drawings that are at least 50% complete as certified by the project architect. Include site plan, floor plan, and elevation of project.",null,null,null,null,null,null,null,null,null,null,null,null,null,null,null,null,null,null,"Attached and on USB?",null,null,null,null,null,null,null,null,"(A) Adaptive reuse. Project will be located in a developed area served with public infrastructure and shall consist of the rehab of vacant or underused commercial or industrial buildings."]
["(5)","Obtained local design review approval to the extent such approval is required - 5 points",null,null,null,null,null,null,null,null,null,null,null,null,null,null,null,null,null,null,null,null,null,null,null,null,null,null,null,null,null,null,null,null,null,null,{"$f":"IF(OR(AI127=\"Yes\",AI127=\"N/A\"),5,0)","v":0}]
["File Name:",null,null,{"$f":"'Application Checklist'!A119","v":"F19"},null,"Local Approvals",null,null,null,null,null,"Attach documentation of local approvals requested above.",null,null,null,null,null,null,null,null,null,null,null,null,null,null,null,null,null,null,"Attached and on USB?"]
["File Name:",null,null,{"$f":"'Application Checklist'!A120","v":"F20"},null,"Design Review Not Applicable ",null,null,null,null,null,"Letter or other evidence documenting design review is not applicable.",null,null,null,null,null,null,null,null,null,null,null,null,null,null,null,null,null,null,"Attached and on USB?"]
["(6)","EFCs for all deferred-payment permanent financing, grants, and subsidies, in accordance with TCAC requirements. Deferred-payment financing, grant funds and subsidies from other HCD programs must be awarded prior to application deadline - 5 points",null,null,null,null,null,null,null,null,null,null,null,null,null,null,null,null,null,null,null,null,null,null,null,null,null,null,null,null,null,null,null,null,null,null,{"$f":"IF(OR(AI130=\"Yes\",AI130=\"N/A\"),5,0)","v":0}]
["File Name:",null,null,{"$f":"'Application Checklist'!A121","v":"F21"},null,"Perm EFC #1, #2, etc",null,null,null,null,null,"Commitment letter or other evidence documenting deferred-payment permanent financing commitments.",null,null,null,null,null,null,null,null,null,null,null,null,null,null,null,null,null,null,"Attached and on USB?"]
["File Name:",null,null,{"$f":"'Application Checklist'!A122","v":"F22"},null,"Perm EFC #1, #2, etc Not Applicable ",null,null,null,null,null,"Letter or other evidence documenting permanent financing commitments are not applicable.",null,null,null,null,null,null,null,null,null,null,null,null,null,null,null,null,null,null,"Attached and on USB?"]
["Local Need §111(g) - 5 Points Max",null,null,null,null,null,null,null,null,null,null,null,null,null,null,null,null,null,null,null,null,null,null,null,null,null,null,null,null,null,null,null,null,null,null,null,{"$f":"AK134","v":0}]
["Points will be awarded if more than 400 individuals are Homeless in the Applicants geographic jurisdiction using the latest PIT count per NOFA. ",null,null,null,null,null,null,null,null,null,null,null,null,null,null,null,null,null,"CoC:",null,{"$f":"'B - Applicant'!Y5","v":""},null,null,null,null,null,null,null,null,null,null,"PIT Count:",null,null,{"$f":"VLOOKUP(U134,Dropdowns!B2:D59,3,FALSE)","v":{"$error":"#N/A"}},null,{"$f":"IFERROR(IF(AI134>=400,5,0),0)","v":0}]
["File Name:",null,null,{"$f":"'Application Checklist'!A123","v":"F23"},null,"CoC Certification of PIT Count",null,null,null,null,null,"Letter or other evidence documenting latest PIT Count certified by CoC.",null,null,null,null,null,null,null,null,null,null,null,null,null,null,null,null,null,null,"Attached and on USB?"]
["Location Efficiency and Access to Destinations §111(h) - 5 Points Max",null,null,null,null,null,null,null,null,null,null,null,null,null,null,null,null,null,null,null,null,null,null,null,null,null,null,null,null,null,null,null,null,null,null,null,{"$f":"IF(AK145=\"Yes\",AK138+AK140+AK141+AK142+AK143,0)","v":0}]
["Points may be awarded cumulatively across the categories below up to a total of five points. Applicants must provide a map demonstrating proximity for items (1) and (2) to be eligible for the respective points."]
["(1)","Projects located where there is a rapid transit station, light rail station, commuter rail station, ferry terminal, bus station, or public bus stop within one-half mile (one mile for Rural Areas ) from the site, with service at least every 30 minutes (or at least two departures during each peak period for a commuter rail station or ferry terminal) during the hours of 7 am - 9 am and 4 pm – 6 pm, Monday - Friday - 1 point",null,null,null,null,null,null,null,null,null,null,null,null,null,null,null,null,null,null,null,null,null,null,null,null,null,null,null,null,null,null,null,null,null,null,{"$f":"IF(AI138=\"Yes\",1,0)","v":0}]
["(2)","Projects that provide a map highlighting the location of the existing and operational services within one-half mile of the project area (two miles for Rural Areas), as follows: "]
["      a. Grocery store which meets the Cal Fresh Program requirements - 1 point ",null,null,null,null,null,null,null,null,null,null,null,null,null,null,null,null,null,null,null,null,null,null,null,null,null,null,null,null,null,null,null,null,null,null,null,{"$f":"IF(AI140=\"Yes\",1,0)","v":0}]
["      b. Medi-Cal clinic that accepts Medi-Cal payments - 1 point ",null,null,null,null,null,null,null,null,null,null,null,null,null,null,null,null,null,null,null,null,null,null,null,null,null,null,null,null,null,null,null,null,null,null,null,{"$f":"IF(AI141=\"Yes\",1,0)","v":0}]
["      c. Public elementary, middle or high school - 1 point ",null,null,null,null,null,null,null,null,null,null,null,null,null,null,null,null,null,null,null,null,null,null,null,null,null,null,null,null,null,null,null,null,null,null,null,{"$f":"IF(AI142=\"Yes\",1,0)","v":0}]
["      d. Licensed child care provider - 1 point",null,null,null,null,null,null,null,null,null,null,null,null,null,null,null,null,null,null,null,null,null,null,null,null,null,null,null,null,null,null,null,null,null,null,null,{"$f":"IF(AI143=\"Yes\",1,0)","v":0}]
["File Name:",null,null,{"$f":"'Application Checklist'!A124","v":"F24"},null,"Transit Service",null,null,null,null,null,"Transit service schedule supporting the transit service area. All transit service schedules should be saved as one document, for item (1).",null,null,null,null,null,null,null,null,null,null,null,null,null,null,null,null,null,null,"Attached and on USB?"]
["File Name:",null,null,{"$f":"'Application Checklist'!A125","v":"F25"},null,"Map",null,null,null,null,null,"Map demonstrating proximity, for items (1) and (2) to be eligible for points.",null,null,null,null,null,null,null,null,null,null,null,null,null,null,null,null,null,null,"Attached and on USB?"]

{"sheet":"G - Supportive Services","index":8,"n_rows":117,"n_cols":39,"rows_kept":117,"cut":false,"hidden":false,"merged":[[1,0,1,37],[2,0,2,37],[14,0,14,35],[15,0,15,35],[3,0,3,35],[3,36,3,37],[14,36,14,37],[15,36,15,37],[9,0,9,35],[9,36,9,37],[10,0,10,35],[10,36,10,37],[11,0,11,37],[8,36,8,37],[12,36,12,37],[12,0,12,35],[8,0,8,35],[16,3,16,4],[16,5,16,10],[16,11,16,29],[13,36,13,37],[4,0,4,35],[4,36,4,37],[5,0,5,35],[5,36,5,37],[6,0,6,35],[6,36,6,37],[7,0,7,35],[7,36,7,37],[13,0,13,35],[16,0,16,2],[16,30,16,35],[16,36,16,37],[71,11,71,12],[70,0,70,10],[71,0,71,10],[64,34,64,37],[67,34,67,37],[68,34,68,37],[76,34,76,37],[73,26,73,33],[72,26,72,33],[71,26,71,33],[73,34,73,37],[72,34,72,37],[65,21,65,25],[66,21,66,25],[68,21,68,25],[67,21,67,33],[68,0,68,15],[66,0,66,15],[70,21,70,25],[70,11,70,12],[72,0,72,10],[73,0,73,10],[75,0,75,15],[74,0,74,15],[62,34,62,37],[63,34,63,37],[62,21,62,25],[63,21,63,25],[63,16,63,20],[62,16,62,20],[73,13,73,15],[71,34,71,37],[70,34,70,37],[71,13,71,15],[71,21,71,25],[68,16,68,20],[65,34,65,37],[66,34,66,37],[68,26,68,33],[66,26,66,33],[65,26,65,33],[65,0,65,15],[67,0,67,15],[67,16,67,20],[66,16,66,20],[65,16,65,20],[69,0,69,37],[70,13,70,15],[77,34,77,37],[76,21,76,25],[74,34,74,37],[75,34,75,37],[116,5,116,10],[116,11,116,29],[71,16,71,20],[70,16,70,20],[78,34,78,37],[79,34,79,37],[78,21,78,25],[79,21,79,25],[79,16,79,20],[78,16,78,20],[90,2,90,34],[84,34,84,37],[85,34,85,37],[84,21,84,25],[85,21,85,25],[84,16,84,20],[85,16,85,20],[82,34,82,37],[116,3,116,4],[70,26,70,33],[83,34,83,37],[82,21,82,25],[83,21,83,25],[83,16,83,20],[82,16,82,20],[86,26,86,33],[85,26,85,33],[84,26,84,33],[80,34,80,37],[81,34,81,37],[83,26,83,33],[82,26,82,33],[81,26,81,33],[80,26,80,33],[86,16,86,20],[81,16,81,20],[80,16,80,20],[79,26,79,33],[78,26,78,33],[77,26,77,33],[76,26,76,33],[74,26,74,33],[75,21,75,33],[74,21,74,25],[77,21,77,25],[86,21,86,25],[80,21,80,25],[81,21,81,25],[79,0,79,15],[78,0,78,15],[77,0,77,15],[76,0,76,15],[73,16,73,20],[72,16,72,20],[76,16,76,20],[72,21,72,25],[73,21,73,25],[72,13,72,15],[72,11,72,12],[75,16,75,20],[74,16,74,20],[77,16,77,20],[100,0,100,37],[99,0,99,37],[98,0,98,37],[97,0,97,37],[96,0,96,37],[95,0,95,37],[94,0,94,37],[93,0,93,37],[73,11,73,12],[92,35,92,37],[81,0,81,15],[80,0,80,15],[92,0,92,1],[90,35,90,37],[91,35,91,37],[86,34,86,37],[87,34,87,37],[87,16,87,20],[88,0,88,37],[89,0,89,37],[91,0,91,1],[90,0,90,1],[92,2,92,34],[91,2,91,34],[64,0,64,15],[21,8,21,19],[20,8,20,19],[25,0,25,7],[24,0,24,7],[23,0,23,7],[22,0,22,7],[21,0,21,7],[20,0,20,7],[53,6,53,21],[45,6,45,21],[46,6,46,21],[47,6,47,21],[31,5,31,10],[31,3,31,4],[31,11,31,29],[61,0,61,37],[63,26,63,33],[62,26,62,33],[64,16,64,20],[64,21,64,25],[64,26,64,33],[63,0,63,15],[62,0,62,15],[101,0,101,37],[30,0,30,1],[29,0,29,1],[28,0,28,1],[27,0,27,37],[26,0,26,37],[28,2,28,34],[29,2,29,34],[30,2,30,34],[87,21,87,33],[87,0,87,15],[86,0,86,15],[85,0,85,15],[84,0,84,15],[83,0,83,15],[82,0,82,15],[30,35,30,37],[28,35,28,37],[60,0,60,37],[59,0,59,37],[58,0,58,37],[53,27,53,29],[53,30,53,33],[50,34,50,37],[18,0,18,37],[19,0,19,37],[0,35,0,37],[0,0,0,34],[20,33,20,37],[21,33,21,37],[25,33,25,37],[24,33,24,37],[23,33,23,37],[22,33,22,37],[20,26,20,32],[21,26,21,32],[25,26,25,32],[24,26,24,32],[23,26,23,32],[22,26,22,32],[21,20,21,25],[25,20,25,25],[20,20,20,22],[20,23,20,25],[25,8,25,19],[24,8,24,19],[23,8,23,19],[24,20,24,25],[23,20,23,25],[22,20,22,25],[55,0,55,37],[57,0,57,37],[56,0,56,37],[50,30,50,33],[42,34,42,37],[46,30,46,33],[45,0,45,5],[44,34,44,37],[44,0,44,5],[45,34,45,37],[43,0,43,5],[43,30,43,33],[44,30,44,33],[43,34,43,37],[43,27,43,29],[44,27,44,29],[45,27,45,29],[46,27,46,29],[48,27,48,29],[44,6,44,21],[53,34,53,37],[53,22,53,26],[116,0,116,2],[17,0,17,37],[31,0,31,2],[31,30,31,35],[31,36,31,37],[54,0,54,37],[49,34,49,37],[49,30,49,33],[48,0,48,5],[48,30,48,33],[48,34,48,37],[49,0,49,5],[47,0,47,5],[46,34,46,37],[46,0,46,5],[50,0,50,5],[50,27,50,29],[29,35,29,37],[116,30,116,35],[116,36,116,37],[114,0,114,37],[111,0,111,37],[102,0,102,37],[22,8,22,19],[105,0,105,37],[115,0,115,37],[107,0,107,37],[112,0,112,37],[113,0,113,37],[108,0,108,37],[109,0,109,37],[106,0,106,37],[104,0,104,37],[110,0,110,37],[103,0,103,37],[49,27,49,29],[49,6,49,21],[49,22,49,26],[40,34,40,37],[40,0,40,5],[36,0,36,37],[40,22,40,26],[40,6,40,21],[41,0,41,5],[41,30,41,33],[42,30,42,33],[42,0,42,5],[48,6,48,21],[41,22,41,26],[42,22,42,26],[43,22,43,26],[44,22,44,26],[45,22,45,26],[46,22,46,26],[47,22,47,26],[48,22,48,26],[41,6,41,21],[43,6,43,21],[53,0,53,5],[41,34,41,37],[47,34,47,37],[47,30,47,33],[45,30,45,33],[47,27,47,29],[40,27,40,29],[41,27,41,29],[42,27,42,29],[51,0,51,5],[51,27,51,29],[51,30,51,33],[51,34,51,37],[52,0,52,5],[52,27,52,29],[52,30,52,33],[52,34,52,37],[50,6,50,21],[50,22,50,26],[51,6,51,21],[51,22,51,26],[52,6,52,21],[52,22,52,26],[32,0,32,37],[33,0,33,37],[34,0,34,37],[35,0,35,37],[37,0,37,37],[40,30,40,33],[38,0,38,37],[39,0,39,37],[42,6,42,21]]}
["Supportive Services §112(d) (Attachment G1)",null,null,null,null,null,null,null,null,null,null,null,null,null,null,null,null,null,null,null,null,null,null,null,null,null,null,null,null,null,null,null,null,null,null,{"$f":"'B - Applicant'!AJ1","v":"Rev. 3/4/20"}]
["Supportive Services §112(c)"]
["Using evidence-based models, the following Supportive Services shall be made available to HHC tenants based on tenant need. Except as noted below, the following required services shall be provided onsite or offsite at another location easily accessible to tenants, with the majority of case management services offered on-site:"]
["(1) Assistance accessing and linking tenants to Medi-Cal enrollment and enrollment in other benefits the tenant may be eligible for;"]
["(2) Case management;"]
["(3) Peer support activities; "]
["(4) Support in linking to behavioral health care, such as assessment, crisis counseling, individual and group therapy, and peer support groups;"]
["(5) Support in linking to primary care services, including access to routine and preventive health and dental care, medication management, and wellness services; "]
["(6) Benefits counseling and advocacy, including assistance in accessing Supplementary Security Income/State Supplemental Payment;"]
["(7) Basic housing retention skills (such as unit maintenance and upkeep, cooking, laundry, working with a landlord, getting along with neighbors, and money management); "]
["(8) Services for persons with co-occurring mental and physical disabilities or  co-occurring mental and substance use disorders not listed above. "]
["The following Supportive Services are not required to be made available but are encouraged to be part of a project’s Supportive Services plan."]
["(1) Recreational and social activities;"]
["(2) Educational services, including assessment, GED, school enrollment, assistance accessing higher education benefits and grants, and assistance in obtaining reasonable accommodations in the education process; "]
["(3) Employment services, such as supported employment, job readiness, job skills training, job placement, and retention services, or programs promoting volunteer opportunities for those unable to work; and"]
["(4) Obtaining access to other needed services, such as civil legal services, or access to food and clothing."]
["File Name:",null,null,{"$f":"'Application Checklist'!A129","v":"G2"},null,"Supportive Services Plan",null,null,null,null,null,"Provide a copy of the Project's proposed Supportive Services Plan meeting the requirements of §112(c).",null,null,null,null,null,null,null,null,null,null,null,null,null,null,null,null,null,null,"Attached and on USB?"]
["Provider-to-Client Staff Ratio §110(a)(11) "]
["List all staff positions that will provide services to the tenants of the HHC assisted units.  Include Sponsor or LSP staff positions, and any staff positions of partnering organizations who have committed time to the project.  Include your services coordination staff.   For each position, list the position title, minimum requirements, the full-time equivalent (FTE), the organization under which the position resides, and the location of the position (on-site or off-site). Do not include staff which serve non-HHC assisted units.  If a staff position serves both tenants in HHC and non-HHC assisted units, include only that portion (i.e., % FTE) of the staff position dedicated to HHC assisted units.  Attach a copy of each positions duty statement."]
["Note: All staff positions listed here must be reflected in the Estimated Itemized Budget §112(d)(6) . Be sure to indicate which staff position will be responsible for HMIS data entry. If the cost of on-site Resident Services Coordination is included as part of the project’s operating budget and the position will serve supportive housing units, that position must be included in this chart.  "]
["Title",null,null,null,null,null,null,null,"Minimum requirements",null,null,null,null,null,null,null,null,null,null,null,"Total FTE:",null,null,{"$f":"SUM(U23:Z26)","v":0},null,null,"Employing Organization",null,null,null,null,null,null,"Location"]
["List each staff position ",null,null,null,null,null,null,null,"List min. required staff preparation (education & experience) Note: Doesn't take place of the job description or duty statement.",null,null,null,null,null,null,null,null,null,null,null,"Indicate FTE staff positions for SH or TH units (half-time is 0.5 FTE)",null,null,null,null,null,"This could be the LSP, Sponsor or a Project Partner",null,null,null,null,null,null,"Select \"On-Site\" or \"Off-Site\""]
[]
[]
[]
[]
["Staffing Ratio - Must maintain at least a 1:20 provider-to-client staff Ratio."]
["1. Indicate the overall services staffing level for your project by completing the calculation below.  "]
["a.",null,"Total HHC assisted units. ",null,null,null,null,null,null,null,null,null,null,null,null,null,null,null,null,null,null,null,null,null,null,null,null,null,null,null,null,null,null,null,null,{"$f":"'E - Loan Amount & Unit Mix'!T32","v":0},null,null,20]
["b.",null,"Total FTE Service Staff from the Staffing Chart for the HHC assisted units.",null,null,null,null,null,null,null,null,null,null,null,null,null,null,null,null,null,null,null,null,null,null,null,null,null,null,null,null,null,null,null,null,{"$f":"X21","v":0},null,null,1]
["c.",null,"Number of HHC assisted SH units Per FTE Staff Person (b÷a)",null,null,null,null,null,null,null,null,null,null,null,null,null,null,null,null,null,null,null,null,null,null,null,null,null,null,null,null,null,null,null,null,{"$f":"IFERROR(IF(AJ30=0,0,AJ30/AJ29),\"\")","v":0},null,null,{"$f":"AM30/AM29","v":0.05}]
["File Name:",null,null,{"$f":"'Application Checklist'!A130","v":"G3"},null,"SP Org Chart-Resumes",null,null,null,null,null,"Attach provider organization chart, staff resumes, and staff duty statements. ",null,null,null,null,null,null,null,null,null,null,null,null,null,null,null,null,null,null,"Attached and on USB?"]
["All projects must include an SSP meeting §112. Be as specific as possible. The checklist below serves as a guide to ensure all the components of the SSP are complete."]
["Target Population Narrative §112(d)(1) "]
["Provide a detailed narrative of the Target Population to be served, and identification of any additional sub-population target or occupancy preference for the Project (all sub-population targeting must be approved by HCD prior to construction loan closing and must be consistent with federal and state fair housing requirements)."]
["Add a detailed explanation how you met the requirements. "]
["Tenant Outreach, Engagement, and Retention Strategies §112(d)(2) "]
["Describe the plan for conducting tenant outreach, engagement and retention strategies to be used in support of these Program objectives. "]
["Detailed explanation must include direction to the page it can be found on within the attached Supportive Service Plan."]
["List of Services §112(d)(3)"]
["Required Services 112(c):",null,null,null,null,null,"Provider",null,null,null,null,null,null,null,null,null,null,null,null,null,null,null,"Page Number in Supportive Services Plan",null,null,null,null,"Miles from Project Site",null,null,"Frequency of Offered Service",null,null,null,"Hrs. Available\n(for example)\n8 am - 5 pm"]
["(1) Assisting tenants to Medi-Cal and other benefits enrollment"]
["(2) Case management"]
["(3) Peer support activities"]
["(4) Support linking to behavior health care"]
["(5) Support linking to primary care services"]
["(6) Benefits counseling and advocacy"]
["(7) Basic housing retention skills"]
["(8) Services for persons with co-occurring disabilities/disorders"]
["Optional (encouraged) Services 112(c):",null,null,null,null,null,"Provider",null,null,null,null,null,null,null,null,null,null,null,null,null,null,null,"Page Number in Supportive Services Plan",null,null,null,null,"Miles from Project Site",null,null,"Frequency of Offered Service",null,null,null,"Hrs. Available\n(for example)\n8 am - 5 pm"]
["(1) Recreational and social activities"]
["(2) Educational services"]
["(3) Employment services"]
["(4) Obtaining access to other needed services"]
["Transportation Plan §112(d)(4)"]
["For services provided off-site, (not at the project site), provide a detailed narrative on what transportation options will be available to HHC tenants in order to provide them with reasonable access to these services. Reasonable access is access that does not require walking more than ½ mile."]
[]
["Services Competency §112(d)(5) "]
["(A) Describe how the services are culturally and linguistically competent for persons of different races, ethnicities, sexual orientations, gender identities, and gender expressions. (B) Explain how services will be provided to HHC tenants who do not speak English, or have other communication barriers, including sensory disabilities. (C) Explain how communication among the services providers, the property manager, and these tenants will be facilitated."]
[]
["Estimated Itemized Budget §112(d)(6) "]
["Provide a line item Supportive Services Budget for project using format below. Complete both income and expense portions of the budget.  Include all costs associated with implementing your Supportive Services Plan, including any in-kind services.  Include income and expenses for Sponsor or LSP staff positions, and also any staff positions of partnering organizations who have committed time to the project.  Don't include costs associated with providing services in non-HHC assisted units.  If costs are associated with both HHC & non-HHC assisted units, include only that portion of costs associated with HHC assisted units."]
["Income Source/Program Name",null,null,null,null,null,null,null,null,null,null,null,null,null,null,null,"Amount",null,null,null,null,"Type",null,null,null,null,"Status",null,null,null,null,null,null,null,"% of Total Budget"]
[null,null,null,null,null,null,null,null,null,null,null,null,null,null,null,null,null,null,null,null,null,null,null,null,null,null,null,null,null,null,null,null,null,null,{"$f":"IF($Q$68=0,0,Q64/$Q$68)","v":0}]
[null,null,null,null,null,null,null,null,null,null,null,null,null,null,null,null,null,null,null,null,null,null,null,null,null,null,null,null,null,null,null,null,null,null,{"$f":"IF($Q$68=0,0,Q65/$Q$68)","v":0}]
[null,null,null,null,null,null,null,null,null,null,null,null,null,null,null,null,null,null,null,null,null,null,null,null,null,null,null,null,null,null,null,null,null,null,{"$f":"IF($Q$68=0,0,Q66/$Q$68)","v":0}]
[null,null,null,null,null,null,null,null,null,null,null,null,null,null,null,null,null,null,null,null,null,null,null,null,null,null,null,null,null,null,null,null,null,null,{"$f":"IF($Q$68=0,0,Q67/$Q$68)","v":0}]
["Total Revenue:",null,null,null,null,null,null,null,null,null,null,null,null,null,null,null,{"$f":"SUM(Q64:U67)","v":0},null,null,null,null,null,null,null,null,null,null,null,null,null,null,null,null,null,{"$f":"IF($Q$68=0,0,Q68/$Q$68)","v":0}]
["Expense Item",null,null,null,null,null,null,null,null,null,null,null,null,null,null,null,"Amount",null,null,null,null,"Type",null,null,null,null,"Status",null,null,null,null,null,null,null,"% of Total Budget"]
["Staff Salaries:  List by title of position. (This list must match the Staffing Chart above.)"]
["Staff Position",null,null,null,null,null,null,null,null,null,null,"FTE:",null,null,null,null,null,null,null,null,null,null,null,null,null,null,null,null,null,null,null,null,null,null,{"$f":"IF($Q$76=0,0,Q71/$Q$76)","v":0}]
["Staff Position",null,null,null,null,null,null,null,null,null,null,"FTE:",null,null,null,null,null,null,null,null,null,null,null,null,null,null,null,null,null,null,null,null,null,null,{"$f":"IF($Q$76=0,0,Q72/$Q$76)","v":0}]
["Staff Position",null,null,null,null,null,null,null,null,null,null,"FTE:",null,null,null,null,null,null,null,null,null,null,null,null,null,null,null,null,null,null,null,null,null,null,0]
["Staff Position",null,null,null,null,null,null,null,null,null,null,"FTE:",null,null,null,null,null,null,null,null,null,null,null,null,null,null,null,null,null,null,null,null,null,null,0]
["Fringe Benefits ",null,null,null,null,null,null,null,null,null,null,null,null,null,null,null,null,null,null,null,null,null,null,null,null,null,null,null,null,null,null,null,null,null,0]
["Total Staff Expenses",null,null,null,null,null,null,null,null,null,null,null,null,null,null,null,{"$f":"SUM(Q71:U75)","v":0},null,null,null,null,null,null,null,null,null,null,null,null,null,null,null,null,null,0]
["Tenant Transportation",null,null,null,null,null,null,null,null,null,null,null,null,null,null,null,null,null,null,null,null,null,null,null,null,null,null,null,null,null,null,null,null,null,{"$f":"IF($Q$88=0,0,Q77/$Q$88)","v":0}]
["Equipment",null,null,null,null,null,null,null,null,null,null,null,null,null,null,null,null,null,null,null,null,null,null,null,null,null,null,null,null,null,null,null,null,null,0]
["Supplies",null,null,null,null,null,null,null,null,null,null,null,null,null,null,null,null,null,null,null,null,null,null,null,null,null,null,null,null,null,null,null,null,null,0]
["Travel",null,null,null,null,null,null,null,null,null,null,null,null,null,null,null,null,null,null,null,null,null,null,null,null,null,null,null,null,null,null,null,null,null,0]
["Office Rent/Occupancy Costs (don't include rent/leasing costs for SH units)",null,null,null,null,null,null,null,null,null,null,null,null,null,null,null,null,null,null,null,null,null,null,null,null,null,null,null,null,null,null,null,null,null,0]
["Training",null,null,null,null,null,null,null,null,null,null,null,null,null,null,null,null,null,null,null,null,null,null,null,null,null,null,null,null,null,null,null,null,null,0]
["Consultants:  List by Function",null,null,null,null,null,null,null,null,null,null,null,null,null,null,null,null,null,null,null,null,null,null,null,null,null,null,null,null,null,null,null,null,null,0]
["Subcontractors/Partners (list by Entity & Service Type)",null,null,null,null,null,null,null,null,null,null,null,null,null,null,null,null,null,null,null,null,null,null,null,null,null,null,null,null,null,null,null,null,null,0]
["Other Expenses (type in expense description)",null,null,null,null,null,null,null,null,null,null,null,null,null,null,null,null,null,null,null,null,null,null,null,null,null,null,null,null,null,null,null,null,null,0]
["Other Expenses (type in expense description)",null,null,null,null,null,null,null,null,null,null,null,null,null,null,null,null,null,null,null,null,null,null,null,null,null,null,null,null,null,null,null,null,null,0]
["Other Expenses (type in expense description)",null,null,null,null,null,null,null,null,null,null,null,null,null,null,null,null,null,null,null,null,null,null,null,null,null,null,null,null,null,null,null,null,null,0]
["Total Expenses",null,null,null,null,null,null,null,null,null,null,null,null,null,null,null,{"$f":"SUM(Q76:U87)","v":0},null,null,null,null,null,null,null,null,null,null,null,null,null,null,null,null,null,0]
["Supportive Services Cost Per Unit: Permanent supportive housing best practice suggests a range between $5,000 - $10,000 annually in services per household, depending upon the intensity of the needs of the target population. Complete the following calculation about supportive services cost per unit for your project. If your supportive services cost per unit, as calculated below, differ from industry practice, please provide a narrative explanation.  The project must meet/address the industry standard."]
["Supportive Services Expense Per Unit Calculation Table"]
["a.",null,"Total HHC assisted units.",null,null,null,null,null,null,null,null,null,null,null,null,null,null,null,null,null,null,null,null,null,null,null,null,null,null,null,null,null,null,null,null,{"$f":"'E - Loan Amount & Unit Mix'!T32","v":0}]
["b.",null,"Total Supportive Services Expenses",null,null,null,null,null,null,null,null,null,null,null,null,null,null,null,null,null,null,null,null,null,null,null,null,null,null,null,null,null,null,null,null,{"$f":"Q88","v":0}]
["c.",null,"Total Supportive Services Expenses per Unit: (b ÷ a)",null,null,null,null,null,null,null,null,null,null,null,null,null,null,null,null,null,null,null,null,null,null,null,null,null,null,null,null,null,null,null,null,{"$f":"IF(AJ91=0,0,AJ92/AJ91)","v":0}]
["Budget Narrative and Funding Commitments"]
["1.  Describe how budgeted amts. are adequate to provide services described in Supportive Services Plan and in Services Staffing Table:"]
[]
["2.  Document committed funds with letter from committing agency that includes the following. Documented services/funding must appear in Supportive Services Budget Table. "]
["a) Project name; b) Description of services to be funded or provided; c) Dollar value of funds or in-kind services.  If cash is  provided, state funding source; d) Funding term or service provision; e) A description and history of agency/organization providing funding or services."]
["3.  For funding that is not yet committed, specifically describe your experience filling major services funding gaps in similar housing."]
[]
["4. Describe in specific terms the plan to fill any service gaps that occur during project life due to expiration of grants, partner withdrawals, cancellation of a commitment or any other reason. Describe experience filling service gaps caused by loss of major funding sources."]
[]
["Collaboration of Supportive Services and Property Management Staff §112(d)(7) "]
["Describe how the supportive services and property management staff will collaborate to prevent evictions, adopt and ensure compliance with harm reduction principles, and facilitate the implementation of reasonable accommodation policies from rent-up to on-going project operations."]
[]
["Communication Protocols §112(d)(8) "]
["Provide a detailed narrative on the communication protocols to be utilized by the general service providers and the property manager."]
[]
["Project Physical Design §112(d)(9) "]
["Provide a detailed narrative on how the physical design of the project fosters tenant engagement, on-site supportive services provision, security and safety, and sustainability of equipment, furnishings, and fixtures."]
[]
["Other Additional Information §112(d)(10) "]
["Provide any other information necessary to evaluate the supportive services to be offered consistent with HHC Program requirements."]
[]
["Memoranda of Understanding §112(e)"]
["Attach copies of draft written agreements or Memoranda of Understanding (MOU) which identify the roles and responsibilities of the County, project owner, other service provider(s), and the property manager. Specific organizations do not need to be identified unless those organizations are used to satisfy the experience requirements required to submit an Application. Draft written agreements or MOUs must be materially consistent with the information set forth in the SSP."]
["File Name:",null,null,{"$f":"'Application Checklist'!A131","v":"G4"},null,"SSP MOU",null,null,null,null,null,"Attach copies of draft written agreements or Memoranda of Understanding (MOU) which identify the roles and responsibilities of the County, project owner, other service provider(s), and the property manager.",null,null,null,null,null,null,null,null,null,null,null,null,null,null,null,null,null,null,"Attached and on USB?"]

{"sheet":"H - Certification","index":9,"n_rows":41,"n_cols":37,"rows_kept":41,"cut":false,"hidden":false,"merged":[[5,0,5,37],[10,35,10,37],[6,0,6,37],[7,0,7,37],[8,0,8,37],[9,0,9,37],[10,0,10,8],[10,10,10,18],[10,20,10,33],[0,0,0,37],[1,0,1,37],[2,0,2,37],[3,0,3,37],[4,0,4,37],[13,0,13,37],[14,0,14,37],[15,0,15,37],[16,0,16,37],[11,0,11,8],[11,10,11,18],[11,20,11,33],[17,0,17,37],[18,0,18,37],[19,0,19,37],[20,0,20,37],[21,0,21,37],[22,0,22,36],[23,0,23,36],[24,0,24,36],[25,0,25,36],[26,0,26,36],[27,0,27,37],[28,0,28,36],[29,0,29,36],[30,0,30,36],[31,0,31,36],[32,0,32,36],[33,0,33,36],[34,0,34,36],[35,0,35,37],[36,0,36,17],[36,20,36,34],[36,36,36,37],[40,0,40,17],[40,20,40,34],[37,0,37,17],[37,20,37,34],[37,36,37,37],[39,0,39,17],[39,20,39,34]]}
["Certification"]
["State of California"]
["On behalf of the entity identified in the signature block below, I certify that:"]
["1. The information, statements and attachments included in this application are, to the best of my knowledge and belief, true and correct."]
["2. I possess the legal authority to submit this application on behalf of the entity identified in the signature block."]
["3. The following is a complete disclosure of all identities of interest - of all persons or entities, including affiliates, that will provide goods or services to the Project either (a) in one or more capacity or (b) that qualify as a \"Related Party\" to any person or entity that will provide goods or services to the project.  \"Related Party\" is defined in Section 10302 of the California Code of Regulations (CTCAC Regulations): "]
[]
["4. As of the date of application, the Project, or the real property on which the Project is proposed (Property) is not part to or the subject of any claim or action at the State or Federal appellate level."]
["5. I have disclosed and described below any claim or action undertaken which affects or potentially affects the feasibility of the Project."]
["In addition, I acknowledge that all information in this application and attachments is public, and may be disclosed by the State."]
["     "]
["Printed Name",null,null,null,null,null,null,null,null,null,"Title of Signatory",null,null,null,null,null,null,null,null,null,"Signature",null,null,null,null,null,null,null,null,null,null,null,null,null,null,null,"Date"]
[]
["Legal Disclosure"]
["For purposes of the following questions, and with the exceptions noted below, the term “applicant” shall include the applicant and joint applicant, and any subsidiary of the applicant or joint applicant  if the subsidiary is involved in (for example, as a guarantor) or will be benefited by the application or the project.  "]
["In addition to each of these entities themselves, the term “applicant” shall also include the direct and indirect holders of more than ten percent (10%) of the ownership interests in the entity, as well as the officers, directors, principals and senior executives of the entity if the entity is a corporation, the general and limited partners of the entity if the entity is a partnership, and the members or managers of the entity if the entity is a limited liability company.  For projects using tax-exempt bonds, it shall also include the individual who will be executing the bond purchase agreement."]
["The following questions must be responded to for each entity and person qualifying as an \"applicant,\" or \"joint applicant\" as defined above.   "]
["Explain all positive responses on a separate sheet and include with this questionnaire in the application."]
["Exceptions:"]
["Public entity applicants without an ownership interest in the proposed project, including but not limited to cities, counties, and joint powers authorities with 100 or more members, are not required to respond to this questionnaire.  "]
["Members of the boards of directors of non-profit corporations, including officers of the boards, are also not required to respond. However, chief executive officers (Executive Directors, Chief Executive Officers, Presidents or their equivalent) must respond, as must chief financial officers (Treasurers, Chief Financial Officers, or their equivalent)."]
["Civil Matters"]
["1. Has the applicant filed a bankruptcy or receivership case or had a bankruptcy or receivership action commenced against it, defaulted on a loan or been foreclosed against in past ten years? "]
["2. Is the applicant currently a party to, or been notified that it may become a party to, any civil litigation that may materially and adversely affect (a) the financial condition of the applicant’s business, or (b) the project that is the subject of the application?"]
["3. Have there been any administrative or civil settlements, decisions, or judgments against the applicant within the past ten years that materially and adversely affected (a) the financial condition of the applicant’s business, or (b) the project that is the subject of the application?"]
["4. Is the applicant currently subject to, or been notified that it may become subject to, any civil or administrative proceeding, examination, or investigation by a local, state or federal licensing or accreditation agency, a local, state or federal taxing authority, or a local, state or federal regulatory or enforcement agency?  "]
["5. In the past ten years, has the applicant been subject to any civil or administrative proceeding, examination, or investigation by a local, state or federal licensing or accreditation agency, a local, state or federal taxing authority, or a local, state or federal regulatory or enforcement agency that resulted in a settlement, decision, or judgment?  "]
["Criminal Matters"]
["6. Is the applicant currently a party to, or the subject of, or been notified that it may become a party to or the subject of, any criminal litigation, proceeding, charge, complaint, examination or investigation, of any kind, involving, or that could result in, felony charges against the applicant?  "]
["7. Is the applicant currently a party to, or the subject of, or been notified that it may become a party to or the subject of, any criminal litigation, proceeding, charge, complaint, examination or investigation, of any kind, involving, or that could result in, misdemeanor charges against the applicant for matters relating to the conduct of the applicant’s business?  "]
["8. Is the applicant currently a party to, or the subject of, or been notified that it may become a party to or the subject of, any criminal litigation, proceeding, charge, complaint, examination or investigation, of any kind, involving, or that could result in, criminal charges (whether felony or misdemeanor) against the applicant for any financial or fraud related crime?  "]
["9. Is the applicant currently a party to, or the subject of, or been notified that it may become a party to or the subject of, any criminal litigation, proceeding, charge, complaint, examination or investigation, of any kind, that could materially affect the financial condition of the applicant’s business?"]
["10. Within the past ten years, has the applicant been convicted of any felony?  "]
["11. Within the past ten years, has the applicant been convicted of any misdemeanor related to the conduct of the applicant’s business?   "]
["12. Within the past ten years, has the applicant been convicted of any misdemeanor for any financial or fraud related crime?  "]
["Please provide a letter of explaination if you responded \"Yes\" to any of the questions above."]
["     "]
["Printed Name of Applicant or Joint Applicant",null,null,null,null,null,null,null,null,null,null,null,null,null,null,null,null,null,null,null,"Signature of Applicant or Joint Applicant",null,null,null,null,null,null,null,null,null,null,null,null,null,null,null,"Date"]
["     "]
["     "]
["Printed Name of Signatory",null,null,null,null,null,null,null,null,null,null,null,null,null,null,null,null,null,null,null,"Printed Title of Signatory"]

{"sheet":"Application Support","index":10,"n_rows":31,"n_cols":42,"rows_kept":31,"cut":false,"hidden":false,"merged":[[0,0,0,35],[0,36,0,37],[1,0,1,37],[2,0,2,2],[2,3,2,21],[2,22,2,25],[2,26,2,29],[2,30,2,33],[2,34,2,37],[3,0,3,3],[3,4,3,14],[3,15,3,16],[3,17,3,27],[3,28,3,31],[3,32,3,37],[4,0,4,37],[5,0,5,1],[5,2,5,4],[5,5,5,8],[5,9,5,14],[5,15,5,16],[5,17,5,28],[5,29,5,31],[5,32,5,34],[5,35,5,37],[6,0,6,1],[6,2,6,4],[6,5,6,8],[6,9,6,14],[6,15,6,16],[6,17,6,28],[6,29,6,31],[6,32,6,34],[6,35,6,37],[7,0,7,1],[7,2,7,4],[7,5,7,8],[7,9,7,14],[7,15,7,16],[7,17,7,28],[7,29,7,31],[7,32,7,34],[7,35,7,37],[8,0,8,1],[8,2,8,4],[8,5,8,8],[8,9,8,14],[8,15,8,16],[8,17,8,28],[8,29,8,31],[8,32,8,34],[8,35,8,37],[9,0,9,1],[9,2,9,4],[9,5,9,8],[9,9,9,14],[9,15,9,16],[9,17,9,28],[9,29,9,31],[9,32,9,34],[9,35,9,37],[10,0,10,1],[10,2,10,4],[10,5,10,8],[10,9,10,14],[10,15,10,16],[10,17,10,28],[10,29,10,31],[10,32,10,34],[10,35,10,37],[11,0,11,1],[11,2,11,4],[11,5,11,8],[11,9,11,14],[11,15,11,16],[11,17,11,28],[11,29,11,31],[11,32,11,34],[11,35,11,37],[12,0,12,1],[12,2,12,4],[12,5,12,8],[12,9,12,14],[12,15,12,16],[12,17,12,28],[12,29,12,31],[12,32,12,34],[12,35,12,37],[13,0,13,1],[13,2,13,4],[13,5,13,8],[13,9,13,14],[13,15,13,16],[13,17,13,28],[13,29,13,31],[13,32,13,34],[13,35,13,37],[14,0,14,1],[14,2,14,4],[14,5,14,8],[14,9,14,14],[14,15,14,16],[14,17,14,28],[14,29,14,31],[14,32,14,34],[14,35,14,37],[15,0,15,1],[15,2,15,4],[15,5,15,8],[15,9,15,14],[15,15,15,16],[15,17,15,28],[15,29,15,31],[15,32,15,34],[15,35,15,37],[16,0,16,1],[16,2,16,4],[16,5,16,8],[16,9,16,14],[16,15,16,16],[16,17,16,28],[16,29,16,31],[16,32,16,34],[16,35,16,37],[17,0,17,1],[17,2,17,4],[17,5,17,8],[17,9,17,14],[17,15,17,16],[17,17,17,28],[17,29,17,31],[17,32,17,34],[17,35,17,37],[18,0,18,1],[18,2,18,4],[18,5,18,8],[18,9,18,14],[18,15,18,16],[18,17,18,28],[18,29,18,31],[18,32,18,34],[18,35,18,37],[19,0,19,1],[19,2,19,4],[19,5,19,8],[19,9,19,14],[19,15,19,16],[19,17,19,28],[19,29,19,31],[19,32,19,34],[19,35,19,37],[20,0,20,1],[20,2,20,4],[20,5,20,8],[20,9,20,14],[20,15,20,16],[20,17,20,28],[20,29,20,31],[20,32,20,34],[20,35,20,37],[21,0,21,1],[21,2,21,4],[21,5,21,8],[21,9,21,14],[21,15,21,16],[21,17,21,28],[21,29,21,31],[21,32,21,34],[21,35,21,37],[22,0,22,1],[22,2,22,4],[22,5,22,8],[22,9,22,14],[22,15,22,16],[22,17,22,28],[22,29,22,31],[22,32,22,34],[22,35,22,37],[23,0,23,1],[23,2,23,4],[23,5,23,8],[23,9,23,14],[23,15,23,16],[23,17,23,28],[23,29,23,31],[23,32,23,34],[23,35,23,37],[24,0,24,1],[24,2,24,4],[24,5,24,8],[24,9,24,14],[24,15,24,16],[24,17,24,28],[24,29,24,31],[24,32,24,34],[24,35,24,37],[25,0,25,1],[25,2,25,4],[25,5,25,8],[25,9,25,14],[25,15,25,16],[25,17,25,28],[25,29,25,31],[25,32,25,34],[25,35,25,37],[26,0,26,1],[26,2,26,4],[26,5,26,8],[26,9,26,14],[26,15,26,16],[26,17,26,28],[26,29,26,31],[26,32,26,34],[26,35,26,37],[27,0,27,1],[27,2,27,4],[27,5,27,8],[27,9,27,14],[27,15,27,16],[27,17,27,28],[27,29,27,31],[27,32,27,34],[27,35,27,37],[28,0,28,1],[28,2,28,4],[28,5,28,8],[28,9,28,14],[28,15,28,16],[28,17,28,28],[28,29,28,31],[28,32,28,34],[28,35,28,37],[29,0,29,1],[29,2,29,4],[29,5,29,8],[29,9,29,14],[29,15,29,16],[29,17,29,28],[29,29,29,31],[29,32,29,34],[29,35,29,37],[30,29,30,31],[30,32,30,34],[30,35,30,37],[30,0,30,1],[30,2,30,4],[30,5,30,8],[30,9,30,14],[30,15,30,16],[30,17,30,28]]}
["Application Development Team (ADT)\nSupport Form",null,null,null,null,null,null,null,null,null,null,null,null,null,null,null,null,null,null,null,null,null,null,null,null,null,null,null,null,null,null,null,null,null,null,null,{"$f":"'B - Applicant'!AJ1","v":"Rev. 3/4/20"}]
["Please complete the \"yellow\" cells in the form below and email entire workbook to: AppSupport@hcd.ca.gov. A member of the Application Development Team will respond to your request ASAP. "]
["Full Name:",null,null,null,null,null,null,null,null,null,null,null,null,null,null,null,null,null,null,null,null,null,"Date Requested:",null,null,null,null,null,null,null,"Application Version Date:"]
["Organization:",null,null,null,null,null,null,null,null,null,null,null,null,null,null,"Email:",null,null,null,null,null,null,null,null,null,null,null,null,"Contact Phone:"]
["Justification:"]
["Issue #",null,"Program Name & Round",null,null,"Tab",null,null,null,"Section",null,null,null,null,null,"Cell#",null,"Update/Comment",null,null,null,null,null,null,null,null,null,null,null,"Urgency ",null,null,"ADT Status",null,null,"Status Date",null,null,"Requestor","Email","Phone","App Version"]
[1,null,null,null,null,null,null,null,null,null,null,null,null,null,null,null,null,null,null,null,null,null,null,null,null,null,null,null,null,null,null,null,null,null,null,null,null,null,{"$f":"IF(C7=\"\",\"\",$D$3)","v":""},{"$f":"IF(C7=\"\",\"\",$R$4)","v":""},{"$f":"IF(C7=\"\",\"\",$AG$4)","v":""},{"$f":"IF(C7=\"\",\"\",$AI$3)","v":""}]
[2,null,null,null,null,null,null,null,null,null,null,null,null,null,null,null,null,null,null,null,null,null,null,null,null,null,null,null,null,null,null,null,null,null,null,null,null,null,"","","",""]
[3,null,null,null,null,null,null,null,null,null,null,null,null,null,null,null,null,null,null,null,null,null,null,null,null,null,null,null,null,null,null,null,null,null,null,null,null,null,"","","",""]
[4,null,null,null,null,null,null,null,null,null,null,null,null,null,null,null,null,null,null,null,null,null,null,null,null,null,null,null,null,null,null,null,null,null,null,null,null,null,"","","",""]
[5,null,null,null,null,null,null,null,null,null,null,null,null,null,null,null,null,null,null,null,null,null,null,null,null,null,null,null,null,null,null,null,null,null,null,null,null,null,"","","",""]
[6,null,null,null,null,null,null,null,null,null,null,null,null,null,null,null,null,null,null,null,null,null,null,null,null,null,null,null,null,null,null,null,null,null,null,null,null,null,"","","",""]
[7,null,null,null,null,null,null,null,null,null,null,null,null,null,null,null,null,null,null,null,null,null,null,null,null,null,null,null,null,null,null,null,null,null,null,null,null,null,"","","",""]
[8,null,null,null,null,null,null,null,null,null,null,null,null,null,null,null,null,null,null,null,null,null,null,null,null,null,null,null,null,null,null,null,null,null,null,null,null,null,"","","",""]
[9,null,null,null,null,null,null,null,null,null,null,null,null,null,null,null,null,null,null,null,null,null,null,null,null,null,null,null,null,null,null,null,null,null,null,null,null,null,"","","",""]
[10,null,null,null,null,null,null,null,null,null,null,null,null,null,null,null,null,null,null,null,null,null,null,null,null,null,null,null,null,null,null,null,null,null,null,null,null,null,"","","",""]
[11,null,null,null,null,null,null,null,null,null,null,null,null,null,null,null,null,null,null,null,null,null,null,null,null,null,null,null,null,null,null,null,null,null,null,null,null,null,"","","",""]
[12,null,null,null,null,null,null,null,null,null,null,null,null,null,null,null,null,null,null,null,null,null,null,null,null,null,null,null,null,null,null,null,null,null,null,null,null,null,"","","",""]
[13,null,null,null,null,null,null,null,null,null,null,null,null,null,null,null,null,null,null,null,null,null,null,null,null,null,null,null,null,null,null,null,null,null,null,null,null,null,"","","",""]
[14,null,null,null,null,null,null,null,null,null,null,null,null,null,null,null,null,null,null,null,null,null,null,null,null,null,null,null,null,null,null,null,null,null,null,null,null,null,"","","",""]
[15,null,null,null,null,null,null,null,null,null,null,null,null,null,null,null,null,null,null,null,null,null,null,null,null,null,null,null,null,null,null,null,null,null,null,null,null,null,"","","",""]
[16,null,null,null,null,null,null,null,null,null,null,null,null,null,null,null,null,null,null,null,null,null,null,null,null,null,null,null,null,null,null,null,null,null,null,null,null,null,"","","",""]
[17,null,null,null,null,null,null,null,null,null,null,null,null,null,null,null,null,null,null,null,null,null,null,null,null,null,null,null,null,null,null,null,null,null,null,null,null,null,"","","",""]
[18,null,null,null,null,null,null,null,null,null,null,null,null,null,null,null,null,null,null,null,null,null,null,null,null,null,null,null,null,null,null,null,null,null,null,null,null,null,"","","",""]
[19,null,null,null,null,null,null,null,null,null,null,null,null,null,null,null,null,null,null,null,null,null,null,null,null,null,null,null,null,null,null,null,null,null,null,null,null,null,"","","",""]
[20,null,null,null,null,null,null,null,null,null,null,null,null,null,null,null,null,null,null,null,null,null,null,null,null,null,null,null,null,null,null,null,null,null,null,null,null,null,"","","",""]
[21,null,null,null,null,null,null,null,null,null,null,null,null,null,null,null,null,null,null,null,null,null,null,null,null,null,null,null,null,null,null,null,null,null,null,null,null,null,"","","",""]
[22,null,null,null,null,null,null,null,null,null,null,null,null,null,null,null,null,null,null,null,null,null,null,null,null,null,null,null,null,null,null,null,null,null,null,null,null,null,"","","",""]
[23,null,null,null,null,null,null,null,null,null,null,null,null,null,null,null,null,null,null,null,null,null,null,null,null,null,null,null,null,null,null,null,null,null,null,null,null,null,"","","",""]
[24,null,null,null,null,null,null,null,null,null,null,null,null,null,null,null,null,null,null,null,null,null,null,null,null,null,null,null,null,null,null,null,null,null,null,null,null,null,"","","",""]
[25,null,null,null,null,null,null,null,null,null,null,null,null,null,null,null,null,null,null,null,null,null,null,null,null,null,null,null,null,null,null,null,null,null,null,null,null,null,"","","",""]

{"sheet":"Dropdowns","index":11,"n_rows":59,"n_cols":9,"rows_kept":59,"cut":false,"hidden":true,"merged":[]}
["County","CoC ","CoC#","CoC PIT",null,"Target Population","AMI","Supportive Services"]
["Alameda","Oakland/Alameda County CoC","CA-502",8022,null,"Chronically homeless or is Homeless and a High-cost health user upon initial eligibility","15%","Case management","(2) For projects utilizing 9% competitive low-income housing tax credits, 0.375 points will be awarded for each full 5 percentage point increment above 50%. For example, an application proposing other funds equal to 100% of the NHTF funds will receive 3.75 points up to 10 Points Max. "]
["Alpine","Inyo, Mono, Alpine Counties CoC","CA-613",214,null,"Medi-Cal beneficiary","20%","Peer support activities","(3) For other projects not utilizing 9% competitive low-income housing tax credits, 0.75 points will be awarded for each 5 percentage point increment above 50% up to 10 Points Max."]
["Amador","Amador, Calaveras, Tuolumne and Mariposa Counties CoC","CA-526",845,null,"Eligible for Supplemental Security Income","25%","Mental health care"]
["Butte","Chico/Paradise/Butte County CoC","CA-519",1266,null,"Eligible to receive services under a program providing services promoting housing stability","30%","Substance use services"]
["Calaveras","Amador, Calaveras, Tuolumne and Mariposa Counties CoC","CA-526",845,null,"Likely to improve his or her health conditions with Supportive housing","35%","Linkage to physical health care"]
["Colusa","Colusa, Glenn, Trinity Counties CoC","CA-523",192,null,null,"40%","Benefits counseling and advocacy"]
["Contra Costa","Richmond/Contra Costa County CoC","CA-505",2295,null,null,"45%","Basic housing retention skills"]
["Del Norte","Redding/Shasta, Siskiyou, Lassen, Plumas, Del Norte, Modoc, Sierra Counties CoC","CA-516",1349,null,null,"50%","Services for co-occurring mental and physical disabilities"]
["El Dorado","El Dorado County CoC","CA-525",613,null,null,"55%","Recreational and social activities"]
["Fresno","Fresno/Madera County CoC","CA-514",2508,null,null,"60%","Educational services"]
["Glenn","Colusa, Glenn, Trinity Counties CoC","CA-523",192,null,null,"65%","Employment services"]
["Humboldt","Humboldt County CoC","CA-522",1702,null,null,"70%","Access to other services"]
["Imperial","Imperial County CoC","CA-613",1413,null,null,"75%"]
["Inyo","Inyo, Mono, Alpine Counties CoC","CA-613",214,null,null,"80%"]
["Kern","Bakersfield/Kern County CoC","CA-604",1330]
["Kings","Visalia, Kings, Tulare Counties CoC","CA-518",1064]
["Lake","Lake County CoC","CA-529",408]
["Lassen","Redding/Shasta, Siskiyou, Lassen, Plumas, Del Norte, Modoc, Sierra Counties CoC","CA-516",1349]
["Los Angeles","Los Angeles City & County CoC","CA-600",56257]
["Madera","Fresno/Madera County CoC","CA-514",2508]
["Marin","Marin County CoC","CA-507",1034]
["Mariposa","Amador, Calaveras, Tuolumne and Mariposa Counties CoC","CA-526",845]
["Mendocino","Mendocino County CoC","CA-509",785]
["Merced","Merced City & County CoC","CA-520",608]
["Modoc","Redding/Shasta, Siskiyou, Lassen, Plumas, Del Norte, Modoc, Sierra Counties CoC","CA-516",1349]
["Mono","Inyo, Mono, Alpine Counties CoC","CA-613",214]
["Monterey","Salinas/Monterey, San Benito Counties CoC","CA-506",2704]
["Napa","Napa City & County CoC","CA-517",322]
["Nevada","Nevada County CoC","CA-531",415]
["Orange","Santa Ana/Anaheim/Orange County CoC","CA-602",6860]
["Placer","Roseville/Rocklin/Placer CoC","CA-515",617]
["Plumas","Redding/Shasta, Siskiyou, Lassen, Plumas, Del Norte, Modoc, Sierra Counties CoC","CA-516",1349]
["Riverside","Riverside City & County CoC","CA-608",2811]
["Sacramento","Sacramento City & County CoC","CA-503",5561]
["San Benito","Salinas/Monterey, San Benito Counties CoC","CA-506",2704]
["San Bernardino","San Bernardino City & County CoC","CA-609",2607]
["San Diego","San Diego City and County CoC","CA-601",8102]
["San Francisco","San Francisco CoC","CA-501",8035]
["San Joaquin","Stockton/San Joaquin County CoC","CA-511",2631]
["San Luis Obispo","San Luis Obispo County CoC","CA-614",1483]
["San Mateo","Daly/San Mateo County CoC","CA-512",1512]
["Santa Barbara","Santa Maria/Santa Barbara County CoC","CA-603",1803]
["Santa Clara","San Jose/Santa Clara City & County CoC","CA-500",9706]
["Santa Cruz","Watsonville/Santa Cruz City & County CoC","CA-508",2167]
["Shasta","Redding/Shasta, Siskiyou, Lassen, Plumas, Del Norte, Modoc, Sierra Counties CoC","CA-516",1349]
["Sierra","Redding/Shasta, Siskiyou, Lassen, Plumas, Del Norte, Modoc, Sierra Counties CoC","CA-516",1349]
["Siskiyou","Redding/Shasta, Siskiyou, Lassen, Plumas, Del Norte, Modoc, Sierra Counties CoC","CA-516",1349]
["Solano","Vallejo/Solano County CoC","CA-518",1151]
["Sonoma","Santa Rosa/Petaluma/Sonoma County CoC","CA-504",2951]
["Stanislaus","Turlock/Modesto/Stanislaus County CoC","CA-510",1923]
["Sutter","Yuba City & County/Sutter County CoC","CA-524",721]
["Tehama","Tehama County CoC","CA-527",288]
["Trinity","Colusa, Glenn, Trinity Counties CoC","CA-523",192]
["Tulare","Visalia, Kings, Tulare Counties CoC","CA-518",1064]
["Tuolumne","Amador, Calaveras, Tuolumne and Mariposa Counties CoC","CA-526",845]
["Ventura","Oxnard/San Buenaventura/Ventura County CoC","CA-611",1669]
["Yolo","Davis/Woodland/Yolo County CoC","CA-521",655]
["Yuba","Yuba City & County/Sutter County CoC","CA-524",721]

{"sheet":"Loan PU Amts","index":12,"n_rows":233,"n_cols":11,"rows_kept":233,"cut":false,"hidden":true,"merged":[]}
["Level*","Efficiency","1 BR","2 BR","3 BR","4+ BR","Efficiency","1 BR","2 BR","3 BR","4+ BR"]
["ALAMEDA30%",136698,136698,136698,136698,136698,191179,191179,191179,191179,191179]
["ALAMEDA25%",152399,153407,156865,159890,162627,206880,207888,211346,214371,217108]
["ALAMEDA20%",167956,170117,176887,183081,188411,222437,224598,231368,237562,242892]
["ALAMEDA15%",183657,186971,197054,206273,214339,238138,241452,251535,260754,268820]
["ALPINE30%",136698,136698,136698,136698,136698,191179,191179,191179,191179,191179]
["ALPINE25%",146781,147502,149662,151823,153407,201262,201983,204143,206304,207888]
["ALPINE20%",156865,158305,162627,166804,170117,211346,212786,217108,221285,224598]
["ALPINE15%",166948,169109,175591,181785,186971,221429,223590,230072,236266,241452]
["AMADOR30%",136698,136698,136698,136698,136698,191179,191179,191179,191179,191179]
["AMADOR25%",145917,146493,148510,150382,151967,200398,200974,202991,204863,206448]
["AMADOR20%",155136,156432,160322,164067,167236,209617,210913,214803,218548,221717]
["AMADOR15%",164355,166228,172134,177751,182505,218836,220709,226615,232232,236986]
["BUTTE30%",136698,136698,136698,136698,136698,191179,191179,191179,191179,191179]
["BUTTE25%",145053,145773,147502,149230,150671,199534,200254,201983,203711,205152]
["BUTTE20%",153407,154704,158305,161618,164499,207888,209185,212786,216099,218980]
["BUTTE15%",161906,163635,169109,174150,178472,216387,218116,223590,228631,232953]
["CALAVERAS30%",136698,136698,136698,136698,136698,191179,191179,191179,191179,191179]
["CALAVERAS25%",146205,146925,148942,150815,152399,200686,201406,203423,205296,206880]
["CALAVERAS20%",155712,157153,161042,164931,168100,210193,211634,215523,219412,222581]
["CALAVERAS15%",165219,167236,173286,179048,183946,219700,221717,227767,233529,238427]
["COLUSA30%",136698,136698,136698,136698,136698,191179,191179,191179,191179,191179]
["COLUSA25%",144909,145341,147213,148798,150238,199390,199822,201694,203279,204719]
["COLUSA20%",152975,154128,157729,160898,163779,207456,208609,212210,215379,218260]
["COLUSA15%",161186,162915,168244,173142,177319,215667,217396,222725,227623,231800]
["CONTRA COSTA30%",136698,136698,136698,136698,136698,191179,191179,191179,191179,191179]
["CONTRA COSTA25%",152399,153407,156865,159890,162627,206880,207888,211346,214371,217108]
["CONTRA COSTA20%",167956,170117,176887,183081,188411,222437,224598,231368,237562,242892]
["CONTRA COSTA15%",183657,186971,197054,206273,214339,238138,241452,251535,260754,268820]
["DEL NORTE30%",136698,136698,136698,136698,136698,191179,191179,191179,191179,191179]
["DEL NORTE25%",144909,145341,147213,148798,150238,199390,199822,201694,203279,204719]
["DEL NORTE20%",152975,154128,157729,160898,163779,207456,208609,212210,215379,218260]
["DEL NORTE15%",161186,162915,168244,173142,177319,215667,217396,222725,227623,231800]
["EL DORADO30%",136698,136698,136698,136698,136698,191179,191179,191179,191179,191179]
["EL DORADO25%",147213,147934,150238,152399,154128,201694,202415,204719,206880,208609]
["EL DORADO20%",157729,159313,163779,168100,171557,212210,213794,218260,222581,226038]
["EL DORADO15%",168388,170549,177319,183657,189131,222869,225030,231800,238138,243612]
["FRESNO30%",136698,136698,136698,136698,136698,191179,191179,191179,191179,191179]
["FRESNO25%",144909,145341,147213,148798,150238,199390,199822,201694,203279,204719]
["FRESNO20%",152975,154128,157729,160898,163779,207456,208609,212210,215379,218260]
["FRESNO15%",161186,162915,168244,173142,177319,215667,217396,222725,227623,231800]
["GLENN30%",136698,136698,136698,136698,136698,191179,191179,191179,191179,191179]
["GLENN25%",144909,145341,147213,148798,150238,199390,199822,201694,203279,204719]
["GLENN20%",152975,154128,157729,160898,163779,207456,208609,212210,215379,218260]
["GLENN15%",161186,162915,168244,173142,177319,215667,217396,222725,227623,231800]
["HUMBOLDT30%",136698,136698,136698,136698,136698,191179,191179,191179,191179,191179]
["HUMBOLDT25%",144909,145341,147213,148798,150238,199390,199822,201694,203279,204719]
["HUMBOLDT20%",152975,154128,157729,160898,163779,207456,208609,212210,215379,218260]
["HUMBOLDT15%",161186,162915,168244,173142,177319,215667,217396,222725,227623,231800]
["IMPERIAL30%",136698,136698,136698,136698,136698,191179,191179,191179,191179,191179]
["IMPERIAL25%",144909,145341,147213,148798,150238,199390,199822,201694,203279,204719]
["IMPERIAL20%",152975,154128,157729,160898,163779,207456,208609,212210,215379,218260]
["IMPERIAL15%",161186,162915,168244,173142,177319,215667,217396,222725,227623,231800]
["INYO30%",136698,136698,136698,136698,136698,191179,191179,191179,191179,191179]
["INYO25%",145773,146637,148510,150382,151967,200254,201118,202991,204863,206448]
["INYO20%",154992,156432,160322,163923,167092,209473,210913,214803,218404,221573]
["INYO15%",164211,166228,172134,177607,182361,218692,220709,226615,232088,236842]
["KERN30%",136698,136698,136698,136698,136698,191179,191179,191179,191179,191179]
["KERN25%",144909,145341,147213,148798,150238,199390,199822,201694,203279,204719]
["KERN20%",152975,154128,157729,160898,163779,207456,208609,212210,215379,218260]
["KERN15%",161186,162915,168244,173142,177319,215667,217396,222725,227623,231800]
["KINGS30%",136698,136698,136698,136698,136698,191179,191179,191179,191179,191179]
["KINGS25%",144909,145341,147213,148798,150238,199390,199822,201694,203279,204719]
["KINGS20%",152975,154128,157729,160898,163779,207456,208609,212210,215379,218260]
["KINGS15%",161186,162915,168244,173142,177319,215667,217396,222725,227623,231800]
["LAKE30%",136698,136698,136698,136698,136698,191179,191179,191179,191179,191179]
["LAKE25%",144909,145341,147213,148798,150238,199390,199822,201694,203279,204719]
["LAKE20%",152975,154128,157729,160898,163779,207456,208609,212210,215379,218260]
["LAKE15%",161186,162915,168244,173142,177319,215667,217396,222725,227623,231800]
["LASSEN30%",136698,136698,136698,136698,136698,191179,191179,191179,191179,191179]
["LASSEN25%",145341,145917,147790,149374,150959,199822,200398,202271,203855,205440]
["LASSEN20%",153984,155136,158881,162194,165219,208465,209617,213362,216675,219700]
["LASSEN15%",162627,164355,169973,175015,179480,217108,218836,224454,229496,233961]
["LOS ANGELES30%",136698,136698,136698,136698,136698,191179,191179,191179,191179,191179]
["LOS ANGELES25%",149950,150815,153696,156288,158593,204431,205296,208177,210769,213074]
["LOS ANGELES20%",163059,164931,170549,175735,180344,217540,219412,225030,230216,234825]
["LOS ANGELES15%",176167,179048,187547,195325,202240,230648,233529,242028,249806,256721]
["MADERA30%",136698,136698,136698,136698,136698,191179,191179,191179,191179,191179]
["MADERA25%",144909,145341,147213,148798,150238,199390,199822,201694,203279,204719]
["MADERA20%",152975,154128,157729,160898,163779,207456,208609,212210,215379,218260]
["MADERA15%",161186,162915,168244,173142,177319,215667,217396,222725,227623,231800]
["MARIN30%",136698,136698,136698,136698,136698,191179,191179,191179,191179,191179]
["MARIN25%",157009,158593,162915,166948,170405,211490,213074,217396,221429,224886]
["MARIN20%",177319,180344,188987,197054,203968,231800,234825,243468,251535,258449]
["MARIN15%",197630,202095,215060,227304,237675,252111,256576,269541,281785,292156]
["MARIPOSA30%",136698,136698,136698,136698,136698,191179,191179,191179,191179,191179]
["MARIPOSA25%",144909,145341,147213,148798,150238,199390,199822,201694,203279,204719]
["MARIPOSA20%",152975,154128,157729,160898,163779,207456,208609,212210,215379,218260]
["MARIPOSA15%",161186,162915,168244,173142,177319,215667,217396,222725,227623,231800]
["MENDOCINO30%",136698,136698,136698,136698,136698,191179,191179,191179,191179,191179]
["MENDOCINO25%",144909,145341,147213,148798,150238,199390,199822,201694,203279,204719]
["MENDOCINO20%",152975,154128,157729,160898,163779,207456,208609,212210,215379,218260]
["MENDOCINO15%",161186,162915,168244,173142,177319,215667,217396,222725,227623,231800]
["MERCED30%",136698,136698,136698,136698,136698,191179,191179,191179,191179,191179]
["MERCED25%",144909,145341,147213,148798,150238,199390,199822,201694,203279,204719]
["MERCED20%",152975,154128,157729,160898,163779,207456,208609,212210,215379,218260]
["MERCED15%",161186,162915,168244,173142,177319,215667,217396,222725,227623,231800]
["MODOC30%",136698,136698,136698,136698,136698,191179,191179,191179,191179,191179]
["MODOC25%",144909,145341,147213,148798,150238,199390,199822,201694,203279,204719]
["MODOC20%",152975,154128,157729,160898,163779,207456,208609,212210,215379,218260]
["MODOC15%",161186,162915,168244,173142,177319,215667,217396,222725,227623,231800]
["MONO30%",136698,136698,136698,136698,136698,191179,191179,191179,191179,191179]
["MONO25%",146493,147213,149374,151247,152975,200974,201694,203855,205728,207456]
["MONO20%",156288,157729,161906,165796,169253,210769,212210,216387,220277,223734]
["MONO15%",166228,168244,174582,180488,185530,220709,222725,229063,234969,240011]
["MONTEREY30%",136698,136698,136698,136698,136698,191179,191179,191179,191179,191179]
["MONTEREY25%",147934,148798,151247,153552,155424,202415,203279,205728,208033,209905]
["MONTEREY20%",159313,160898,165796,170261,174150,213794,215379,220277,224742,228631]
["MONTEREY15%",170693,173142,180344,187115,193020,225174,227623,234825,241596,247501]
["NAPA30%",136698,136698,136698,136698,136698,191179,191179,191179,191179,191179]
["NAPA25%",149374,150382,152975,155568,157585,203855,204863,207456,210049,212066]
["NAPA20%",162050,163923,169253,174294,178616,216531,218404,223734,228775,233097]
["NAPA15%",174726,177463,185530,193165,199647,229207,231944,240011,247646,254128]
["NEVADA30%",136698,136698,136698,136698,136698,191179,191179,191179,191179,191179]
["NEVADA25%",146781,147502,149662,151535,153263,201262,201983,204143,206016,207744]
["NEVADA20%",156721,158161,162482,166516,169973,211202,212642,216963,220997,224454]
["NEVADA15%",166804,168965,175447,181497,186682,221285,223446,229928,235978,241163]
["ORANGE30%",136698,136698,136698,136698,136698,191179,191179,191179,191179,191179]
["ORANGE25%",151679,152687,155856,158881,161474,206160,207168,210337,213362,215955]
["ORANGE20%",166660,168677,175159,181065,186250,221141,223158,229640,235546,240731]
["ORANGE15%",181641,184810,194461,203392,211026,236122,239291,248942,257873,265507]
["PLACER30%",136698,136698,136698,136698,136698,191179,191179,191179,191179,191179]
["PLACER25%",147213,147934,150238,152399,154128,201694,202415,204719,206880,208609]
["PLACER20%",157729,159313,163779,168100,171557,212210,213794,218260,222581,226038]
["PLACER15%",168388,170549,177319,183657,189131,222869,225030,231800,238138,243612]
["PLUMAS30%",136698,136698,136698,136698,136698,191179,191179,191179,191179,191179]
["PLUMAS25%",145485,146061,148078,149806,151247,199966,200542,202559,204287,205728]
["PLUMAS20%",154272,155424,159313,162771,165796,208753,209905,213794,217252,220277]
["PLUMAS15%",163059,164931,170549,175879,180344,217540,219412,225030,230360,234825]
["RIVERSIDE30%",136698,136698,136698,136698,136698,191179,191179,191179,191179,191179]
["RIVERSIDE25%",145773,146493,148366,150238,151679,200254,200974,202847,204719,206160]
["RIVERSIDE20%",154848,156144,160034,163635,166660,209329,210625,214515,218116,221141]
["RIVERSIDE15%",163923,165796,171701,177031,181641,218404,220277,226182,231512,236122]
["SACRAMENTO30%",136698,136698,136698,136698,136698,191179,191179,191179,191179,191179]
["SACRAMENTO25%",147213,147934,150238,152399,154128,201694,202415,204719,206880,208609]
["SACRAMENTO20%",157729,159313,163779,168100,171557,212210,213794,218260,222581,226038]
["SACRAMENTO15%",168388,170549,177319,183657,189131,222869,225030,231800,238138,243612]
["SAN BENITO30%",136698,136698,136698,136698,136698,191179,191179,191179,191179,191179]
["SAN BENITO25%",149518,150382,153263,155712,158017,203999,204863,207744,210193,212498]
["SAN BENITO20%",162338,164211,169685,174871,179336,216819,218692,224166,229352,233817]
["SAN BENITO15%",175303,178040,186250,194029,200655,229784,232521,240731,248510,255136]
["SAN BERNARDINO30%",136698,136698,136698,136698,136698,191179,191179,191179,191179,191179]
["SAN BERNARDINO25%",145773,146493,148366,150238,151679,200254,200974,202847,204719,206160]
["SAN BERNARDINO20%",154848,156144,160034,163635,166660,209329,210625,214515,218116,221141]
["SAN BERNARDINO15%",163923,165796,171701,177031,181641,218404,220277,226182,231512,236122]
["SAN DIEGO30%",136698,136698,136698,136698,136698,191179,191179,191179,191179,191179]
["SAN DIEGO25%",150094,151103,154128,156721,159025,204575,205584,208609,211202,213506]
["SAN DIEGO20%",163635,165507,171413,176743,181353,218116,219988,225894,231224,235834]
["SAN DIEGO15%",177175,180056,188699,196766,203824,231656,234537,243180,251247,258305]
["SAN FRANCISCO30%",136698,136698,136698,136698,136698,191179,191179,191179,191179,191179]
["SAN FRANCISCO25%",157009,158593,162915,166948,170405,211490,213074,217396,221429,224886]
["SAN FRANCISCO20%",177319,180344,188987,197054,203968,231800,234825,243468,251535,258449]
["SAN FRANCISCO15%",197630,202095,215060,227304,237675,252111,256576,269541,281785,292156]
["SAN JOAQUIN30%",136698,136698,136698,136698,136698,191179,191179,191179,191179,191179]
["SAN JOAQUIN25%",145485,146061,148078,149806,151391,199966,200542,202559,204287,205872]
["SAN JOAQUIN20%",154272,155568,159313,162915,165940,208753,210049,213794,217396,220421]
["SAN JOAQUIN15%",163203,165075,170693,176023,180632,217684,219556,225174,230504,235113]
["SAN LUIS OBISPO30%",136698,136698,136698,136698,136698,191179,191179,191179,191179,191179]
["SAN LUIS OBISPO25%",148078,148942,151247,153552,155568,202559,203423,205728,208033,210049]
["SAN LUIS OBISPO20%",159313,161042,165796,170405,174294,213794,215523,220277,224886,228775]
["SAN LUIS OBISPO15%",170693,173142,180488,187259,193020,225174,227623,234969,241740,247501]
["SAN MATEO30%",136698,136698,136698,136698,136698,191179,191179,191179,191179,191179]
["SAN MATEO25%",157009,158593,162915,166948,170405,211490,213074,217396,221429,224886]
["SAN MATEO20%",177319,180344,188987,197054,203968,231800,234825,243468,251535,258449]
["SAN MATEO15%",197630,202095,215060,227304,237675,252111,256576,269541,281785,292156]
["SANTA BARBARA30%",136698,136698,136698,136698,136698,191179,191179,191179,191179,191179]
["SANTA BARBARA25%",150527,151679,154560,157297,159746,205008,206160,209041,211778,214227]
["SANTA BARBARA20%",164499,166516,172422,178040,182793,218980,220997,226903,232521,237274]
["SANTA BARBARA15%",178472,181497,190284,198638,205841,232953,235978,244765,253119,260322]
["SANTA CLARA30%",136698,136698,136698,136698,136698,191179,191179,191179,191179,191179]
["SANTA CLARA25%",155136,156432,160322,164067,167236,209617,210913,214803,218548,221717]
["SANTA CLARA20%",173574,176167,184090,191436,197774,228055,230648,238571,245917,252255]
["SANTA CLARA15%",192012,196045,207857,218949,228456,246493,250526,262338,273430,282937]
["SANTA CRUZ30%",136698,136698,136698,136698,136698,191179,191179,191179,191179,191179]
["SANTA CRUZ25%",152255,153263,156577,159746,162338,206736,207744,211058,214227,216819]
["SANTA CRUZ20%",167668,169829,176455,182649,187979,222149,224310,230936,237130,242460]
["SANTA CRUZ15%",183081,186394,196334,205697,213619,237562,240875,250815,260178,268100]
["SHASTA30%",136698,136698,136698,136698,136698,191179,191179,191179,191179,191179]
["SHASTA25%",144909,145341,147213,148798,150238,199390,199822,201694,203279,204719]
["SHASTA20%",152975,154128,157729,160898,163779,207456,208609,212210,215379,218260]
["SHASTA15%",161186,162915,168244,173142,177319,215667,217396,222725,227623,231800]
["SIERRA30%",136698,136698,136698,136698,136698,191179,191179,191179,191179,191179]
["SIERRA25%",146205,146925,148942,150815,152543,200686,201406,203423,205296,207024]
["SIERRA20%",155712,157009,161186,164931,168244,210193,211490,215667,219412,222725]
["SIERRA15%",165219,167236,173430,179048,183946,219700,221717,227911,233529,238427]
["SISKIYOU30%",136698,136698,136698,136698,136698,191179,191179,191179,191179,191179]
["SISKIYOU25%",144909,145341,147213,148798,150238,199390,199822,201694,203279,204719]
["SISKIYOU20%",152975,154128,157729,160898,163779,207456,208609,212210,215379,218260]
["SISKIYOU15%",161186,162915,168244,173142,177319,215667,217396,222725,227623,231800]
["SOLANO30%",136698,136698,136698,136698,136698,191179,191179,191179,191179,191179]
["SOLANO25%",147502,148366,150671,152687,154704,201983,202847,205152,207168,209185]
["SOLANO20%",158305,159890,164499,168821,172566,212786,214371,218980,223302,227047]
["SOLANO15%",169109,171413,178472,184810,190428,223590,225894,232953,239291,244909]
["SONOMA30%",136698,136698,136698,136698,136698,191179,191179,191179,191179,191179]
["SONOMA25%",150382,151247,154272,156865,159169,204863,205728,208753,211346,213650]
["SONOMA20%",163923,165796,171701,177175,181785,218404,220277,226182,231656,236266]
["SONOMA15%",177607,180488,189275,197342,204400,232088,234969,243756,251823,258881]
["STANISLAUS30%",136698,136698,136698,136698,136698,191179,191179,191179,191179,191179]
["STANISLAUS25%",144909,145341,147213,148798,150238,199390,199822,201694,203279,204719]
["STANISLAUS20%",152975,154128,157729,160898,163779,207456,208609,212210,215379,218260]
["STANISLAUS15%",161186,162915,168244,173142,177319,215667,217396,222725,227623,231800]
["SUTTER30%",136698,136698,136698,136698,136698,191179,191179,191179,191179,191179]
["SUTTER25%",144909,145341,147213,148798,150238,199390,199822,201694,203279,204719]
["SUTTER20%",152975,154128,157729,160898,163779,207456,208609,212210,215379,218260]
["SUTTER15%",161186,162915,168244,173142,177319,215667,217396,222725,227623,231800]
["TEHAMA30%",136698,136698,136698,136698,136698,191179,191179,191179,191179,191179]
["TEHAMA25%",144909,145341,147213,148798,150238,199390,199822,201694,203279,204719]
["TEHAMA20%",152975,154128,157729,160898,163779,207456,208609,212210,215379,218260]
["TEHAMA15%",161186,162915,168244,173142,177319,215667,217396,222725,227623,231800]
["TRINITY30%",136698,136698,136698,136698,136698,191179,191179,191179,191179,191179]
["TRINITY25%",144909,145341,147213,148798,150238,199390,199822,201694,203279,204719]
["TRINITY20%",152975,154128,157729,160898,163779,207456,208609,212210,215379,218260]
["TRINITY15%",161186,162915,168244,173142,177319,215667,217396,222725,227623,231800]
["TULARE30%",136698,136698,136698,136698,136698,191179,191179,191179,191179,191179]
["TULARE25%",144909,145341,147213,148798,150238,199390,199822,201694,203279,204719]
["TULARE20%",152975,154128,157729,160898,163779,207456,208609,212210,215379,218260]
["TULARE15%",161186,162915,168244,173142,177319,215667,217396,222725,227623,231800]
["TUOLUMNE30%",136698,136698,136698,136698,136698,191179,191179,191179,191179,191179]
["TUOLUMNE25%",145053,145485,147358,148942,150527,199534,199966,201839,203423,205008]
["TUOLUMNE20%",153263,154416,158017,161330,164211,207744,208897,212498,215811,218692]
["TUOLUMNE15%",161618,163347,168677,173574,177896,216099,217828,223158,228055,232377]
["VENTURA30%",136698,136698,136698,136698,136698,191179,191179,191179,191179,191179]
["VENTURA25%",149806,150815,153696,156288,158593,204287,205296,208177,210769,213074]
["VENTURA20%",163059,164931,170549,175879,180344,217540,219412,225030,230360,234825]
["VENTURA15%",176311,179048,187547,195469,202240,230792,233529,242028,249950,256721]
["YOLO30%",136698,136698,136698,136698,136698,191179,191179,191179,191179,191179]
["YOLO25%",147790,148654,150959,153119,155136,202271,203135,205440,207600,209617]
["YOLO20%",158881,160466,165219,169541,173430,213362,214947,219700,224022,227911]
["YOLO15%",169973,172422,179480,186106,191868,224454,226903,233961,240587,246349]
["YUBA30%",136698,136698,136698,136698,136698,191179,191179,191179,191179,191179]
["YUBA25%",144909,145341,147213,148798,150238,199390,199822,201694,203279,204719]
["YUBA20%",152975,154128,157729,160898,163779,207456,208609,212210,215379,218260]
["YUBA15%",161186,162915,168244,173142,177319,215667,217396,222725,227623,231800]